Workbook

Sheet 2天汇总 (hidden)
A1: 序号 | B1: 所在部门 | C1: 岗位名称 | D1: 岗位代码 | E1: 姓名 | F1: 考场 | G1: 性别 | H1: 身份证号 | I1: 考场 | J1: 岗位内流水号 | K1: 岗位内 顺序号 | L1: 面试成绩 | M1: 总成绩 | N1: 总排名 | O1: 面试日期 | P1: 岗位面试人数 | Q1: 考场流水号 | R1: 招聘人数 | S1: 笔试成绩 | T1: 政策加分 | U1: 笔试总成绩 | V1: 是否入围现场资格审核 | W1: 笔试排名 | X1: 准考证号 | Y1: 手机号码 | Z1: 考场号 | AA1: 座位号 | AB1: 考试科目 | AC1: 民 族 | AD1: 出生日期 | AE1: 政治面貌 | AF1: 邮 编 | AG1: 备用电话 | AH1: 电子邮件
A2: 3 | B2: 黑龙江丰林国家级自然保护区管理局 | C2: 综合办公室会计A | D2: 109 | E2: 周祺 | F2: 18-1 | G2: 女 | H2: 230281200109031846 | I2: 1- | J2: -1 | K2: 1-109-01 | L2: 83.50 | M2: =U2*0.6+L2*0.4 -> 83.80 | N2: =IFERROR(RANK($M$2,$M$2:$M$509,0),"0") -> 0 | O2: 18日 | P2: 3 | Q2: 1 | R2: 1 | S2: 84 | U2: 84 | V2: 入围 | W2: 2 | X2: 250107011 | Y2: 15663148372 | Z2: 70 | AA2: 11 | AB2: 8001 | AC2: 汉族 | AD2: 2001-09-03 | AE2: 共青团员 | AF2: 153103 | AG2: 18182727539 | AH2: 503924822@qq.com
A3: 2 | B3: 黑龙江丰林国家级自然保护区管理局 | C3: 综合办公室会计A | D3: 109 | E3: 张星宇 | F3: 18-1 | G3: 男 | H3: 320821199801283575 | I3: 1- | J3: -2 | K3: 1-109-02 | L3: 87.00 | M3: =U3*0.6+L3*0.4 -> 86.40 | N3: =SUMPRODUCT(--(($C$2:$C$509=$C3)*($M$2:$M$509)>$M3))+1 ->  | O3: 18日 | P3: 3 | Q3: 1 | R3: 1 | S3: 86 | U3: 86 | V3: 入围 | W3: 1 | X3: 250106722 | Y3: 19832231012 | Z3: 67 | AA3: 22 | AB3: 8001 | AC3: 汉族 | AD3: 1998-01-28 | AE3: 群众 | AF3: 223300 | AG3: 18600229488 | AH3: 1305198971@qq.com
A4: 1 | B4: 黑龙江丰林国家级自然保护区管理局 | C4: 综合办公室会计A | D4: 109 | E4: 王瑀千 | F4: 18-1 | G4: 男 | H4: 239005200007092518 | I4: 1- | J4: -3 | K4: 1-109-03 | L4: 80.92 | M4: 82.77 | N4: =SUMPRODUCT(--(($C$3:$C$12=C3)*($M$3:$M$12)>M3))+1 ->  | O4: 18日 | P4: 3 | Q4: 1 | R4: 1 | S4: 84 | U4: 84 | V4: 入围 | W4: 2 | X4: 250107405 | Y4: 13284586355 | Z4: 74 | AA4: 5 | AB4: 8001 | AC4: 汉族 | AD4: 2000-07-09 | AE4: 共青团员 | AF4: 152500 | AG4: 13284586355 | AH4: 2758525457@qq.com
A5: 10 | B5: 黑龙江丰林国家级自然保护区管理局 | C5: 综合办公室会计B | D5: 110 | E5: 朱大伟 | F5: 18-1 | G5: 男 | H5: 230702199303170512 | I5: 1- | J5: -1 | K5: 1-110-01 | L5: 74.42 | M5: 80.17 | N5: =SUMPRODUCT(--(($C$3:$C$12=C4)*($M$3:$M$12)>D4))+1 ->  | O5: 18日 | P5: 7 | Q5: 1 | R5: 1 | S5: 84 | U5: 84 | V5: 入围 | W5: 3 | X5: 250107301 | Y5: 18645806233 | Z5: 73 | AA5: 1 | AB5: 8001 | AC5: 汉族 | AD5: 1993-03-17 | AE5: 群众 | AF5: 153000 | AG5: 13199265593 | AH5: 459472434@qq.com
A6: 6 | B6: 黑龙江丰林国家级自然保护区管理局 | C6: 综合办公室会计B | D6: 110 | E6: 骆鹤予 | F6: 18-1 | G6: 女 | H6: 230802199904010528 | I6: 1- | J6: -2 | K6: 1-110-02 | L6: 81.84 | M6: 83.14 | N6: =IFERROR(RANK($M$2,$M$2:$M$509,0),"0") -> 0 | O6: 18日 | P6: 7 | Q6: 1 | R6: 1 | S6: 79 | T6: 5 | U6: 84 | V6: 入围 | W6: 3 | X6: 250107708 | Y6: 13089641333 | Z6: 77 | AA6: 8 | AB6: 8001 | AC6: 汉族 | AD6: 1999-04-01 | AE6: 中共党员 | AF6: 154002 | AG6: 18546424555 | AH6: 346003600@qq.com
A7: 4 | B7: 黑龙江丰林国家级自然保护区管理局 | C7: 综合办公室会计B | D7: 110 | E7: 代依诺 | F7: 18-1 | G7: 女 | H7: 231004200208011426 | I7: 1- | J7: -3 | K7: 1-110-03 | L7: 76.24 | M7: 81.50 | N7: 0 | O7: 18日 | P7: 7 | Q7: 1 | R7: 1 | S7: 85 | U7: 85 | V7: 入围 | W7: 1 | X7: 250105627 | Y7: 13091829178 | Z7: 56 | AA7: 27 | AB7: 8001 | AC7: 汉族 | AD7: 2002-08-01 | AE7: 共青团员 | AF7: 157011 | AG7: 13514557178 | AH7: 641024832@qq.com
A8: 8 | B8: 黑龙江丰林国家级自然保护区管理局 | C8: 综合办公室会计B | D8: 110 | E8: 于海晶 | F8: 18-1 | G8: 女 | H8: 232330199704201426 | I8: 1- | J8: -4 | K8: 1-110-04 | L8: 84.16 | M8: 84.06 | N8: 0 | O8: 18日 | P8: 7 | Q8: 1 | R8: 1 | S8: 84 | U8: 84 | V8: 入围 | W8: 3 | X8: 250105108 | Y8: 18846087016 | Z8: 51 | AA8: 8 | AB8: 8001 | AC8: 汉族 | AD8: 1997-04-20 | AE8: 群众 | AF8: 152400 | AG8: 18745529105 | AH8: 3107962934@qq.com
A9: 9 | B9: 黑龙江丰林国家级自然保护区管理局 | C9: 综合办公室会计B | D9: 110 | E9: 周杰 | F9: 18-1 | G9: 女 | H9: 230227200211130826 | I9: 1- | J9: -5 | K9: 1-110-05 | L9: 72.86 | M9: 79.54 | N9: 0 | O9: 18日 | P9: 7 | Q9: 1 | R9: 1 | S9: 84 | U9: 84 | V9: 入围 | W9: 3 | X9: 250105013 | Y9: 15245241586 | Z9: 50 | AA9: 13 | AB9: 8001 | AC9: 汉族 | AD9: 2002-11-13 | AE9: 共青团员 | AF9: 161200 | AG9: 15765565735 | AH9: 3124769877@qq.com
A10: 5 | B10: 黑龙江丰林国家级自然保护区管理局 | C10: 综合办公室会计B | D10: 110 | E10: 靳安顺 | F10: 18-1 | G10: 男 | H10: 230223200111282712 | I10: 1- | J10: -6 | K10: 1-110-06 | L10: 82.60 | M10: 84.04 | N10: 0 | O10: 18日 | P10: 7 | Q10: 1 | R10: 1 | S10: 85 | U10: 85 | V10: 入围 | W10: 1 | X10: 250105110 | Y10: 15774529417 | Z10: 51 | AA10: 10 | AB10: 8001 | AC10: 汉族 | AD10: 2001-11-28 | AE10: 共青团员 | AF10: 161500 | AG10: 18920208924 | AH10: 2752003376@qq.com
A11: 7 | B11: 黑龙江丰林国家级自然保护区管理局 | C11: 综合办公室会计B | D11: 110 | E11: 孙锐 | F11: 18-1 | G11: 女 | H11: 220724199609105621 | I11: 1- | J11: 缺考 | K11: 0 | N11: 0 | O11: 18日 | P11: 7 | Q11: 1 | R11: 1 | S11: 84 | U11: 84 | V11: 入围 | W11: 3 | X11: 250106408 | Y11: 15844870246 | Z11: 64 | AA11: 8 | AB11: 8001 | AC11: 汉族 | AD11: 1996-09-10 | AE11: 群众 | AF11: 131200 | AG11: 18243861574 | AH11: 935310716@qq.com
A12: 13 | B12: 黑龙江丰林国家级自然保护区管理局 | C12: 综合办公室网络安全管理 | D12: 111 | E12: 李国庆 | F12: 18-1 | G12: 男 | H12: 239005199912131518 | I12: 1- | J12: -1 | K12: 1-111-01 | L12: 80.42 | M12: 83.17 | N12: 0 | O12: 18日 | P12: 3 | Q12: 1 | R12: 1 | S12: 85 | U12: 85 | V12: 入围 | W12: 2 | X12: 250105725 | Y12: 18845783180 | Z12: 57 | AA12: 25 | AB12: 8001 | AC12: 汉族 | AD12: 1999-12-13 | AE12: 群众 | AF12: 152500 | AG12: 18846146168 | AH12: guoqing3180@163.com
A13: 11 | B13: 黑龙江丰林国家级自然保护区管理局 | C13: 综合办公室网络安全管理 | D13: 111 | E13: 陈天皓 | F13: 18-1 | G13: 男 | H13: 232301200009290838 | I13: 1- | J13: -2 | K13: 1-111-02 | L13: 82.92 | M13: 84.17 | N13: 0 | O13: 18日 | P13: 3 | Q13: 1 | R13: 1 | S13: 85 | U13: 85 | V13: 入围 | W13: 2 | X13: 250107402 | Y13: 13144553066 | Z13: 74 | AA13: 2 | AB13: 8001 | AC13: 汉族 | AD13: 2000-09-29 | AE13: 共青团员 | AF13: 152000 | AG13: 13644659456 | AH13: 1738287156@qq.com
A14: 12 | B14: 黑龙江丰林国家级自然保护区管理局 | C14: 综合办公室网络安全管理 | D14: 111 | E14: 丁浩 | F14: 18-1 | G14: 男 | H14: 232303199911290610 | I14: 1- | J14: 缺考 | K14: 0 | N14: 0 | O14: 18日 | P14: 3 | Q14: 1 | R14: 1 | S14: 86 | U14: 86 | V14: 入围 | W14: 1 | X14: 250105815 | Y14: 13845027176 | Z14: 58 | AA14: 15 | AB14: 8001 | AC14: 汉族 | AD14: 1999-11-29 | AE14: 共青团员 | AF14: 150000 | AG14: 13694552991 | AH14: 2639919794@qq.com
A15: 14 | B15: 黑龙江丰林国家级自然保护区管理局 | C15: 综合办公室机要员 | D15: 112 | E15: 郝一聪 | F15: 18-1 | G15: 女 | H15: 230822200101246124 | I15: 1- | J15: -1 | K15: 1-112-01 | L15: 77.78 | M15: 75.51 | N15: 0 | O15: 18日 | P15: 3 | Q15: 1 | R15: 1 | S15: 74 | U15: 74 | V15: 入围 | W15: 2 | X15: 250106015 | Y15: 15945446737 | Z15: 60 | AA15: 15 | AB15: 8001 | AC15: 汉族 | AD15: 2001-01-24 | AE15: 中共党员 | AF15: 154400 | AG15: 18345466821 | AH15: 1140262159@qq.com
A16: 15 | B16: 黑龙江丰林国家级自然保护区管理局 | C16: 综合办公室机要员 | D16: 112 | E16: 刘燃 | F16: 18-1 | G16: 男 | H16: 230710200210090017 | I16: 1- | J16: -2 | K16: 1-112-02 | L16: 83.62 | M16: 80.85 | N16: 0 | O16: 18日 | P16: 3 | Q16: 1 | R16: 1 | S16: 79 | U16: 79 | V16: 入围 | W16: 1 | X16: 250106113 | Y16: 13029856068 | Z16: 61 | AA16: 13 | AB16: 8001 | AC16: 汉族 | AD16: 2002-10-09 | AE16: 中共党员 | AF16: 153033 | AG16: 18345879258 | AH16: 835241153@qq.com
A17: 16 | B17: 黑龙江丰林国家级自然保护区管理局 | C17: 综合办公室机要员 | D17: 112 | E17: 孙浩璐 | F17: 18-1 | G17: 男 | H17: 23023020021012043X | I17: 1- | J17: 缺考 | K17: 0 | N17: 0 | O17: 18日 | P17: 3 | Q17: 1 | R17: 1 | S17: 69 | U17: 69 | V17: 入围 | W17: 3 | X17: 250107327 | Y17: 13079661661 | Z17: 73 | AA17: 27 | AB17: 8001 | AC17: 汉族 | AD17: 2002-10-12 | AE17: 中共党员 | AF17: 164800 | AG17: 13101607067 | AH17: clover339@163.com
A18: 18 | B18: 黑龙江丰林国家级自然保护区管理局 | C18: 宣教中心A | D18: 113 | E18: 胡凤龙 | F18: 18-1 | G18: 男 | H18: 231083200102110413 | I18: 1- | J18: -1 | K18: 1-113-01 | L18: 72.82 | M18: 78.93 | N18: 0 | O18: 18日 | P18: 6 | Q18: 1 | R18: 2 | S18: 76 | T18: 7 | U18: 83 | V18: 入围 | W18: 6 | X18: 250106320 | Y18: 13766644042 | Z18: 63 | AA18: 20 | AB18: 8001 | AC18: 汉族 | AD18: 2001-02-11 | AE18: 共青团员 | AF18: 157100 | AG18: 15146107437 | AH18: 2024727693@qq.com
A19: 20 | B19: 黑龙江丰林国家级自然保护区管理局 | C19: 宣教中心A | D19: 113 | E19: 王广媛 | F19: 18-1 | G19: 女 | H19: 230405199711280748 | I19: 1- | J19: -2 | K19: 1-113-02 | L19: 79.10 | M19: 81.44 | N19: 0 | O19: 18日 | P19: 6 | Q19: 1 | R19: 2 | S19: 83 | U19: 83 | V19: 入围 | W19: 6 | X19: 250107901 | Y19: 17645001539 | Z19: 79 | AA19: 1 | AB19: 8001 | AC19: 汉族 | AD19: 1997-11-28 | AE19: 群众 | AF19: 154109 | AG19: 13394686053 | AH19: 2820265182@qq.com
A20: 19 | B20: 黑龙江丰林国家级自然保护区管理局 | C20: 宣教中心A | D20: 113 | E20: 刘赫 | F20: 18-1 | G20: 男 | H20: 232301200008060010 | I20: 1- | J20: -3 | K20: 1-113-03 | L20: 86.36 | M20: 87.94 | N20: 0 | O20: 18日 | P20: 6 | Q20: 1 | R20: 2 | S20: 84 | T20: 5 | U20: 89 | V20: 入围 | W20: 1 | X20: 250105422 | Y20: 13644656000 | Z20: 54 | AA20: 22 | AB20: 8001 | AC20: 汉族 | AD20: 2000-08-06 | AE20: 共青团员 | AF20: 152000 | AG20: 13644656000 | AH20: 2504623761@qq.com
A21: 17 | B21: 黑龙江丰林国家级自然保护区管理局 | C21: 宣教中心A | D21: 113 | E21: 车畅通 | F21: 18-1 | G21: 男 | H21: 230712199908060319 | I21: 1- | J21: -4 | K21: 1-113-04 | L21: 78.26 | M21: 81.70 | N21: 0 | O21: 18日 | P21: 6 | Q21: 1 | R21: 2 | S21: 84 | U21: 84 | V21: 入围 | W21: 4 | X21: 250106513 | Y21: 15764587113 | Z21: 65 | AA21: 13 | AB21: 8001 | AC21: 汉族 | AD21: 1999-08-06 | AE21: 共青团员 | AF21: 153037 | AG21: 15326501856 | AH21: 857947052@qq.com
A22: 21 | B22: 黑龙江丰林国家级自然保护区管理局 | C22: 宣教中心A | D22: 113 | E22: 王云娇 | F22: 18-1 | G22: 女 | H22: 23018320010831442X | I22: 1- | J22: -5 | K22: 1-113-05 | L22: 76.54 | M22: 84.02 | N22: 0 | O22: 18日 | P22: 6 | Q22: 1 | R22: 2 | S22: 82 | T22: 7 | U22: 89 | V22: 入围 | W22: 1 | X22: 250107010 | Y22: 15146107437 | Z22: 70 | AA22: 10 | AB22: 8001 | AC22: 汉族 | AD22: 2001-08-31 | AE22: 中共党员 | AF22: 150010 | AG22: 13766644042 | AH22: wyj15146107437@163.com
A23: 22 | B23: 黑龙江丰林国家级自然保护区管理局 | C23: 宣教中心A | D23: 113 | E23: 薛继航 | F23: 18-1 | G23: 男 | H23: 230811200101300419 | I23: 1- | J23: 缺考 | K23: 0 | N23: 0 | O23: 18日 | P23: 6 | Q23: 1 | R23: 2 | S23: 88 | U23: 88 | V23: 入围 | W23: 3 | X23: 250106515 | Y23: 18845404974 | Z23: 65 | AA23: 15 | AB23: 8001 | AC23: 汉族 | AD23: 2001-01-30 | AE23: 共青团员 | AF23: 154000 | AG23: 13104541262 | AH23: 18845404974@163.com
A24: 24 | B24: 黑龙江丰林国家级自然保护区管理局 | C24: 宣教中心B | D24: 114 | E24: 李婉馨 | F24: 18-1 | G24: 女 | H24: 231124200108040220 | I24: 1- | J24: -1 | K24: 1-114-01 | L24: 73.82 | M24: 77.53 | N24: 0 | O24: 18日 | P24: 3 | Q24: 1 | R24: 1 | S24: 80 | U24: 80 | V24: 入围 | W24: 3 | X24: 250107813 | Y24: 17614567789 | Z24: 78 | AA24: 13 | AB24: 8001 | AC24: 汉族 | AD24: 2001-08-04 | AE24: 共青团员 | AF24: 164200 | AG24: 18944565888 | AH24: 1634524007@qq.com
A25: 25 | B25: 黑龙江丰林国家级自然保护区管理局 | C25: 宣教中心B | D25: 114 | E25: 王宽 | F25: 18-1 | G25: 男 | H25: 230833199905040037 | I25: 1- | J25: -2 | K25: 1-114-02 | L25: 83.24 | M25: 83.10 | N25: 0 | O25: 18日 | P25: 3 | Q25: 1 | R25: 1 | S25: 83 | U25: 83 | V25: 入围 | W25: 1 | X25: 250106629 | Y25: 13945400237 | Z25: 66 | AA25: 29 | AB25: 8001 | AC25: 汉族 | AD25: 1999-05-04 | AE25: 共青团员 | AF25: 156500 | AG25: 13644683200 | AH25: 1252304383@qq.com
A26: 23 | B26: 黑龙江丰林国家级自然保护区管理局 | C26: 宣教中心B | D26: 114 | E26: 董若涵 | F26: 18-1 | G26: 女 | H26: 210503200108013025 | I26: 1- | J26: -3 | K26: 1-114-03 | L26: 77.84 | M26: 79.74 | N26: 0 | O26: 18日 | P26: 3 | Q26: 1 | R26: 1 | S26: 81 | U26: 81 | V26: 入围 | W26: 2 | X26: 250106106 | Y26: 18940024149 | Z26: 61 | AA26: 6 | AB26: 8001 | AC26: 满族 | AD26: 2001-08-01 | AE26: 共青团员 | AF26: 117000 | AG26: 15174139978 | AH26: 3040009826@qq.com
A27: 1 | B27: 黑龙江丰林国家级自然保护区管理局 | C27: 宣教中心C | D27: 115 | E27: 王爽 | F27: 18-2 | G27: 女 | H27: 220281200008135425 | I27: 2- | J27: -1 | K27: 2-115-01 | L27: 77.78 | M27: 80.31 | N27: 0 | O27: 18日 | P27: 3 | Q27: 2 | R27: 1 | S27: 82 | U27: 82 | V27: 入围 | W27: 3 | X27: 250105905 | Y27: 15567490559 | Z27: 59 | AA27: 5 | AB27: 8001 | AC27: 汉族 | AD27: 2000-08-13 | AE27: 共青团员 | AF27: 132500 | AG27: 18545992000 | AH27: 1197903007@qq.com
A28: 2 | B28: 黑龙江丰林国家级自然保护区管理局 | C28: 宣教中心C | D28: 115 | E28: 徐婧君 | F28: 18-2 | G28: 女 | H28: 232326200001012961 | I28: 2- | J28: -2 | K28: 2-115-02 | L28: 85.30 | M28: 85.72 | N28: 0 | O28: 18日 | P28: 3 | Q28: 2 | R28: 1 | S28: 86 | U28: 86 | V28: 入围 | W28: 2 | X28: 250105222 | Y28: 18445561700 | Z28: 52 | AA28: 22 | AB28: 8001 | AC28: 汉族 | AD28: 2000-01-01 | AE28: 共青团员 | AF28: 151600 | AG28: 15045538858 | AH28: 1021295666@qq.com
A29: 3 | B29: 黑龙江丰林国家级自然保护区管理局 | C29: 宣教中心C | D29: 115 | E29: 张天馨 | F29: 18-2 | G29: 女 | H29: 230184200006263023 | I29: 2- | J29: -3 | K29: 2-115-03 | L29: 82.32 | M29: 85.73 | N29: 0 | O29: 18日 | P29: 3 | Q29: 2 | R29: 1 | S29: 88 | U29: 88 | V29: 入围 | W29: 1 | X29: 250105805 | Y29: 18246169264 | Z29: 58 | AA29: 5 | AB29: 8001 | AC29: 汉族 | AD29: 2000-06-26 | AE29: 群众 | AF29: 150211 | AG29: 18686785937 | AH29: 18246169264@163.com
A30: 6 | B30: 黑龙江丰林国家级自然保护区管理局 | C30: 战略发展部A | D30: 116 | E30: 王浩然 | F30: 18-2 | G30: 男 | H30: 232332199810252713 | I30: 2- | J30: -1 | K30: 2-116-01 | L30: 76.24 | M30: 55.70 | N30: 0 | O30: 18日 | P30: 6 | Q30: 2 | R30: 2 | S30: 42 | U30: 42 | V30: 入围 | W30: 6 | X30: 250107602 | Y30: 15046502115 | Z30: 76 | AA30: 2 | AB30: 8001 | AC30: 汉族 | AD30: 1998-10-25 | AE30: 共青团员 | AF30: 152234 | AG30: 15184529206 | AH30: 2512611916@qq.com
A31: 4 | B31: 黑龙江丰林国家级自然保护区管理局 | C31: 战略发展部A | D31: 116 | E31: 刘冠楼 | F31: 18-2 | G31: 男 | H31: 230421199601123311 | I31: 2- | J31: -2 | K31: 2-116-02 | L31: 83.00 | M31: 81.20 | N31: 0 | O31: 18日 | P31: 6 | Q31: 2 | R31: 2 | S31: 80 | U31: 80 | V31: 入围 | W31: 1 | X31: 250106202 | Y31: 13633613377 | Z31: 62 | AA31: 2 | AB31: 8001 | AC31: 汉族 | AD31: 1996-01-12 | AE31: 群众 | AF31: 150000 | AG31: 18204514325 | AH31: 1393724415@qq.com
A32: 5 | B32: 黑龙江丰林国家级自然保护区管理局 | C32: 战略发展部A | D32: 116 | E32: 王冠文 | F32: 18-2 | G32: 男 | H32: 230606199706201758 | I32: 2- | J32: -3 | K32: 2-116-03 | L32: 78.82 | M32: 74.13 | N32: 0 | O32: 18日 | P32: 6 | Q32: 2 | R32: 2 | S32: 71 | U32: 71 | V32: 入围 | W32: 3 | X32: 250106801 | Y32: 15245944051 | Z32: 68 | AA32: 1 | AB32: 8001 | AC32: 汉族 | AD32: 1997-06-20 | AE32: 共青团员 | AF32: 163111 | AG32: 13351848821 | AH32: 545970097@qq.com
A33: 7 | B33: 黑龙江丰林国家级自然保护区管理局 | C33: 战略发展部A | D33: 116 | E33: 夏鹏飞 | F33: 18-2 | G33: 男 | H33: 230921199902062812 | I33: 2- | J33: -4 | K33: 2-116-04 | L33: 78.88 | M33: 74.75 | N33: 0 | O33: 18日 | P33: 6 | Q33: 2 | R33: 2 | S33: 72 | U33: 72 | V33: 入围 | W33: 2 | X33: 250105613 | Y33: 15214646000 | Z33: 56 | AA33: 13 | AB33: 8001 | AC33: 汉族 | AD33: 1999-02-06 | AE33: 共青团员 | AF33: 154500 | AG33: 13091852345 | AH33: 363315734@qq.com
A34: 9 | B34: 黑龙江丰林国家级自然保护区管理局 | C34: 战略发展部A | D34: 116 | E34: 张羽欣 | F34: 18-2 | G34: 女 | H34: 232126199404170562 | I34: 2- | J34: -5 | K34: 2-116-05 | L34: 72.74 | M34: 69.90 | N34: 0 | O34: 18日 | P34: 6 | Q34: 2 | R34: 2 | S34: 68 | U34: 68 | V34: 入围 | W34: 4 | X34: 250106424 | Y34: 18846044863 | Z34: 64 | AA34: 24 | AB34: 8001 | AC34: 汉族 | AD34: 1994-04-17 | AE34: 共青团员 | AF34: 150040 | AG34: 15636341181 | AH34: 745441471@qq.com
A35: 8 | B35: 黑龙江丰林国家级自然保护区管理局 | C35: 战略发展部A | D35: 116 | E35: 徐一沣 | F35: 18-2 | G35: 男 | H35: 230712199407270318 | I35: 2- | J35: 缺考 | K35: 0 | N35: 0 | O35: 18日 | P35: 6 | Q35: 2 | R35: 2 | S35: 64 | U35: 64 | V35: 入围 | W35: 5 | X35: 250105504 | Y35: 18645891611 | Z35: 55 | AA35: 4 | AB35: 8001 | AC35: 汉族 | AD35: 1994-07-27 | AE35: 中共党员 | AF35: 153037 | AG35: 15561917772 | AH35: 261492394@qq.com
A36: 11 | B36: 黑龙江丰林国家级自然保护区管理局 | C36: 战略发展部B | D36: 117 | E36: 孙旭 | F36: 18-2 | G36: 男 | H36: 232326200011202339 | I36: 2- | J36: -1 | K36: 2-117-01 | L36: 79.82 | M36: 82.93 | N36: 0 | O36: 18日 | P36: 3 | Q36: 2 | R36: 1 | S36: 85 | U36: 85 | V36: 入围 | W36: 1 | X36: 250105416 | Y36: 18724429062 | Z36: 54 | AA36: 16 | AB36: 8001 | AC36: 汉族 | AD36: 2000-11-20 | AE36: 群众 | AF36: 151600 | AG36: 13654507441 | AH36: 18724429062@163.com
A37: 12 | B37: 黑龙江丰林国家级自然保护区管理局 | C37: 战略发展部B | D37: 117 | E37: 王惠敏 | F37: 18-2 | G37: 女 | H37: 232700199906270423 | I37: 2- | J37: -2 | K37: 2-117-02 | L37: 81.26 | M37: 82.90 | N37: 0 | O37: 18日 | P37: 3 | Q37: 2 | R37: 1 | S37: 84 | U37: 84 | V37: 入围 | W37: 3 | X37: 250106914 | Y37: 18945007627 | Z37: 69 | AA37: 14 | AB37: 8001 | AC37: 汉族 | AD37: 1999-06-27 | AE37: 共青团员 | AF37: 150000 | AG37: 15149554747 | AH37: 1659798606@qq.com
A38: 10 | B38: 黑龙江丰林国家级自然保护区管理局 | C38: 战略发展部B | D38: 117 | E38: 李洋洋 | F38: 18-2 | G38: 女 | H38: 23022919960110206X | I38: 2- | J38: -3 | K38: 2-117-03 | L38: 81.84 | M38: 83.74 | N38: 0 | O38: 18日 | P38: 3 | Q38: 2 | R38: 1 | S38: 85 | U38: 85 | V38: 入围 | W38: 1 | X38: 250107529 | Y38: 18724554631 | Z38: 75 | AA38: 29 | AB38: 8001 | AC38: 汉族 | AD38: 1996-01-10 | AE38: 群众 | AF38: 161610 | AG38: 15046248762 | AH38: 210561349@qq.com
A39: 13 | B39: 黑龙江丰林国家级自然保护区管理局 | C39: 战略发展部C | D39: 118 | E39: 陈雪 | F39: 18-2 | G39: 女 | H39: 230122199401130189 | I39: 2- | J39: -1 | K39: 2-118-01 | L39: 83.28 | M39: 84.91 | N39: 0 | O39: 18日 | P39: 3 | Q39: 2 | R39: 1 | S39: 86 | U39: 86 | V39: 入围 | W39: 2 | X39: 250105025 | Y39: 18249089342 | Z39: 50 | AA39: 25 | AB39: 8001 | AC39: 汉族 | AD39: 1994-01-13 | AE39: 群众 | AF39: 150300 | AG39: 18686899317 | AH39: LAIC13@163.com
A40: 15 | B40: 黑龙江丰林国家级自然保护区管理局 | C40: 战略发展部C | D40: 118 | E40: 赵义 | F40: 18-2 | G40: 女 | H40: 23092120010111012X | I40: 2- | J40: -2 | K40: 2-118-02 | L40: 79.34 | M40: 83.34 | N40: 0 | O40: 18日 | P40: 3 | Q40: 2 | R40: 1 | S40: 86 | U40: 86 | V40: 入围 | W40: 2 | X40: 250106526 | Y40: 18745273025 | Z40: 65 | AA40: 26 | AB40: 8001 | AC40: 汉族 | AD40: 2001-01-11 | AE40: 共青团员 | AF40: 154500 | AG40: 13846480890 | AH40: 1693038571@qq.com
A41: 14 | B41: 黑龙江丰林国家级自然保护区管理局 | C41: 战略发展部C | D41: 118 | E41: 张铎 | F41: 18-2 | G41: 男 | H41: 232326200209231530 | I41: 2- | J41: -3 | K41: 2-118-03 | L41: 77.44 | M41: 84.38 | N41: 0 | O41: 18日 | P41: 3 | Q41: 2 | R41: 1 | S41: 89 | U41: 89 | V41: 入围 | W41: 1 | X41: 250105218 | Y41: 19889956688 | Z41: 52 | AA41: 18 | AB41: 8001 | AC41: 汉族 | AD41: 2002-09-23 | AE41: 共青团员 | AF41: 151600 | AG41: 18697060817 | AH41: 707476688@qq.com
A42: 23 | B42: 黑龙江丰林国家级自然保护区管理局 | C42: 保护管理中心A | D42: 119 | E42: 朱晓光 | F42: 18-2 | G42: 男 | H42: 231182199306075617 | I42: 2- | J42: 缺考 | K42: 0 | N42: 0 | O42: 18日 | P42: 8 | Q42: 2 | R42: 2 | S42: 81 | U42: 81 | V42: 入围 | W42: 5 | X42: 250107413 | Y42: 15774607952 | Z42: 74 | AA42: 13 | AB42: 8001 | AC42: 汉族 | AD42: 1993-06-07 | AE42: 群众 | AF42: 164000 | AG42: 18746390182 | AH42: 15774607952@163.com
A43: 18 | B43: 黑龙江丰林国家级自然保护区管理局 | C43: 保护管理中心A | D43: 119 | E43: 李春鹏 | F43: 18-2 | G43: 男 | H43: 232301199606257571 | I43: 2- | J43: -1 | K43: 2-119-01 | L43: 82.28 | M43: 83.31 | N43: 0 | O43: 18日 | P43: 8 | Q43: 2 | R43: 2 | S43: 84 | U43: 84 | V43: 入围 | W43: 1 | X43: 250107307 | Y43: 18846826319 | Z43: 73 | AA43: 7 | AB43: 8001 | AC43: 汉族 | AD43: 1996-06-25 | AE43: 共青团员 | AF43: 152000 | AG43: 13089688537 | AH43: 1169110637@qq.com
A44: 20 | B44: 黑龙江丰林国家级自然保护区管理局 | C44: 保护管理中心A | D44: 119 | E44: 苗钧博 | F44: 18-2 | G44: 男 | H44: 23233020030508001X | I44: 2- | J44: -2 | K44: 2-119-02 | L44: 75.70 | M44: 78.88 | N44: 0 | O44: 18日 | P44: 8 | Q44: 2 | R44: 2 | S44: 81 | U44: 81 | V44: 入围 | W44: 5 | X44: 250107116 | Y44: 15344654320 | Z44: 71 | AA44: 16 | AB44: 8001 | AC44: 汉族 | AD44: 2003-05-08 | AE44: 群众 | AF44: 152400 | AG44: 13624558664 | AH44: 2246536907@qq.com
A45: 16 | B45: 黑龙江丰林国家级自然保护区管理局 | C45: 保护管理中心A | D45: 119 | E45: 陈司佳 | F45: 18-2 | G45: 女 | H45: 230107200008172325 | I45: 2- | J45: -3 | K45: 2-119-03 | L45: 77.96 | M45: 80.38 | N45: 0 | O45: 18日 | P45: 8 | Q45: 2 | R45: 2 | S45: 82 | U45: 82 | V45: 入围 | W45: 3 | X45: 250107003 | Y45: 13313686009 | Z45: 70 | AA45: 3 | AB45: 8001 | AC45: 汉族 | AD45: 2000-08-17 | AE45: 共青团员 | AF45: 150036 | AG45: 15604660793 | AH45: 774309351@qq.com
A46: 21 | B46: 黑龙江丰林国家级自然保护区管理局 | C46: 保护管理中心A | D46: 119 | E46: 王鑫雨 | F46: 18-2 | G46: 男 | H46: 230708199808120017 | I46: 2- | J46: -4 | K46: 2-119-04 | L46: 80.32 | M46: 81.93 | N46: 0 | O46: 18日 | P46: 8 | Q46: 2 | R46: 2 | S46: 83 | U46: 83 | V46: 入围 | W46: 2 | X46: 250107509 | Y46: 18845828200 | Z46: 75 | AA46: 9 | AB46: 8001 | AC46: 汉族 | AD46: 1998-08-12 | AE46: 共青团员 | AF46: 153021 | AG46: 18806290822 | AH46: 1156369402@qq.com
A47: 22 | B47: 黑龙江丰林国家级自然保护区管理局 | C47: 保护管理中心A | D47: 119 | E47: 王泽 | F47: 18-2 | G47: 男 | H47: 230104199612160414 | I47: 2- | J47: -5 | K47: 2-119-05 | L47: 75.32 | M47: 79.33 | N47: 0 | O47: 18日 | P47: 8 | Q47: 2 | R47: 2 | S47: 82 | U47: 82 | V47: 入围 | W47: 3 | X47: 250106305 | Y47: 13104078085 | Z47: 63 | AA47: 5 | AB47: 8001 | AC47: 汉族 | AD47: 1996-12-16 | AE47: 群众 | AF47: 150000 | AG47: 15546422536 | AH47: 1634027969@qq.com
A48: 17 | B48: 黑龙江丰林国家级自然保护区管理局 | C48: 保护管理中心A | D48: 119 | E48: 顾一鸣 | F48: 18-2 | G48: 女 | H48: 230230199812010240 | I48: 2- | J48: -6 | K48: 2-119-06 | L48: 79.58 | M48: 80.43 | N48: 0 | O48: 18日 | P48: 8 | Q48: 2 | R48: 2 | S48: 81 | U48: 81 | V48: 入围 | W48: 5 | X48: 250107403 | Y48: 15774501923 | Z48: 74 | AA48: 3 | AB48: 8001 | AC48: 满族 | AD48: 1998-12-01 | AE48: 中共党员 | AF48: 164800 | AG48: 18746899136 | AH48: 1419253903@qq.com
A49: 19 | B49: 黑龙江丰林国家级自然保护区管理局 | C49: 保护管理中心A | D49: 119 | E49: 刘扬 | F49: 18-2 | G49: 男 | H49: 230505199108020218 | I49: 2- | J49: -7 | K49: 2-119-07 | L49: 80.18 | M49: 80.67 | N49: 0 | O49: 18日 | P49: 8 | Q49: 2 | R49: 2 | S49: 81 | U49: 81 | V49: 入围 | W49: 5 | X49: 250106810 | Y49: 15846429329 | Z49: 68 | AA49: 10 | AB49: 8001 | AC49: 汉族 | AD49: 1991-08-02 | AE49: 群众 | AF49: 155100 | AG49: 13895885214 | AH49: 1506128390@qq.com
A50: 2 | B50: 黑龙江林业职业技术学院 | C50: 心理咨询教师 | D50: 24 | E50: 欧盟 | F50: 18-3 | G50: 男 | H50: 231121199805065517 | I50: 3- | J50: -1 | K50: 3-024-01 | L50: 83.52 | M50: 79.76 | N50: 0 | O50: 18日 | P50: 3 | Q50: 3 | R50: 1 | S50: 77.25 | U50: 77.25 | V50: 入围 | W50: 1 | X50: 250101801 | Y50: 13206798123 | Z50: 18 | AA50: 1 | AB50: 8008 | AC50: 汉族 | AD50: 1998-05-06 | AE50: 共青团员 | AF50: 161400 | AG50: 15504568811 | AH50: 2577290942@qq.com
A51: 3 | B51: 黑龙江林业职业技术学院 | C51: 心理咨询教师 | D51: 24 | E51: 赵星 | F51: 18-3 | G51: 女 | H51: 130430199001260323 | I51: 3- | J51: -2 | K51: 3-024-02 | L51: 78.54 | M51: 68.47 | N51: 0 | O51: 18日 | P51: 3 | Q51: 3 | R51: 1 | S51: 61.75 | U51: 61.75 | V51: 入围 | W51: 3 | X51: 250101906 | Y51: 13663103342 | Z51: 19 | AA51: 6 | AB51: 8008 | AC51: 汉族 | AD51: 1990-01-26 | AE51: 群众 | AF51: 57450 | AG51: 13663103342 | AH51: zhaoxing2014163@163.com
A52: 1 | B52: 黑龙江林业职业技术学院 | C52: 心理咨询教师 | D52: 24 | E52: 郭世英 | F52: 18-3 | G52: 女 | H52: 140221199704250046 | I52: 3- | J52: -3 | K52: 3-024-03 | L52: 83.04 | M52: 74.17 | N52: 0 | O52: 18日 | P52: 3 | Q52: 3 | R52: 1 | S52: 68.25 | U52: 68.25 | V52: 入围 | W52: 2 | X52: 250103602 | Y52: 18435225105 | Z52: 36 | AA52: 2 | AB52: 8008 | AC52: 汉族 | AD52: 1997-04-25 | AE52: 共青团员 | AF52: 37000 | AG52: 15635291800 | AH52: g19781982@163.com
A53: 8 | B53: 黑龙江林业职业技术学院 | C53: 管理A岗 | D53: 27 | E53: 李聿宁 | F53: 18-3 | G53: 女 | H53: 231083199704196722 | I53: 3- | J53: -1 | K53: 3-027-01 | L53: 82.56 | M53: 74.12 | N53: 0 | O53: 18日 | P53: 6 | Q53: 3 | R53: 2 | S53: 68.5 | U53: 68.5 | V53: 入围 | W53: 3 | X53: 250104928 | Y53: 18845564439 | Z53: 49 | AA53: 28 | AB53: 8008 | AC53: 汉族 | AD53: 1997-04-19 | AE53: 中共党员 | AF53: 157100 | AG53: 18845793260 | AH53: 18845564439@163.com
A54: 5 | B54: 黑龙江林业职业技术学院 | C54: 管理A岗 | D54: 27 | E54: 郭玙晗 | F54: 18-3 | G54: 女 | H54: 230103200007142444 | I54: 3- | J54: -2 | K54: 3-027-02 | L54: 81.16 | M54: 74.76 | N54: 0 | O54: 18日 | P54: 6 | Q54: 3 | R54: 2 | S54: 70.5 | U54: 70.5 | V54: 入围 | W54: 1 | X54: 250104403 | Y54: 13936508289 | Z54: 44 | AA54: 3 | AB54: 8008 | AC54: 汉族 | AD54: 2000-07-14 | AE54: 中共党员 | AF54: 150040 | AG54: 19171476211 | AH54: 1042617604@qq.com
A55: 9 | B55: 黑龙江林业职业技术学院 | C55: 管理A岗 | D55: 27 | E55: 徐冰 | F55: 18-3 | G55: 男 | H55: 231004198602170919 | I55: 3- | J55: -3 | K55: 3-027-03 | L55: 81.42 | M55: 58.67 | N55: 0 | O55: 18日 | P55: 6 | Q55: 3 | R55: 2 | S55: 43.5 | U55: 43.5 | W55: 11 | X55: 250102502 | Y55: 13704531845 | Z55: 25 | AA55: 2 | AB55: 8008 | AC55: 汉族 | AD55: 1986-02-17 | AE55: 中共党员 | AF55: 157000 | AG55: 17745311871 | AH55: 570774309@qq.com
A56: 6 | B56: 黑龙江林业职业技术学院 | C56: 管理A岗 | D56: 27 | E56: 黄佳旭 | F56: 18-3 | G56: 女 | H56: 231121199902084365 | I56: 3- | J56: -4 | K56: 3-027-04 | L56: 81.06 | M56: 72.32 | N56: 0 | O56: 18日 | P56: 6 | Q56: 3 | R56: 2 | S56: 66.5 | U56: 66.5 | V56: 入围 | W56: 5 | X56: 250104510 | Y56: 13154565219 | Z56: 45 | AA56: 10 | AB56: 8008 | AC56: 汉族 | AD56: 1999-02-08 | AE56: 中共党员 | AF56: 164154 | AG56: 13154565218 | AH56: 1160700960@qq.com
A57: 4 | B57: 黑龙江林业职业技术学院 | C57: 管理A岗 | D57: 27 | E57: 董文博 | F57: 18-3 | G57: 女 | H57: 231084199904090523 | I57: 3- | J57: -5 | K57: 3-027-05 | L57: 80.38 | M57: 69.05 | N57: 0 | O57: 18日 | P57: 6 | Q57: 3 | R57: 2 | S57: 61.5 | U57: 61.5 | V57: 入围 | W57: 7 | X57: 250101703 | Y57: 15698619711 | Z57: 17 | AA57: 3 | AB57: 8008 | AC57: 满族 | AD57: 1999-04-09 | AE57: 中共党员 | AF57: 157421 | AG57: 15698619711 | AH57: 2724684328@qq.com
A58: 7 | B58: 黑龙江林业职业技术学院 | C58: 管理A岗 | D58: 27 | E58: 金禹彤 | F58: 18-3 | G58: 女 | H58: 232330199911260621 | I58: 3- | J58: 缺考 | K58: 0 | N58: 0 | O58: 18日 | P58: 6 | Q58: 3 | R58: 2 | S58: 68.5 | U58: 68.5 | V58: 入围 | W58: 3 | X58: 250103206 | Y58: 15845518667 | Z58: 32 | AA58: 6 | AB58: 8008 | AC58: 汉族 | AD58: 1999-11-26 | AE58: 中共党员 | AF58: 152400 | AG58: 19551813606 | AH58: 15845518667@163.com
A59: 13 | B59: 黑龙江林业职业技术学院 | C59: 管理C岗 | D59: 29 | E59: 裴钰 | F59: 18-3 | G59: 女 | H59: 23060319910119332X | I59: 3- | J59: -1 | K59: 3-029-01 | L59: 82.52 | M59: 74.56 | N59: 0 | O59: 18日 | P59: 6 | Q59: 3 | R59: 2 | S59: 69.25 | U59: 69.25 | V59: 入围 | W59: 2 | X59: 250103230 | Y59: 13394668278 | Z59: 32 | AA59: 30 | AB59: 8008 | AC59: 朝鲜族 | AD59: 1991-01-19 | AE59: 群众 | AF59: 163000 | AG59: 13039813077 | AH59: binli2878@163.com
A60: 10 | B60: 黑龙江林业职业技术学院 | C60: 管理C岗 | D60: 29 | E60: 陈楠 | F60: 18-3 | G60: 女 | H60: 23210119920120442X | I60: 3- | J60: -2 | K60: 3-029-02 | L60: 84.02 | M60: 76.51 | N60: 0 | O60: 18日 | P60: 6 | Q60: 3 | R60: 2 | S60: 71.5 | U60: 71.5 | V60: 入围 | W60: 1 | X60: 250102517 | Y60: 15776376669 | Z60: 25 | AA60: 17 | AB60: 8008 | AC60: 汉族 | AD60: 1992-01-20 | AE60: 群众 | AF60: 150080 | AG60: 18645119791 | AH60: 284442495@qq.com
A61: 11 | B61: 黑龙江林业职业技术学院 | C61: 管理C岗 | D61: 29 | E61: 姜雨晴 | F61: 18-3 | G61: 女 | H61: 230403199902190048 | I61: 3- | J61: -3 | K61: 3-029-03 | L61: 81.78 | M61: 69.76 | N61: 0 | O61: 18日 | P61: 6 | Q61: 3 | R61: 2 | S61: 61.75 | U61: 61.75 | V61: 入围 | W61: 6 | X61: 250101607 | Y61: 18842562743 | Z61: 16 | AA61: 7 | AB61: 8008 | AC61: 汉族 | AD61: 1999-02-19 | AE61: 共青团员 | AF61: 528000 | AG61: 13027918996 | AH61: 2363997026@qq.com
A62: 12 | B62: 黑龙江林业职业技术学院 | C62: 管理C岗 | D62: 29 | E62: 李卓 | F62: 18-3 | G62: 女 | H62: 231004199206030329 | I62: 3- | J62: -4 | K62: 3-029-04 | L62: 79.62 | M62: 68.00 | N62: 0 | O62: 18日 | P62: 6 | Q62: 3 | R62: 2 | S62: 60.25 | U62: 60.25 | W62: 8 | X62: 250102408 | Y62: 18316180346 | Z62: 24 | AA62: 8 | AB62: 8008 | AC62: 汉族 | AD62: 1992-06-03 | AE62: 群众 | AF62: 157000 | AG62: 15145386078 | AH62: 18316180346@163.com
A63: 15 | B63: 黑龙江林业职业技术学院 | C63: 管理C岗 | D63: 29 | E63: 杨庆鑫 | F63: 18-3 | G63: 男 | H63: 230524199103304018 | I63: 3- | J63: -5 | K63: 3-029-05 | L63: 78.88 | M63: 72.20 | N63: 0 | O63: 18日 | P63: 6 | Q63: 3 | R63: 2 | S63: 67.75 | U63: 67.75 | V63: 入围 | W63: 3 | X63: 250101824 | Y63: 18604698023 | Z63: 18 | AA63: 24 | AB63: 8008 | AC63: 汉族 | AD63: 1991-03-30 | AE63: 群众 | AF63: 110000 | AG63: 18102478023 | AH63: yqx2433@qq.com
A64: 14 | B64: 黑龙江林业职业技术学院 | C64: 管理C岗 | D64: 29 | E64: 石阳 | F64: 18-3 | G64: 男 | H64: 230205199401210014 | I64: 3- | J64: -6 | K64: 3-029-06 | L64: 76.96 | M64: 67.98 | N64: 0 | O64: 18日 | P64: 6 | Q64: 3 | R64: 2 | S64: 62 | U64: 62 | V64: 入围 | W64: 5 | X64: 250103006 | Y64: 18346028081 | Z64: 30 | AA64: 6 | AB64: 8008 | AC64: 汉族 | AD64: 1994-01-21 | AE64: 群众 | AF64: 157000 | AG64: 15122246600 | AH64: shiyangmsd@163.com
A65: 21 | B65: 黑龙江林业职业技术学院 | C65: 管理E岗 | D65: 31 | E65: 刘传龙 | F65: 18-3 | G65: 男 | H65: 232101199705044618 | I65: 3- | J65: -1 | K65: 3-031-01 | L65: 76.52 | M65: 66.16 | N65: 0 | O65: 18日 | P65: 18 | Q65: 3 | R65: 6 | S65: 59.25 | U65: 59.25 | W65: 20 | X65: 250103022 | Y65: 13354541422 | Z65: 30 | AA65: 22 | AB65: 8008 | AC65: 汉族 | AD65: 1997-05-04 | AE65: 群众 | AF65: 150100 | AG65: 13354541422 | AH65: 1798542000@qq.com
A66: 33 | B66: 黑龙江林业职业技术学院 | C66: 管理E岗 | D66: 31 | E66: 张书宁 | F66: 18-3 | G66: 男 | H66: 232301200010192012 | I66: 3- | J66: -2 | K66: 3-031-02 | L66: 84.50 | M66: 72.65 | N66: 0 | O66: 18日 | P66: 18 | Q66: 3 | R66: 6 | S66: 64.75 | U66: 64.75 | V66: 入围 | W66: 13 | X66: 250102207 | Y66: 13212892871 | Z66: 22 | AA66: 7 | AB66: 8008 | AC66: 汉族 | AD66: 2000-10-19 | AE66: 共青团员 | AF66: 152000 | AG66: 18900937086 | AH66: 2757100403@qq.com
A67: 23 | B67: 黑龙江林业职业技术学院 | C67: 管理E岗 | D67: 31 | E67: 刘奇 | F67: 18-3 | G67: 男 | H67: 230604199609040216 | I67: 3- | J67: -3 | K67: 3-031-03 | L67: 86.22 | M67: =U67*0.6+L67*0.4 -> 75.14 | N67: =IFERROR(RANK($M$2,$M$2:$M$509,0),"0") -> 0 | O67: 18日 | P67: 18 | Q67: 3 | R67: 6 | S67: 67.75 | U67: 67.75 | V67: 入围 | W67: 7 | X67: 250103213 | Y67: 15754365996 | Z67: 32 | AA67: 13 | AB67: 8008 | AC67: 汉族 | AD67: 1996-09-04 | AE67: 群众 | AF67: 154500 | AG67: 15845816042 | AH67: 3067339602@qq.com
A68: 31 | B68: 黑龙江林业职业技术学院 | C68: 管理E岗 | D68: 31 | E68: 张福宇 | F68: 18-3 | G68: 男 | H68: 220523199912261013 | I68: 3- | J68: -4 | K68: 3-031-04 | L68: 85.00 | M68: 68.65 | N68: 0 | O68: 18日 | P68: 18 | Q68: 3 | R68: 6 | S68: 57.75 | U68: 57.75 | W68: 27 | X68: 250103707 | Y68: 13674452123 | Z68: 37 | AA68: 7 | AB68: 8008 | AC68: 汉族 | AD68: 1999-12-26 | AE68: 共青团员 | AF68: 135100 | AG68: 13634354789 | AH68: 1712082930@qq.com
A69: 32 | B69: 黑龙江林业职业技术学院 | C69: 管理E岗 | D69: 31 | E69: 张海光 | F69: 18-3 | G69: 男 | H69: 230709199304270114 | I69: 3- | J69: -5 | K69: 3-031-05 | L69: 79.44 | M69: 75.13 | N69: 0 | O69: 18日 | P69: 18 | Q69: 3 | R69: 6 | S69: 72.25 | U69: 72.25 | V69: 入围 | W69: 4 | X69: 250102711 | Y69: 17310722176 | Z69: 27 | AA69: 11 | AB69: 8008 | AC69: 汉族 | AD69: 1993-04-27 | AE69: 群众 | AF69: 153026 | AG69: 15604862159 | AH69: sillyguang@qq.com
A70: 29 | B70: 黑龙江林业职业技术学院 | C70: 管理E岗 | D70: 31 | E70: 王华智 | F70: 18-3 | G70: 男 | H70: 230406199603140031 | I70: 3- | J70: -6 | K70: 3-031-06 | L70: 82.68 | M70: 73.87 | N70: 0 | O70: 18日 | P70: 18 | Q70: 3 | R70: 6 | S70: 68 | U70: 68 | V70: 入围 | W70: 5 | X70: 250102612 | Y70: 13843074864 | Z70: 26 | AA70: 12 | AB70: 8008 | AC70: 汉族 | AD70: 1996-03-14 | AE70: 群众 | AF70: 154100 | AG70: 13846877051 | AH70: 987042278@qq.com
A71: 28 | B71: 黑龙江林业职业技术学院 | C71: 管理E岗 | D71: 31 | E71: 孙永哲 | F71: 18-3 | G71: 男 | H71: 230102199602224119 | I71: 3- | J71: -7 | K71: 3-031-07 | L71: 82.32 | M71: 70.88 | N71: 0 | O71: 18日 | P71: 18 | Q71: 3 | R71: 6 | S71: 63.25 | U71: 63.25 | V71: 入围 | W71: 16 | X71: 250101704 | Y71: 18545155636 | Z71: 17 | AA71: 4 | AB71: 8008 | AC71: 汉族 | AD71: 1996-02-22 | AE71: 群众 | AF71: 150010 | AG71: 13613606362 | AH71: 18545155636@163.com
A72: 16 | B72: 黑龙江林业职业技术学院 | C72: 管理E岗 | D72: 31 | E72: 靳志向 | F72: 18-3 | G72: 男 | H72: 230404199303130517 | I72: 3- | J72: -8 | K72: 3-031-08 | L72: 76.64 | M72: 65.61 | N72: 0 | O72: 18日 | P72: 18 | Q72: 3 | R72: 6 | S72: 58.25 | U72: 58.25 | W72: 25 | X72: 250101816 | Y72: 18845292721 | Z72: 18 | AA72: 16 | AB72: 8008 | AC72: 汉族 | AD72: 1993-03-13 | AE72: 群众 | AF72: 154100 | AG72: 13904683086 | AH72: 1346704307@qq.com
A73: 24 | B73: 黑龙江林业职业技术学院 | C73: 管理E岗 | D73: 31 | E73: 潘晟毓 | F73: 18-3 | G73: 男 | H73: 230702199703030519 | I73: 3- | J73: -9 | K73: 3-031-09 | L73: 76.32 | M73: 70.88 | N73: 0 | O73: 18日 | P73: 18 | Q73: 3 | R73: 6 | S73: 67.25 | U73: 67.25 | V73: 入围 | W73: 8 | X73: 250104525 | Y73: 13183927156 | Z73: 45 | AA73: 25 | AB73: 8008 | AC73: 汉族 | AD73: 1997-03-03 | AE73: 中共预备党员 | AF73: 153000 | AG73: 13104586621 | AH73: 1743434830@qq.com
A74: 20 | B74: 黑龙江林业职业技术学院 | C74: 管理E岗 | D74: 31 | E74: 林楠 | F74: 18-3 | G74: 男 | H74: 230523199905044012 | I74: 3- | J74: -10 | K74: 3-031-10 | L74: 79.88 | M74: 72.15 | N74: 0 | O74: 18日 | P74: 18 | Q74: 3 | R74: 6 | S74: 67 | U74: 67 | V74: 入围 | W74: 10 | X74: 250102321 | Y74: 15045738796 | Z74: 23 | AA74: 21 | AB74: 8008 | AC74: 汉族 | AD74: 1999-05-04 | AE74: 共青团员 | AF74: 155620 | AG74: 15045738949 | AH74: 1598891843@qq.com
A75: 26 | B75: 黑龙江林业职业技术学院 | C75: 管理E岗 | D75: 31 | E75: 任树安 | F75: 18-3 | G75: 男 | H75: 230904199811200013 | I75: 3- | J75: -11 | K75: 3-031-11 | L75: 79.78 | M75: 70.76 | N75: 0 | O75: 18日 | P75: 18 | Q75: 3 | R75: 6 | S75: 64.75 | U75: 64.75 | V75: 入围 | W75: 13 | X75: 250102315 | Y75: 18845296944 | Z75: 23 | AA75: 15 | AB75: 8008 | AC75: 汉族 | AD75: 1998-11-20 | AE75: 群众 | AF75: 154600 | AG75: 15334764036 | AH75: rsa815247028@163.com
A76: 27 | B76: 黑龙江林业职业技术学院 | C76: 管理E岗 | D76: 31 | E76: 孙逸男 | F76: 18-3 | G76: 男 | H76: 23232619960528003X | I76: 3- | J76: -12 | K76: 3-031-12 | L76: 75.70 | M76: 71.08 | N76: 0 | O76: 18日 | P76: 18 | Q76: 3 | R76: 6 | S76: 68 | U76: 68 | V76: 入围 | W76: 5 | X76: 250102416 | Y76: 18945357217 | Z76: 24 | AA76: 16 | AB76: 8008 | AC76: 汉族 | AD76: 1996-05-28 | AE76: 群众 | AF76: 150000 | AG76: 19214650406 | AH76: sunyiwang1211@qq.com
A77: 17 | B77: 黑龙江林业职业技术学院 | C77: 管理E岗 | D77: 31 | E77: 李晨曦 | F77: 18-3 | G77: 男 | H77: 230602199805272513 | I77: 3- | J77: -13 | K77: 3-031-13 | L77: 77.60 | M77: 63.29 | N77: 0 | O77: 18日 | P77: 18 | Q77: 3 | R77: 6 | S77: 53.75 | U77: 53.75 | W77: 31 | X77: 250102813 | Y77: 18646727655 | Z77: 28 | AA77: 13 | AB77: 8008 | AC77: 汉族 | AD77: 1998-05-27 | AE77: 共青团员 | AF77: 163000 | AG77: 13936829778 | AH77: 1242620613@qq.com
A78: 25 | B78: 黑龙江林业职业技术学院 | C78: 管理E岗 | D78: 31 | E78: 曲涵 | F78: 18-3 | G78: 男 | H78: 231002199702092032 | I78: 3- | J78: -14 | K78: 3-031-14 | L78: 82.72 | M78: 68.34 | N78: 0 | O78: 18日 | P78: 18 | Q78: 3 | R78: 6 | S78: 58.75 | U78: 58.75 | W78: 24 | X78: 250101806 | Y78: 17858509850 | Z78: 18 | AA78: 6 | AB78: 8008 | AC78: 汉族 | AD78: 1997-02-09 | AE78: 共青团员 | AF78: 157000 | AG78: 13766659803 | AH78: 204545550@qq.com
A79: 18 | B79: 黑龙江林业职业技术学院 | C79: 管理E岗 | D79: 31 | E79: 李国威 | F79: 18-3 | G79: 男 | H79: 230826199811250216 | I79: 3- | J79: -15 | K79: 3-031-15 | L79: 83.96 | M79: 69.13 | N79: 0 | O79: 18日 | P79: 18 | Q79: 3 | R79: 6 | S79: 59.25 | U79: 59.25 | W79: 20 | X79: 250103218 | Y79: 13101506258 | Z79: 32 | AA79: 18 | AB79: 8008 | AC79: 汉族 | AD79: 1998-11-25 | AE79: 共青团员 | AF79: 154300 | AG79: 18814540338 | AH79: 2423131020@qq.com
A80: 30 | B80: 黑龙江林业职业技术学院 | C80: 管理E岗 | D80: 31 | E80: 闫佳亮 | F80: 18-3 | G80: 男 | H80: 232103199602210217 | I80: 3- | J80: -16 | K80: 3-031-16 | L80: 74.12 | M80: 73.75 | N80: 0 | O80: 18日 | P80: 18 | Q80: 3 | R80: 6 | S80: 73.5 | U80: 73.5 | V80: 入围 | W80: 3 | X80: 250102128 | Y80: 15776542191 | Z80: 21 | AA80: 28 | AB80: 8008 | AC80: 汉族 | AD80: 1996-02-21 | AE80: 群众 | AF80: 150026 | AG80: 13845126618 | AH80: 715679925@qq.com
A81: 19 | B81: 黑龙江林业职业技术学院 | C81: 管理E岗 | D81: 31 | E81: 李双龙 | F81: 18-3 | G81: 男 | H81: 230221199910224019 | I81: 3- | J81: -17 | K81: 3-031-17 | L81: 81.12 | M81: 71.90 | N81: 0 | O81: 18日 | P81: 18 | Q81: 3 | R81: 6 | S81: 65.75 | U81: 65.75 | V81: 入围 | W81: 12 | X81: 250103708 | Y81: 18604628039 | Z81: 37 | AA81: 8 | AB81: 8008 | AC81: 汉族 | AD81: 1999-10-22 | AE81: 共青团员 | AF81: 161000 | AG81: 13969560729 | AH81: 2353019152@qq.com
A82: 22 | B82: 黑龙江林业职业技术学院 | C82: 管理E岗 | D82: 31 | E82: 刘航 | F82: 18-3 | G82: 男 | H82: 230202199603211411 | I82: 3- | J82: 缺考 | K82: 0 | N82: 0 | O82: 18日 | P82: 18 | Q82: 3 | R82: 6 | S82: 59.25 | U82: 59.25 | W82: 20 | X82: 250104423 | Y82: 18800481436 | Z82: 44 | AA82: 23 | AB82: 8008 | AC82: 汉族 | AD82: 1996-03-21 | AE82: 中共预备党员 | AF82: 150000 | AG82: 15546251456 | AH82: 690398019@qq.com
A83: 3 | B83: 黑龙江林业职业技术学院 | C83: 专职就业指导教师 | D83: 25 | E83: 王佳旬 | F83: 18-4 | G83: 女 | H83: 230321198604291206 | I83: 4- | J83: -1 | K83: 4-025-01 | L83: 84.32 | M83: 76.03 | N83: 0 | O83: 18日 | P83: 3 | Q83: 4 | R83: 1 | S83: 70.5 | U83: 70.5 | V83: 入围 | W83: 1 | X83: 250102313 | Y83: 18545316296 | Z83: 23 | AA83: 13 | AB83: 8008 | AC83: 汉族 | AD83: 1986-04-29 | AE83: 中共党员 | AF83: 158221 | AG83: 18545317297 | AH83: 109874765@qq.com
A84: 2 | B84: 黑龙江林业职业技术学院 | C84: 专职就业指导教师 | D84: 25 | E84: 孙研 | F84: 18-4 | G84: 女 | H84: 232332199310250025 | I84: 4- | J84: -2 | K84: 4-025-02 | L84: 85.34 | M84: 73.74 | N84: 0 | O84: 18日 | P84: 3 | Q84: 4 | R84: 1 | S84: 66 | U84: 66 | V84: 入围 | W84: 2 | X84: 250103719 | Y84: 18800468710 | Z84: 37 | AA84: 19 | AB84: 8008 | AC84: 汉族 | AD84: 1993-10-25 | AE84: 其他党派 | AF84: 157000 | AG84: 18745185722 | AH84: 1206835341@qq.com
A85: 1 | B85: 黑龙江林业职业技术学院 | C85: 专职就业指导教师 | D85: 25 | E85: 韩世通 | F85: 18-4 | G85: 男 | H85: 230103199712170613 | I85: 4- | J85: 缺考 | K85: 0 | N85: 0 | O85: 18日 | P85: 3 | Q85: 4 | R85: 1 | S85: 29.5 | U85: 29.5 | W85: 4 | X85: 250103408 | Y85: 18846761536 | Z85: 34 | AA85: 8 | AB85: 8008 | AC85: 汉族 | AD85: 1997-12-17 | AE85: 中共党员 | AF85: 150000 | AG85: 18846761536 | AH85: 806170134@qq.com
A86: 13 | B86: 黑龙江林业职业技术学院 | C86: 管理B岗 | D86: 28 | E86: 孙建国 | F86: 18-4 | G86: 男 | H86: 23102619961121551X | I86: 4- | J86: -1 | K86: 4-028-01 | L86: 78.36 | M86: 68.39 | N86: 0 | O86: 18日 | P86: 20 | Q86: 4 | R86: 6 | S86: 61.75 | U86: 61.75 | V86: 入围 | W86: 19 | X86: 250103219 | Y86: 13359898832 | Z86: 32 | AA86: 19 | AB86: 8008 | AC86: 汉族 | AD86: 1996-11-21 | AE86: 中共党员 | AF86: 158327 | AG86: 13504682343 | AH86: 13359898832@163.com
A87: 12 | B87: 黑龙江林业职业技术学院 | C87: 管理B岗 | D87: 28 | E87: 苏晓芙 | F87: 18-4 | G87: 女 | H87: 230606200108150861 | I87: 4- | J87: -2 | K87: 4-028-02 | L87: 83.06 | M87: 67.87 | N87: 0 | O87: 18日 | P87: 20 | Q87: 4 | R87: 6 | S87: 57.75 | U87: 57.75 | V87: 入围 | W87: 26 | X87: 250104506 | Y87: 13303697001 | Z87: 45 | AA87: 6 | AB87: 8008 | AC87: 汉族 | AD87: 2001-08-15 | AE87: 中共党员 | AF87: 163000 | AG87: 13159995389 | AH87: 1148706141@qq.com
A88: 5 | B88: 黑龙江林业职业技术学院 | C88: 管理B岗 | D88: 28 | E88: 高鹏 | F88: 18-4 | G88: 男 | H88: 231024199909056512 | I88: 4- | J88: -3 | K88: 4-028-03 | L88: 82.28 | M88: 74.61 | N88: 0 | O88: 18日 | P88: 20 | Q88: 4 | R88: 6 | S88: 69.5 | U88: 69.5 | V88: 入围 | W88: 5 | X88: 250103306 | Y88: 15734638167 | Z88: 33 | AA88: 6 | AB88: 8008 | AC88: 汉族 | AD88: 1999-09-05 | AE88: 中共预备党员 | AF88: 157299 | AG88: 15645386875 | AH88: 2357552051@qq.com
A89: 6 | B89: 黑龙江林业职业技术学院 | C89: 管理B岗 | D89: 28 | E89: 郭巍 | F89: 18-4 | G89: 女 | H89: 230184199711234222 | I89: 4- | J89: -4 | K89: 4-028-04 | L89: 77.46 | M89: 75.53 | N89: 0 | O89: 18日 | P89: 20 | Q89: 4 | R89: 6 | S89: 74.25 | U89: 74.25 | V89: 入围 | W89: 1 | X89: 250104106 | Y89: 13263683867 | Z89: 41 | AA89: 6 | AB89: 8008 | AC89: 汉族 | AD89: 1997-11-23 | AE89: 中共党员 | AF89: 150000 | AG89: 15587196159 | AH89: 1421971053@qq.com
A90: 7 | B90: 黑龙江林业职业技术学院 | C90: 管理B岗 | D90: 28 | E90: 郭子瑜 | F90: 18-4 | G90: 女 | H90: 231024200011206321 | I90: 4- | J90: -5 | K90: 4-028-05 | L90: 79.10 | M90: 68.69 | N90: 0 | O90: 18日 | P90: 20 | Q90: 4 | R90: 6 | S90: 61.75 | U90: 61.75 | V90: 入围 | W90: 19 | X90: 250101727 | Y90: 15204533832 | Z90: 17 | AA90: 27 | AB90: 8008 | AC90: 汉族 | AD90: 2000-11-20 | AE90: 共青团员 | AF90: 157000 | AG90: 13836340788 | AH90: 1817820395@qq.com
A91: 22 | B91: 黑龙江林业职业技术学院 | C91: 管理B岗 | D91: 28 | E91: 张馨月 | F91: 18-4 | G91: 女 | H91: 231085199309253320 | I91: 4- | J91: -6 | K91: 4-028-06 | L91: 79.36 | M91: 70.74 | N91: 0 | O91: 18日 | P91: 20 | Q91: 4 | R91: 6 | S91: 65 | U91: 65 | V91: 入围 | W91: 14 | X91: 250103521 | Y91: 13917855466 | Z91: 35 | AA91: 21 | AB91: 8008 | AC91: 汉族 | AD91: 1993-09-25 | AE91: 中共党员 | AF91: 157513 | AG91: 18249328678 | AH91: 964531444@qq.com
A92: 14 | B92: 黑龙江林业职业技术学院 | C92: 管理B岗 | D92: 28 | E92: 孙悦 | F92: 18-4 | G92: 女 | H92: 231024199904257366 | I92: 4- | J92: -7 | K92: 4-028-07 | L92: 84.58 | M92: 73.73 | N92: 0 | O92: 18日 | P92: 20 | Q92: 4 | R92: 6 | S92: 66.5 | U92: 66.5 | V92: 入围 | W92: 11 | X92: 250102019 | Y92: 18814516676 | Z92: 20 | AA92: 19 | AB92: 8008 | AC92: 汉族 | AD92: 1999-04-25 | AE92: 共青团员 | AF92: 157222 | AG92: 13845322908 | AH92: 1930666950@qq.com
A93: 16 | B93: 黑龙江林业职业技术学院 | C93: 管理B岗 | D93: 28 | E93: 徐浩然 | F93: 18-4 | G93: 女 | H93: 230181199904150325 | I93: 4- | J93: -8 | K93: 4-028-08 | L93: 84.88 | M93: 72.05 | N93: 0 | O93: 18日 | P93: 20 | Q93: 4 | R93: 6 | S93: 63.5 | U93: 63.5 | V93: 入围 | W93: 16 | X93: 250103415 | Y93: 17645008676 | Z93: 34 | AA93: 15 | AB93: 8008 | AC93: 汉族 | AD93: 1999-04-15 | AE93: 中共预备党员 | AF93: 150300 | AG93: 13936046246 | AH93: 17645008676@163.com
A94: 11 | B94: 黑龙江林业职业技术学院 | C94: 管理B岗 | D94: 28 | E94: 李红伟 | F94: 18-4 | G94: 女 | H94: 230606198206245223 | I94: 4- | J94: -9 | K94: 4-028-09 | L94: 78.78 | M94: 67.81 | N94: 0 | O94: 18日 | P94: 20 | Q94: 4 | R94: 6 | S94: 60.5 | U94: 60.5 | V94: 入围 | W94: 24 | X94: 250104924 | Y94: 18846115592 | Z94: 49 | AA94: 24 | AB94: 8008 | AC94: 汉族 | AD94: 1982-06-24 | AE94: 中共党员 | AF94: 150080 | AG94: 18845081291 | AH94: 1402452345@qq.com
A95: 9 | B95: 黑龙江林业职业技术学院 | C95: 管理B岗 | D95: 28 | E95: 黄佳煜 | F95: 18-4 | G95: 女 | H95: 230804198812010924 | I95: 4- | J95: -10 | K95: 4-028-10 | L95: 84.82 | M95: 73.23 | N95: 0 | O95: 18日 | P95: 20 | Q95: 4 | R95: 6 | S95: 65.5 | U95: 65.5 | V95: 入围 | W95: 13 | X95: 250102414 | Y95: 18204547239 | Z95: 24 | AA95: 14 | AB95: 8008 | AC95: 汉族 | AD95: 1988-12-01 | AE95: 中共党员 | AF95: 154000 | AG95: 13845471112 | AH95: 249516182@qq.com
A96: 15 | B96: 黑龙江林业职业技术学院 | C96: 管理B岗 | D96: 28 | E96: 王洁 | F96: 18-4 | G96: 女 | H96: 230421199805212420 | I96: 4- | J96: -11 | K96: 4-028-11 | L96: 83.50 | M96: 74.35 | N96: 0 | O96: 18日 | P96: 20 | Q96: 4 | R96: 6 | S96: 68.25 | U96: 68.25 | V96: 入围 | W96: 6 | X96: 250103606 | Y96: 18714666273 | Z96: 36 | AA96: 6 | AB96: 8008 | AC96: 汉族 | AD96: 1998-05-21 | AE96: 共青团员 | AF96: 150081 | AG96: 13359702081 | AH96: 1036623152@qq.com
A97: 10 | B97: 黑龙江林业职业技术学院 | C97: 管理B岗 | D97: 28 | E97: 李聪 | F97: 18-4 | G97: 女 | H97: 231026200011041523 | I97: 4- | J97: -12 | K97: 4-028-12 | L97: 80.70 | M97: 72.03 | N97: 0 | O97: 18日 | P97: 20 | Q97: 4 | R97: 6 | S97: 66.25 | U97: 66.25 | V97: 入围 | W97: 12 | X97: 250101815 | Y97: 18746752602 | Z97: 18 | AA97: 15 | AB97: 8008 | AC97: 汉族 | AD97: 2000-11-04 | AE97: 共青团员 | AF97: 158300 | AG97: 13104088197 | AH97: 2014818965@qq.com
A98: 19 | B98: 黑龙江林业职业技术学院 | C98: 管理B岗 | D98: 28 | E98: 张程程 | F98: 18-4 | G98: 女 | H98: 230107199908232228 | I98: 4- | J98: -13 | K98: 4-028-13 | L98: 77.94 | M98: 72.13 | N98: 0 | O98: 18日 | P98: 20 | Q98: 4 | R98: 6 | S98: 68.25 | U98: 68.25 | V98: 入围 | W98: 6 | X98: 250103226 | Y98: 17745197799 | Z98: 32 | AA98: 26 | AB98: 8008 | AC98: 汉族 | AD98: 1999-08-23 | AE98: 中共党员 | AF98: 150000 | AG98: 13895760447 | AH98: 1005226041@qq.com
A99: 21 | B99: 黑龙江林业职业技术学院 | C99: 管理B岗 | D99: 28 | E99: 张秋生 | F99: 18-4 | G99: 男 | H99: 232324200008184536 | I99: 4- | J99: -14 | K99: 4-028-14 | L99: 75.66 | M99: 60.41 | N99: 0 | O99: 18日 | P99: 20 | Q99: 4 | R99: 6 | S99: 50.25 | U99: 50.25 | V99: 入围 | W99: 31 | X99: 250104119 | Y99: 13796549813 | Z99: 41 | AA99: 19 | AB99: 8008 | AC99: 汉族 | AD99: 2000-08-18 | AE99: 群众 | AF99: 152182 | AG99: 18846595272 | AH99: 230798567@qq.com
A100: 8 | B100: 黑龙江林业职业技术学院 | C100: 管理B岗 | D100: 28 | E100: 黄骜 | F100: 18-4 | G100: 男 | H100: 230522199607072270 | I100: 4- | J100: -15 | K100: 4-028-15 | L100: 76.46 | M100: 71.38 | N100: 0 | O100: 18日 | P100: 20 | Q100: 4 | R100: 6 | S100: 68 | U100: 68 | V100: 入围 | W100: 8 | X100: 250103930 | Y100: 13796390039 | Z100: 39 | AA100: 30 | AB100: 8008 | AC100: 汉族 | AD100: 1996-07-07 | AE100: 群众 | AF100: 155811 | AG100: 15545392777 | AH100: iiirssszw@mozmail.com
A101: 4 | B101: 黑龙江林业职业技术学院 | C101: 管理B岗 | D101: 28 | E101: 高洁 | F101: 18-4 | G101: 女 | H101: 231005199206122027 | I101: 4- | J101: -16 | K101: 4-028-16 | L101: 79.60 | M101: 68.44 | N101: 0 | O101: 18日 | P101: 20 | Q101: 4 | R101: 6 | S101: 61 | U101: 61 | V101: 入围 | W101: 22 | X101: 250103209 | Y101: 18603633083 | Z101: 32 | AA101: 9 | AB101: 8008 | AC101: 汉族 | AD101: 1992-06-12 | AE101: 中共党员 | AF101: 150030 | AG101: 13284965078 | AH101: 2421548565@qq.com
A102: 20 | B102: 黑龙江林业职业技术学院 | C102: 管理B岗 | D102: 28 | E102: 张欢 | F102: 18-4 | G102: 女 | H102: 411381199602223926 | I102: 4- | J102: -17 | K102: 4-028-17 | L102: 78.92 | M102: 76.12 | N102: 0 | O102: 18日 | P102: 20 | Q102: 4 | R102: 6 | S102: 74.25 | U102: 74.25 | V102: 入围 | W102: 1 | X102: 250101713 | Y102: 18336403957 | Z102: 17 | AA102: 13 | AB102: 8008 | AC102: 汉族 | AD102: 1996-02-22 | AE102: 共青团员 | AF102: 157100 | AG102: 19845302434 | AH102: 1441382264@qq.com
A103: 17 | B103: 黑龙江林业职业技术学院 | C103: 管理B岗 | D103: 28 | E103: 杨莹 | F103: 18-4 | G103: 女 | H103: 430527199803120945 | I103: 4- | J103: 缺考 | K103: 0 | N103: 0 | O103: 18日 | P103: 20 | Q103: 4 | R103: 6 | S103: 63.5 | U103: 63.5 | V103: 入围 | W103: 16 | X103: 250102026 | Y103: 13188280838 | Z103: 20 | AA103: 26 | AB103: 8008 | AC103: 苗族 | AD103: 1998-03-12 | AE103: 共青团员 | AF103: 410000 | AG103: 13188289868 | AH103: 983990571@qq.com
A104: 18 | B104: 黑龙江林业职业技术学院 | C104: 管理B岗 | D104: 28 | E104: 衣乾宁 | F104: 18-4 | G104: 女 | H104: 231085199703030045 | I104: 4- | J104: 缺考 | K104: 0 | N104: 0 | O104: 18日 | P104: 20 | Q104: 4 | R104: 6 | S104: 48.5 | U104: 48.5 | V104: 入围 | W104: 33 | X104: 250104407 | Y104: 13359693939 | Z104: 44 | AA104: 7 | AB104: 8008 | AC104: 汉族 | AD104: 1997-03-03 | AE104: 群众 | AF104: 150000 | AG104: 15604636666 | AH104: 799030080@qq.com
A105: 23 | B105: 黑龙江林业职业技术学院 | C105: 管理B岗 | D105: 28 | E105: 张一凡 | F105: 18-4 | G105: 男 | H105: 231004199612080014 | I105: 4- | J105: 缺考 | K105: 0 | N105: 0 | O105: 18日 | P105: 20 | Q105: 4 | R105: 6 | S105: 64.5 | U105: 64.5 | V105: 入围 | W105: 15 | X105: 250102102 | Y105: 19845065898 | Z105: 21 | AA105: 2 | AB105: 8008 | AC105: 汉族 | AD105: 1996-12-08 | AE105: 中共党员 | AF105: 157000 | AG105: 13946336708 | AH105: 2632163006@qq.com
A106: 30 | B106: 黑龙江林业职业技术学院 | C106: 管理F岗 | D106: 32 | E106: 李钰 | F106: 18-4 | G106: 女 | H106: 231005199703140525 | I106: 4- | J106: -1 | K106: 4-032-01 | L106: 77.22 | M106: 73.94 | N106: 0 | O106: 18日 | P106: 10 | Q106: 4 | R106: 3 | S106: 71.75 | U106: 71.75 | V106: 入围 | W106: 8 | X106: 250102917 | Y106: 13704530094 | Z106: 29 | AA106: 17 | AB106: 8008 | AC106: 汉族 | AD106: 1997-03-14 | AE106: 群众 | AF106: 157000 | AG106: 15645360314 | AH106: jelena0314@163.com
A107: 25 | B107: 黑龙江林业职业技术学院 | C107: 管理F岗 | D107: 32 | E107: 郭佳玉 | F107: 18-4 | G107: 女 | H107: 232301199709262285 | I107: 4- | J107: -2 | K107: 4-032-02 | L107: 79.98 | M107: 75.49 | N107: 0 | O107: 18日 | P107: 10 | Q107: 4 | R107: 3 | S107: 72.5 | U107: 72.5 | V107: 入围 | W107: 6 | X107: 250103903 | Y107: 18814665206 | Z107: 39 | AA107: 3 | AB107: 8008 | AC107: 汉族 | AD107: 1997-09-26 | AE107: 共青团员 | AF107: 152000 | AG107: 13804673180 | AH107: 2359627248@qq.com
A108: 27 | B108: 黑龙江林业职业技术学院 | C108: 管理F岗 | D108: 32 | E108: 李妍 | F108: 18-4 | G108: 女 | H108: 230281200012244327 | I108: 4- | J108: -3 | K108: 4-032-03 | L108: 86.36 | M108: 78.79 | N108: 0 | O108: 18日 | P108: 10 | Q108: 4 | R108: 3 | S108: 73.75 | U108: 73.75 | V108: 入围 | W108: 2 | X108: 250103018 | Y108: 13604676532 | Z108: 30 | AA108: 18 | AB108: 8008 | AC108: 汉族 | AD108: 2000-12-24 | AE108: 共青团员 | AF108: 157001 | AG108: 13936900802 | AH108: 1015247829@qq.com
A109: 24 | B109: 黑龙江林业职业技术学院 | C109: 管理F岗 | D109: 32 | E109: 曹禹 | F109: 18-4 | G109: 女 | H109: 230902199703110325 | I109: 4- | J109: -4 | K109: 4-032-04 | L109: 81.16 | M109: 76.86 | N109: 0 | O109: 18日 | P109: 10 | Q109: 4 | R109: 3 | S109: 74 | U109: 74 | V109: 入围 | W109: 1 | X109: 250101907 | Y109: 15765347023 | Z109: 19 | AA109: 7 | AB109: 8008 | AC109: 汉族 | AD109: 1997-03-11 | AE109: 群众 | AF109: 154100 | AG109: 19845221937 | AH109: 1249268395@qq.com
A110: 31 | B110: 黑龙江林业职业技术学院 | C110: 管理F岗 | D110: 32 | E110: 孙月 | F110: 18-4 | G110: 女 | H110: 232330199803144228 | I110: 4- | J110: -5 | K110: 4-032-05 | L110: 79.54 | M110: 74.87 | N110: 0 | O110: 18日 | P110: 10 | Q110: 4 | R110: 3 | S110: 71.75 | U110: 71.75 | V110: 入围 | W110: 8 | X110: 250103815 | Y110: 15764557186 | Z110: 38 | AA110: 15 | AB110: 8008 | AC110: 汉族 | AD110: 1998-03-14 | AE110: 共青团员 | AF110: 152400 | AG110: 13089679597 | AH110: 3567600097@qq.com
A111: 26 | B111: 黑龙江林业职业技术学院 | C111: 管理F岗 | D111: 32 | E111: 李爽 | F111: 18-4 | G111: 女 | H111: 231084199901243723 | I111: 4- | J111: -6 | K111: 4-032-06 | L111: 81.50 | M111: 75.65 | N111: 0 | O111: 18日 | P111: 10 | Q111: 4 | R111: 3 | S111: 71.75 | U111: 71.75 | V111: 入围 | W111: 8 | X111: 250103613 | Y111: 18724533630 | Z111: 36 | AA111: 13 | AB111: 8008 | AC111: 汉族 | AD111: 1999-01-24 | AE111: 共青团员 | AF111: 157000 | AG111: 15246304786 | AH111: 2352459738@qq.com
A112: 33 | B112: 黑龙江林业职业技术学院 | C112: 管理F岗 | D112: 32 | E112: 张倩玉 | F112: 18-4 | G112: 女 | H112: 230104199908290429 | I112: 4- | J112: -7 | K112: 4-032-07 | L112: 77.36 | M112: 74.14 | N112: 0 | O112: 18日 | P112: 10 | Q112: 4 | R112: 3 | S112: 72 | U112: 72 | V112: 入围 | W112: 7 | X112: 250101913 | Y112: 13796677946 | Z112: 19 | AA112: 13 | AB112: 8008 | AC112: 汉族 | AD112: 1999-08-29 | AE112: 共青团员 | AF112: 150000 | AG112: 15846389065 | AH112: 943060414@qq.com
A113: 32 | B113: 黑龙江林业职业技术学院 | C113: 管理F岗 | D113: 32 | E113: 于洋 | F113: 18-4 | G113: 女 | H113: 230624199905102026 | I113: 4- | J113: -8 | K113: 4-032-08 | L113: 83.54 | M113: 77.07 | N113: 0 | O113: 18日 | P113: 10 | Q113: 4 | R113: 3 | S113: 72.75 | U113: 72.75 | V113: 入围 | W113: 4 | X113: 250101909 | Y113: 18800420907 | Z113: 19 | AA113: 9 | AB113: 8008 | AC113: 汉族 | AD113: 1999-05-10 | AE113: 共青团员 | AF113: 163000 | AG113: 15845859465 | AH113: 1824157531@qq.com
A114: 28 | B114: 黑龙江林业职业技术学院 | C114: 管理F岗 | D114: 32 | E114: 李杨 | F114: 18-4 | G114: 女 | H114: 231084199602122921 | I114: 4- | J114: -9 | K114: 4-032-09 | L114: 82.36 | M114: 76.59 | N114: 0 | O114: 18日 | P114: 10 | Q114: 4 | R114: 3 | S114: 72.75 | U114: 72.75 | V114: 入围 | W114: 4 | X114: 250103718 | Y114: 18714402301 | Z114: 37 | AA114: 18 | AB114: 8008 | AC114: 汉族 | AD114: 1996-02-12 | AE114: 群众 | AF114: 157421 | AG114: 15214532818 | AH114: 871079943@qq.com
A115: 29 | B115: 黑龙江林业职业技术学院 | C115: 管理F岗 | D115: 32 | E115: 李逸峰 | F115: 18-4 | G115: 女 | H115: 231004199805070728 | I115: 4- | J115: -10 | K115: 4-032-10 | L115: 82.52 | M115: 76.81 | N115: 0 | O115: 18日 | P115: 10 | Q115: 4 | R115: 3 | S115: 73 | U115: 73 | V115: 入围 | W115: 3 | X115: 250102516 | Y115: 15733118036 | Z115: 25 | AA115: 16 | AB115: 8008 | AC115: 汉族 | AD115: 1998-05-07 | AE115: 共青团员 | AF115: 157000 | AG115: 13009898501 | AH115: liyifengemail@163.com
A116: 11 | B116: 黑龙江林业职业技术学院 | C116: 管理G岗 | D116: 33 | E116: 林崴铠 | F116: 18-5 | G116: 男 | H116: 232321200009110417 | I116: 5- | J116: -1 | K116: 5-033-01 | L116: 75.22 | M116: 65.34 | N116: 0 | O116: 18日 | P116: 36 | Q116: 5 | R116: 12 | S116: 58.75 | U116: 58.75 | V116: 入围 | W116: 36 | X116: 250103327 | Y116: 13762121911 | Z116: 33 | AA116: 27 | AB116: 8008 | AC116: 汉族 | AD116: 2000-09-11 | AE116: 共青团员 | AF116: 152300 | AG116: 15245502485 | AH116: yanziqisuo@163.com
A117: 36 | B117: 黑龙江林业职业技术学院 | C117: 管理G岗 | D117: 33 | E117: 庄超 | F117: 18-5 | G117: 男 | H117: 231004198706170315 | I117: 5- | J117: -2 | K117: 5-033-02 | L117: 82.92 | M117: 76.82 | N117: 0 | O117: 18日 | P117: 36 | Q117: 5 | R117: 12 | S117: 72.75 | U117: 72.75 | V117: 入围 | W117: 5 | X117: 250104517 | Y117: 13674689877 | Z117: 45 | AA117: 17 | AB117: 8008 | AC117: 汉族 | AD117: 1987-06-17 | AE117: 中共党员 | AF117: 150026 | AG117: 13945362568 | AH117: zhuangchao9099@163.com
A118: 26 | B118: 黑龙江林业职业技术学院 | C118: 管理G岗 | D118: 33 | E118: 颜令华 | F118: 18-5 | G118: 男 | H118: 231025200001075416 | I118: 5- | J118: -3 | K118: 5-033-03 | L118: 83.66 | M118: 77.71 | N118: 0 | O118: 18日 | P118: 36 | Q118: 5 | R118: 12 | S118: 73.75 | U118: 73.75 | V118: 入围 | W118: 4 | X118: 250104817 | Y118: 15045318717 | Z118: 48 | AA118: 17 | AB118: 8008 | AC118: 汉族 | AD118: 2000-01-07 | AE118: 共青团员 | AF118: 157600 | AG118: 15945366549 | AH118: 975859344@qq.com
A119: 29 | B119: 黑龙江林业职业技术学院 | C119: 管理G岗 | D119: 33 | E119: 张凤鑫 | F119: 18-5 | G119: 男 | H119: 230221199809214019 | I119: 5- | J119: -4 | K119: 5-033-04 | L119: 77.50 | M119: 59.80 | N119: 0 | O119: 18日 | P119: 36 | Q119: 5 | R119: 12 | S119: 48 | U119: 48 | W119: 51 | X119: 250102618 | Y119: 18246243830 | Z119: 26 | AA119: 18 | AB119: 8008 | AC119: 汉族 | AD119: 1998-09-21 | AE119: 共青团员 | AF119: 161100 | AG119: 18246228420 | AH119: 1586861198@qq.com
A120: 32 | B120: 黑龙江林业职业技术学院 | C120: 管理G岗 | D120: 33 | E120: 张有博 | F120: 18-5 | G120: 男 | H120: 232303199801100011 | I120: 5- | J120: -5 | K120: 5-033-05 | L120: 79.06 | M120: 71.37 | N120: 0 | O120: 18日 | P120: 36 | Q120: 5 | R120: 12 | S120: 66.25 | U120: 66.25 | V120: 入围 | W120: 16 | X120: 250101926 | Y120: 17382865029 | Z120: 19 | AA120: 26 | AB120: 8008 | AC120: 汉族 | AD120: 1998-01-10 | AE120: 共青团员 | AF120: 313000 | AG120: 18346519957 | AH120: 1179512599@qq.com
A121: 10 | B121: 黑龙江林业职业技术学院 | C121: 管理G岗 | D121: 33 | E121: 李欣泽 | F121: 18-5 | G121: 男 | H121: 231004200107101211 | I121: 5- | J121: -6 | K121: 5-033-06 | L121: 82.64 | M121: 78.36 | N121: 0 | O121: 18日 | P121: 36 | Q121: 5 | R121: 12 | S121: 75.5 | U121: 75.5 | V121: 入围 | W121: 2 | X121: 250102210 | Y121: 18845385478 | Z121: 22 | AA121: 10 | AB121: 8008 | AC121: 汉族 | AD121: 2001-07-10 | AE121: 共青团员 | AF121: 157000 | AG121: 13836304880 | AH121: 1762436268@qq.com
A122: 4 | B122: 黑龙江林业职业技术学院 | C122: 管理G岗 | D122: 33 | E122: 董辛伟 | F122: 18-5 | G122: 男 | H122: 230603199902040550 | I122: 5- | J122: -7 | K122: 5-033-07 | L122: 77.38 | M122: 72.80 | N122: 0 | O122: 18日 | P122: 36 | Q122: 5 | R122: 12 | S122: 69.75 | U122: 69.75 | V122: 入围 | W122: 9 | X122: 250102716 | Y122: 18845093649 | Z122: 27 | AA122: 16 | AB122: 8008 | AC122: 汉族 | AD122: 1999-02-04 | AE122: 共青团员 | AF122: 163711 | AG122: 15246088807 | AH122: 3123256458@qq.com
A123: 15 | B123: 黑龙江林业职业技术学院 | C123: 管理G岗 | D123: 33 | E123: 牟彦旭 | F123: 18-5 | G123: 男 | H123: 230321199409125514 | I123: 5- | J123: -8 | K123: 5-033-08 | L123: 84.84 | M123: 78.49 | N123: 0 | O123: 18日 | P123: 36 | Q123: 5 | R123: 12 | S123: 74.25 | U123: 74.25 | V123: 入围 | W123: 3 | X123: 250104224 | Y123: 13011037075 | Z123: 42 | AA123: 24 | AB123: 8008 | AC123: 汉族 | AD123: 1994-09-12 | AE123: 群众 | AF123: 157000 | AG123: 13946841822 | AH123: 1085600640@qq.com
A124: 27 | B124: 黑龙江林业职业技术学院 | C124: 管理G岗 | D124: 33 | E124: 杨艺 | F124: 18-5 | G124: 男 | H124: 230381199611125012 | I124: 5- | J124: -9 | K124: 5-033-09 | L124: 80.46 | M124: 75.83 | N124: 0 | O124: 18日 | P124: 36 | Q124: 5 | R124: 12 | S124: 72.75 | U124: 72.75 | V124: 入围 | W124: 5 | X124: 250101920 | Y124: 18584655891 | Z124: 19 | AA124: 20 | AB124: 8008 | AC124: 汉族 | AD124: 1996-11-12 | AE124: 群众 | AF124: 158402 | AG124: 13069640903 | AH124: 13069640903@163.com
A125: 22 | B125: 黑龙江林业职业技术学院 | C125: 管理G岗 | D125: 33 | E125: 王东 | F125: 18-5 | G125: 男 | H125: 231081199701100235 | I125: 5- | J125: -10 | K125: 5-033-10 | L125: 73.02 | M125: 68.96 | N125: 0 | O125: 18日 | P125: 36 | Q125: 5 | R125: 12 | S125: 66.25 | U125: 66.25 | V125: 入围 | W125: 16 | X125: 250104712 | Y125: 13359561704 | Z125: 47 | AA125: 12 | AB125: 8008 | AC125: 汉族 | AD125: 1997-01-10 | AE125: 中共党员 | AF125: 157300 | AG125: 13134533756 | AH125: 1085361397@qq.com
A126: 6 | B126: 黑龙江林业职业技术学院 | C126: 管理G岗 | D126: 33 | E126: 何晨光 | F126: 18-5 | G126: 男 | H126: 230833199801180334 | I126: 5- | J126: -11 | K126: 5-033-11 | L126: 74.50 | M126: 60.25 | N126: 0 | O126: 18日 | P126: 36 | Q126: 5 | R126: 12 | S126: 50.75 | U126: 50.75 | W126: 49 | X126: 250102415 | Y126: 18800453849 | Z126: 24 | AA126: 15 | AB126: 8008 | AC126: 汉族 | AD126: 1998-01-18 | AE126: 共青团员 | AF126: 156511 | AG126: 13946484792 | AH126: 178341421@qq.com
A127: 12 | B127: 黑龙江林业职业技术学院 | C127: 管理G岗 | D127: 33 | E127: 刘明晨 | F127: 18-5 | G127: 男 | H127: 231102199209151313 | I127: 5- | J127: -12 | K127: 5-033-12 | L127: 78.86 | M127: 69.94 | N127: 0 | O127: 18日 | P127: 36 | Q127: 5 | R127: 12 | S127: 64 | U127: 64 | V127: 入围 | W127: 22 | X127: 250102306 | Y127: 13903081901 | Z127: 23 | AA127: 6 | AB127: 8008 | AC127: 汉族 | AD127: 1992-09-15 | AE127: 共青团员 | AF127: 164300 | AG127: 13845680805 | AH127: 77319923@qq.com
A128: 1 | B128: 黑龙江林业职业技术学院 | C128: 管理G岗 | D128: 33 | E128: 曹凤鸣 | F128: 18-5 | G128: 男 | H128: 232303199609071310 | I128: 5- | J128: -13 | K128: 5-033-13 | L128: 83.64 | M128: 73.66 | N128: 0 | O128: 18日 | P128: 36 | Q128: 5 | R128: 12 | S128: 67 | U128: 67 | V128: 入围 | W128: 12 | X128: 250102423 | Y128: 15146267585 | Z128: 24 | AA128: 23 | AB128: 8008 | AC128: 汉族 | AD128: 1996-09-07 | AE128: 共青团员 | AF128: 163000 | AG128: 15765572548 | AH128: feng180298@163.com
A129: 35 | B129: 黑龙江林业职业技术学院 | C129: 管理G岗 | D129: 33 | E129: 周钰博 | F129: 18-5 | G129: 男 | H129: 231002199901310012 | I129: 5- | J129: -14 | K129: 5-033-14 | L129: 83.68 | M129: 71.42 | N129: 0 | O129: 18日 | P129: 36 | Q129: 5 | R129: 12 | S129: 63.25 | U129: 63.25 | V129: 入围 | W129: 25 | X129: 250101826 | Y129: 19168688982 | Z129: 18 | AA129: 26 | AB129: 8008 | AC129: 汉族 | AD129: 1999-01-31 | AE129: 共青团员 | AF129: 157000 | AG129: 15145338982 | AH129: 445107667@qq.com
A130: 34 | B130: 黑龙江林业职业技术学院 | C130: 管理G岗 | D130: 33 | E130: 周家玉 | F130: 18-5 | G130: 男 | H130: 231025199611290011 | I130: 5- | J130: -15 | K130: 5-033-15 | L130: 80.40 | M130: 72.06 | N130: 0 | O130: 18日 | P130: 36 | Q130: 5 | R130: 12 | S130: 66.5 | U130: 66.5 | V130: 入围 | W130: 15 | X130: 250105003 | Y130: 18236766501 | Z130: 50 | AA130: 3 | AB130: 8008 | AC130: 汉族 | AD130: 1996-11-29 | AE130: 共青团员 | AF130: 157614 | AG130: 15331916276 | AH130: 498077801@qq.com
A131: 17 | B131: 黑龙江林业职业技术学院 | C131: 管理G岗 | D131: 33 | E131: 宋梓豪 | F131: 18-5 | G131: 男 | H131: 230106199501220819 | I131: 5- | J131: -16 | K131: 5-033-16 | L131: 77.32 | M131: =U131*0.6+L131*0.4 -> 65.73 | N131: =IFERROR(RANK($M$2,$M$2:$M$509,0),"0") -> 0 | O131: 18日 | P131: 36 | Q131: 5 | R131: 12 | S131: 58 | U131: 58 | W131: 38 | X131: 250104324 | Y131: 13613617220 | Z131: 43 | AA131: 24 | AB131: 8008 | AC131: 汉族 | AD131: 1995-01-22 | AE131: 中共党员 | AF131: 150088 | AG131: 17766551972 | AH131: 3931676364@qq.com
A132: 28 | B132: 黑龙江林业职业技术学院 | C132: 管理G岗 | D132: 33 | E132: 张承泰 | F132: 18-5 | G132: 男 | H132: 231004199708190517 | I132: 5- | J132: -17 | K132: 5-033-17 | L132: 77.08 | M132: 63.83 | N132: 0 | O132: 18日 | P132: 36 | Q132: 5 | R132: 12 | S132: 55 | U132: 55 | W132: 46 | X132: 250102913 | Y132: 17303631373 | Z132: 29 | AA132: 13 | AB132: 8008 | AC132: 朝鲜族 | AD132: 1997-08-19 | AE132: 共青团员 | AF132: 157000 | AG132: 15846753836 | AH132: 496176331@qq.com
A133: 19 | B133: 黑龙江林业职业技术学院 | C133: 管理G岗 | D133: 33 | E133: 田鹏 | F133: 18-5 | G133: 男 | H133: 232302199905173219 | I133: 5- | J133: -18 | K133: 5-033-18 | L133: 81.20 | M133: 72.68 | N133: 0 | O133: 18日 | P133: 36 | Q133: 5 | R133: 12 | S133: 67 | U133: 67 | V133: 入围 | W133: 12 | X133: 250104413 | Y133: 13836714412 | Z133: 44 | AA133: 13 | AB133: 8008 | AC133: 汉族 | AD133: 1999-05-17 | AE133: 共青团员 | AF133: 151400 | AG133: 18945270030 | AH133: 1303014962@qq.com
A134: 31 | B134: 黑龙江林业职业技术学院 | C134: 管理G岗 | D134: 33 | E134: 张文霖 | F134: 18-5 | G134: 男 | H134: 231005199608014010 | I134: 5- | J134: -19 | K134: 5-033-19 | L134: 75.42 | M134: 64.97 | N134: 0 | O134: 18日 | P134: 36 | Q134: 5 | R134: 12 | S134: 58 | U134: 58 | W134: 38 | X134: 250102205 | Y134: 16602851721 | Z134: 22 | AA134: 5 | AB134: 8008 | AC134: 汉族 | AD134: 1996-08-01 | AE134: 群众 | AF134: 157600 | AG134: 15246363344 | AH134: 1905502356@qq.com
A135: 14 | B135: 黑龙江林业职业技术学院 | C135: 管理G岗 | D135: 33 | E135: 马大伟 | F135: 18-5 | G135: 男 | H135: 21090219980226051X | I135: 5- | J135: -20 | K135: 5-033-20 | L135: 77.72 | M135: 69.64 | N135: 0 | O135: 18日 | P135: 36 | Q135: 5 | R135: 12 | S135: 64.25 | U135: 64.25 | V135: 入围 | W135: 21 | X135: 250102403 | Y135: 15909812691 | Z135: 24 | AA135: 3 | AB135: 8008 | AC135: 回族 | AD135: 1998-02-26 | AE135: 共青团员 | AF135: 123000 | AG135: 13841816633 | AH135: 1074356901@qq.com
A136: 30 | B136: 黑龙江林业职业技术学院 | C136: 管理G岗 | D136: 33 | E136: 张天逸 | F136: 18-5 | G136: 男 | H136: 230103199404080616 | I136: 5- | J136: -21 | K136: 5-033-21 | L136: 70.02 | M136: 62.66 | N136: 0 | O136: 18日 | P136: 36 | Q136: 5 | R136: 12 | S136: 57.75 | U136: 57.75 | W136: 40 | X136: 250102630 | Y136: 15765057183 | Z136: 26 | AA136: 30 | AB136: 8008 | AC136: 汉族 | AD136: 1994-04-08 | AE136: 群众 | AF136: 161000 | AG136: 13654560797 | AH136: 1005530466@qq.com
A137: 25 | B137: 黑龙江林业职业技术学院 | C137: 管理G岗 | D137: 33 | E137: 信超 | F137: 18-5 | G137: 男 | H137: 211381199509055916 | I137: 5- | J137: -22 | K137: 5-033-22 | L137: 79.92 | M137: 70.97 | N137: 0 | O137: 18日 | P137: 36 | Q137: 5 | R137: 12 | S137: 65 | U137: 65 | V137: 入围 | W137: 18 | X137: 250102302 | Y137: 15350994108 | Z137: 23 | AA137: 2 | AB137: 8008 | AC137: 汉族 | AD137: 1995-09-05 | AE137: 群众 | AF137: 122000 | AG137: 15642148187 | AH137: 2428431241@qq.com
A138: 20 | B138: 黑龙江林业职业技术学院 | C138: 管理G岗 | D138: 33 | E138: 王成 | F138: 18-5 | G138: 男 | H138: 220582199902061915 | I138: 5- | J138: -23 | K138: 5-033-23 | L138: 79.72 | M138: 74.04 | N138: 0 | O138: 18日 | P138: 36 | Q138: 5 | R138: 12 | S138: 70.25 | U138: 70.25 | V138: 入围 | W138: 8 | X138: 250102719 | Y138: 15584830713 | Z138: 27 | AA138: 19 | AB138: 8008 | AC138: 汉族 | AD138: 1999-02-06 | AE138: 共青团员 | AF138: 134200 | AG138: 13732872713 | AH138: 692875268@qq.com
A139: 23 | B139: 黑龙江林业职业技术学院 | C139: 管理G岗 | D139: 33 | E139: 王洪鹏 | F139: 18-5 | G139: 男 | H139: 22072419990110161X | I139: 5- | J139: -24 | K139: 5-033-24 | L139: 79.34 | M139: 72.99 | N139: 0 | O139: 18日 | P139: 36 | Q139: 5 | R139: 12 | S139: 68.75 | U139: 68.75 | V139: 入围 | W139: 10 | X139: 250102203 | Y139: 16643384084 | Z139: 22 | AA139: 3 | AB139: 8008 | AC139: 汉族 | AD139: 1999-01-10 | AE139: 共青团员 | AF139: 131200 | AG139: 15134394963 | AH139: 3310421473@qq.com
A140: 8 | B140: 黑龙江林业职业技术学院 | C140: 管理G岗 | D140: 33 | E140: 吉学镜 | F140: 18-5 | G140: 男 | H140: 231004199802060313 | I140: 5- | J140: -25 | K140: 5-033-25 | L140: 84.02 | M140: 74.71 | N140: 0 | O140: 18日 | P140: 36 | Q140: 5 | R140: 12 | S140: 68.5 | U140: 68.5 | V140: 入围 | W140: 11 | X140: 250102816 | Y140: 18333582709 | Z140: 28 | AA140: 16 | AB140: 8008 | AC140: 汉族 | AD140: 1998-02-06 | AE140: 共青团员 | AF140: 157100 | AG140: 13946337796 | AH140: 1009556817@qq.com
A141: 9 | B141: 黑龙江林业职业技术学院 | C141: 管理G岗 | D141: 33 | E141: 李佳兴 | F141: 18-5 | G141: 男 | H141: 210921199407310256 | I141: 5- | J141: -26 | K141: 5-033-26 | L141: 73.26 | M141: 72.05 | N141: 0 | O141: 18日 | P141: 36 | Q141: 5 | R141: 12 | S141: 71.25 | U141: 71.25 | V141: 入围 | W141: 7 | X141: 250102908 | Y141: 18609484908 | Z141: 29 | AA141: 8 | AB141: 8008 | AC141: 汉族 | AD141: 1994-07-31 | AE141: 群众 | AF141: 123000 | AG141: 19274181064 | AH141: 577135192@qq.com
A142: 2 | B142: 黑龙江林业职业技术学院 | C142: 管理G岗 | D142: 33 | E142: 陈天浩 | F142: 18-5 | G142: 男 | H142: 230803200007030010 | I142: 5- | J142: -27 | K142: 5-033-27 | L142: 73.50 | M142: 65.55 | N142: 0 | O142: 18日 | P142: 36 | Q142: 5 | R142: 12 | S142: 60.25 | U142: 60.25 | V142: 入围 | W142: 32 | X142: 250103826 | Y142: 19863348097 | Z142: 38 | AA142: 26 | AB142: 8008 | AC142: 汉族 | AD142: 2000-07-03 | AE142: 共青团员 | AF142: 154002 | AG142: 13555586810 | AH142: 2846672495@qq.com
A143: 3 | B143: 黑龙江林业职业技术学院 | C143: 管理G岗 | D143: 33 | E143: 丁丰 | F143: 18-5 | G143: 男 | H143: 15210419950701381X | I143: 5- | J143: 缺考 | K143: 0 | N143: 0 | O143: 18日 | P143: 36 | Q143: 5 | R143: 12 | S143: 55.75 | U143: 55.75 | W143: 43 | X143: 250101702 | Y143: 18249017431 | Z143: 17 | AA143: 2 | AB143: 8008 | AC143: 汉族 | AD143: 1995-07-01 | AE143: 共青团员 | AF143: 21000 | AG143: 13948505510 | AH143: 250776230@qq.com
A144: 5 | B144: 黑龙江林业职业技术学院 | C144: 管理G岗 | D144: 33 | E144: 窦文浩 | F144: 18-5 | G144: 男 | H144: 230622200005080856 | I144: 5- | J144: 缺考 | K144: 0 | N144: 0 | O144: 18日 | P144: 36 | Q144: 5 | R144: 12 | S144: 63.75 | U144: 63.75 | V144: 入围 | W144: 23 | X144: 250104927 | Y144: 18846815585 | Z144: 49 | AA144: 27 | AB144: 8008 | AC144: 汉族 | AD144: 2000-05-08 | AE144: 中共党员 | AF144: 166500 | AG144: 13946915484 | AH144: 1140656625@qq.com
A145: 7 | B145: 黑龙江林业职业技术学院 | C145: 管理G岗 | D145: 33 | E145: 何思凡 | F145: 18-5 | G145: 男 | H145: 210311199610110318 | I145: 5- | J145: 缺考 | K145: 0 | N145: 0 | O145: 18日 | P145: 36 | Q145: 5 | R145: 12 | S145: 57.5 | U145: 57.5 | W145: 41 | X145: 250103427 | Y145: 15668650859 | Z145: 34 | AA145: 27 | AB145: 8008 | AC145: 汉族 | AD145: 1996-10-11 | AE145: 共青团员 | AF145: 114200 | AG145: 13889718902 | AH145: 792986559@qq.com
A146: 13 | B146: 黑龙江林业职业技术学院 | C146: 管理G岗 | D146: 33 | E146: 刘育硕 | F146: 18-5 | G146: 男 | H146: 231202200104210031 | I146: 5- | J146: 缺考 | K146: 0 | N146: 0 | O146: 18日 | P146: 36 | Q146: 5 | R146: 12 | S146: 57 | U146: 57 | W146: 42 | X146: 250101804 | Y146: 13766766692 | Z146: 18 | AA146: 4 | AB146: 8008 | AC146: 汉族 | AD146: 2001-04-21 | AE146: 共青团员 | AF146: 150000 | AG146: 17742603482 | AH146: 1174346515@qq.com
A147: 16 | B147: 黑龙江林业职业技术学院 | C147: 管理G岗 | D147: 33 | E147: 邱少军 | F147: 18-5 | G147: 男 | H147: 232301199803161114 | I147: 5- | J147: 缺考 | K147: 0 | N147: 0 | O147: 18日 | P147: 36 | Q147: 5 | R147: 12 | S147: 53.75 | U147: 53.75 | W147: 47 | X147: 250102101 | Y147: 18202430613 | Z147: 21 | AA147: 1 | AB147: 8008 | AC147: 汉族 | AD147: 1998-03-16 | AE147: 共青团员 | AF147: 152000 | AG147: 17304555778 | AH147: 854062652@qq.com
A148: 18 | B148: 黑龙江林业职业技术学院 | C148: 管理G岗 | D148: 33 | E148: 孙强 | F148: 18-5 | G148: 男 | H148: 230104199505073454 | I148: 5- | J148: 缺考 | K148: 0 | N148: 0 | O148: 18日 | P148: 36 | Q148: 5 | R148: 12 | S148: 77.5 | U148: 77.5 | V148: 入围 | W148: 1 | X148: 250102430 | Y148: 13019711295 | Z148: 24 | AA148: 30 | AB148: 8008 | AC148: 汉族 | AD148: 1995-05-07 | AE148: 群众 | AF148: 150000 | AG148: 14794612581 | AH148: 1433661247@qq.com
A149: 21 | B149: 黑龙江林业职业技术学院 | C149: 管理G岗 | D149: 33 | E149: 王春生 | F149: 18-5 | G149: 男 | H149: 230881199902210011 | I149: 5- | J149: 缺考 | K149: 0 | N149: 0 | O149: 18日 | P149: 36 | Q149: 5 | R149: 12 | S149: 63.5 | U149: 63.5 | V149: 入围 | W149: 24 | X149: 250104014 | Y149: 15765129290 | Z149: 40 | AA149: 14 | AB149: 8008 | AC149: 赫哲族 | AD149: 1999-02-21 | AE149: 共青团员 | AF149: 150030 | AG149: 13104542901 | AH149: 15765129290@163.com
A150: 24 | B150: 黑龙江林业职业技术学院 | C150: 管理G岗 | D150: 33 | E150: 王旭南 | F150: 18-5 | G150: 男 | H150: 232330199504010617 | I150: 5- | J150: 缺考 | K150: 0 | N150: 0 | O150: 18日 | P150: 36 | Q150: 5 | R150: 12 | S150: 61.5 | U150: 61.5 | V150: 入围 | W150: 28 | X150: 250104124 | Y150: 15845073117 | Z150: 41 | AA150: 24 | AB150: 8008 | AC150: 汉族 | AD150: 1995-04-01 | AE150: 群众 | AF150: 152400 | AG150: 15845512244 | AH150: 944383168@qq.com
A151: 33 | B151: 黑龙江林业职业技术学院 | C151: 管理G岗 | D151: 33 | E151: 张元 | F151: 18-5 | G151: 男 | H151: 230106199506212017 | I151: 5- | J151: 缺考 | K151: 0 | N151: 0 | O151: 18日 | P151: 36 | Q151: 5 | R151: 12 | S151: 62 | U151: 62 | V151: 入围 | W151: 27 | X151: 250103520 | Y151: 15045653460 | Z151: 35 | AA151: 20 | AB151: 8008 | AC151: 汉族 | AD151: 1995-06-21 | AE151: 群众 | AF151: 150036 | AG151: 18145126705 | AH151: 15045653460@163.com
A152: 7 | B152: 黑龙江省牡丹江林业中心医院 | C152: 骨科 | D152: 75 | E152: 张智超 | F152: 18-6 | G152: 男 | H152: 231081199611290012 | I152: 6- | J152: -1 | K152: 6-075-01 | L152: 75.90 | M152: 72.96 | N152: 0 | O152: 18日 | P152: 7 | Q152: 6 | R152: 2 | S152: 71 | U152: 71 | V152: 入围 | W152: 5 | X152: 250110918 | Y152: 15867750712 | Z152: 109 | AA152: 18 | AB152: 8015 | AC152: 汉族 | AD152: 1996-11-29 | AE152: 群众 | AF152: 157000 | AG152: 13766611793 | AH152: 694857121@qq.com
A153: 3 | B153: 黑龙江省牡丹江林业中心医院 | C153: 骨科 | D153: 75 | E153: 毛怀全 | F153: 18-6 | G153: 男 | H153: 232102198011265813 | I153: 6- | J153: -2 | K153: 6-075-02 | L153: 74.88 | M153: 74.50 | N153: 0 | O153: 18日 | P153: 7 | Q153: 6 | R153: 2 | S153: 74.25 | U153: 74.25 | V153: 入围 | W153: 3 | X153: 250110911 | Y153: 18088730707 | Z153: 109 | AA153: 11 | AB153: 8015 | AC153: 汉族 | AD153: 1980-11-26 | AE153: 群众 | AF153: 157600 | AG153: 18246332377 | AH153: 36515295@qq.com
A154: 2 | B154: 黑龙江省牡丹江林业中心医院 | C154: 骨科 | D154: 75 | E154: 刘嘉祥 | F154: 18-6 | G154: 男 | H154: 231024199803202016 | I154: 6- | J154: -3 | K154: 6-075-03 | L154: 75.10 | M154: 82.54 | N154: 0 | O154: 18日 | P154: 7 | Q154: 6 | R154: 2 | S154: 87.5 | U154: 87.5 | V154: 入围 | W154: 1 | X154: 250110908 | Y154: 16622101775 | Z154: 109 | AA154: 8 | AB154: 8015 | AC154: 汉族 | AD154: 1998-03-20 | AE154: 共青团员 | AF154: 157200 | AG154: 13514526552 | AH154: 158946473@qq.com
A155: 6 | B155: 黑龙江省牡丹江林业中心医院 | C155: 骨科 | D155: 75 | E155: 张少壮 | F155: 18-6 | G155: 男 | H155: 231083198706095410 | I155: 6- | J155: -4 | K155: 6-075-04 | L155: 77.48 | M155: 70.44 | N155: 0 | O155: 18日 | P155: 7 | Q155: 6 | R155: 2 | S155: 65.75 | U155: 65.75 | V155: 入围 | W155: 10 | X155: 250110907 | Y155: 15246354087 | Z155: 109 | AA155: 7 | AB155: 8015 | AC155: 汉族 | AD155: 1987-06-09 | AE155: 中共党员 | AF155: 157100 | AG155: 15845311569 | AH155: wssz_1022@qq.com
A156: 4 | B156: 黑龙江省牡丹江林业中心医院 | C156: 骨科 | D156: 75 | E156: 隋英瑞 | F156: 18-6 | G156: 男 | H156: 231004199207290317 | I156: 6- | J156: -5 | K156: 6-075-05 | L156: 82.52 | M156: 83.11 | N156: 0 | O156: 18日 | P156: 7 | Q156: 6 | R156: 2 | S156: 83.5 | U156: 83.5 | V156: 入围 | W156: 2 | X156: 250110901 | Y156: 15245395796 | Z156: 109 | AA156: 1 | AB156: 8015 | AC156: 汉族 | AD156: 1992-07-29 | AE156: 群众 | AF156: 157000 | AG156: 13029950096 | AH156: 735166865@qq.com
A157: 1 | B157: 黑龙江省牡丹江林业中心医院 | C157: 骨科 | D157: 75 | E157: 侯天航 | F157: 18-6 | G157: 男 | H157: 232324199810052711 | I157: 6- | J157: -6 | K157: 6-075-06 | L157: 77.64 | M157: 74.26 | N157: 0 | O157: 18日 | P157: 7 | Q157: 6 | R157: 2 | S157: 72 | U157: 72 | V157: 入围 | W157: 4 | X157: 250110902 | Y157: 18045579390 | Z157: 109 | AA157: 2 | AB157: 8015 | AC157: 汉族 | AD157: 1998-10-05 | AE157: 共青团员 | AF157: 154000 | AG157: 15546240295 | AH157: 2609527761@qq.com
A158: 5 | B158: 黑龙江省牡丹江林业中心医院 | C158: 骨科 | D158: 75 | E158: 杨富 | F158: 18-6 | G158: 男 | H158: 231085199101070410 | I158: 6- | J158: 缺考 | K158: 0 | N158: 0 | O158: 18日 | P158: 7 | Q158: 6 | R158: 2 | S158: 71 | U158: 71 | V158: 入围 | W158: 5 | X158: 250110905 | Y158: 13251538886 | Z158: 109 | AA158: 5 | AB158: 8015 | AC158: 汉族 | AD158: 1991-01-07 | AE158: 中共党员 | AF158: 157500 | AG158: 15845656520 | AH158: yangfu889@163.com
A159: 10 | B159: 黑龙江省牡丹江林业中心医院 | C159: 病理科 | D159: 76 | E159: 邢丽 | F159: 18-6 | G159: 女 | H159: 230822199502204122 | I159: 6- | J159: -1 | K159: 6-076-01 | L159: 77.52 | M159: 70.46 | N159: 0 | O159: 18日 | P159: 3 | Q159: 6 | R159: 1 | S159: 65.75 | U159: 65.75 | V159: 入围 | W159: 2 | X159: 250109127 | Y159: 13214534564 | Z159: 91 | AA159: 27 | AB159: 8016 | AC159: 汉族 | AD159: 1995-02-20 | AE159: 共青团员 | AF159: 157000 | AG159: 13214536787 | AH159: 964327299@qq.com
A160: 8 | B160: 黑龙江省牡丹江林业中心医院 | C160: 病理科 | D160: 76 | E160: 慈蕊 | F160: 18-6 | G160: 女 | H160: 23232419980620062X | I160: 6- | J160: 缺考 | K160: 0 | N160: 0 | O160: 18日 | P160: 3 | Q160: 6 | R160: 1 | S160: 58.5 | U160: 58.5 | V160: 入围 | W160: 3 | X160: 250109105 | Y160: 18745290319 | Z160: 91 | AA160: 5 | AB160: 8016 | AC160: 汉族 | AD160: 1998-06-20 | AE160: 共青团员 | AF160: 150000 | AG160: 15636940667 | AH160: 1401566693@qq.com
A161: 9 | B161: 黑龙江省牡丹江林业中心医院 | C161: 病理科 | D161: 76 | E161: 王岩涛 | F161: 18-6 | G161: 女 | H161: 230281199704190627 | I161: 6- | J161: 缺考 | K161: 0 | N161: 0 | O161: 18日 | P161: 3 | Q161: 6 | R161: 1 | S161: 71.25 | U161: 71.25 | V161: 入围 | W161: 1 | X161: 250109108 | Y161: 13836284297 | Z161: 91 | AA161: 8 | AB161: 8016 | AC161: 汉族 | AD161: 1997-04-19 | AE161: 共青团员 | AF161: 150000 | AG161: 18746863862 | AH161: 1694318713@qq.com
A162: 11 | B162: 黑龙江省牡丹江林业中心医院 | C162: 放疗中心 | D162: 77 | E162: 秦浩天 | F162: 18-6 | G162: 男 | H162: 231005199709100014 | I162: 6- | J162: -1 | K162: 6-077-01 | L162: 79.72 | M162: 70.59 | N162: 0 | O162: 18日 | P162: 3 | Q162: 6 | R162: 1 | S162: 64.5 | U162: 64.5 | V162: 入围 | W162: 2 | X162: 250110819 | Y162: 15754635959 | Z162: 108 | AA162: 19 | AB162: 8012 | AC162: 汉族 | AD162: 1997-09-10 | AE162: 群众 | AF162: 157000 | AG162: 15604632789 | AH162: 844217874@qq.com
A163: 12 | B163: 黑龙江省牡丹江林业中心医院 | C163: 放疗中心 | D163: 77 | E163: 王鑫瑄 | F163: 18-6 | G163: 女 | H163: 231004199611141823 | I163: 6- | J163: 缺考 | K163: 0 | N163: 0 | O163: 18日 | P163: 3 | Q163: 6 | R163: 1 | S163: 30.5 | U163: 30.5 | V163: 入围 | W163: 3 | X163: 250110730 | Y163: 15245328939 | Z163: 107 | AA163: 30 | AB163: 8012 | AC163: 汉族 | AD163: 1996-11-14 | AE163: 群众 | AF163: 157000 | AG163: 15245328939 | AH163: 86749137@qq.com
A164: 13 | B164: 黑龙江省牡丹江林业中心医院 | C164: 放疗中心 | D164: 77 | E164: 袁敏 | F164: 18-6 | G164: 女 | H164: 140724199906040086 | I164: 6- | J164: 缺考 | K164: 0 | N164: 0 | O164: 18日 | P164: 3 | Q164: 6 | R164: 1 | S164: 79.25 | U164: 79.25 | V164: 入围 | W164: 1 | X164: 250110810 | Y164: 15535401007 | Z164: 108 | AA164: 10 | AB164: 8012 | AC164: 汉族 | AD164: 1999-06-04 | AE164: 中共党员 | AF164: 150000 | AG164: 15535401007 | AH164: ymin1221@126.com
A165: 18 | B165: 黑龙江省牡丹江林业中心医院 | C165: 核磁共振、CT室 | D165: 80 | E165: 杨雪 | F165: 18-6 | G165: 女 | H165: 231083198911122123 | I165: 6- | J165: -1 | K165: 6-080-01 | L165: 77.30 | M165: 67.82 | N165: 0 | O165: 18日 | P165: 6 | Q165: 6 | R165: 2 | S165: 61.5 | U165: 61.5 | V165: 入围 | W165: 6 | X165: 250110805 | Y165: 15845314820 | Z165: 108 | AA165: 5 | AB165: 8012 | AC165: 汉族 | AD165: 1989-11-12 | AE165: 群众 | AF165: 157000 | AG165: 15945756091 | AH165: 804775005@qq.com
A166: 14 | B166: 黑龙江省牡丹江林业中心医院 | C166: 核磁共振、CT室 | D166: 80 | E166: 高健 | F166: 18-6 | G166: 男 | H166: 231024199202257353 | I166: 6- | J166: -2 | K166: 6-080-02 | L166: 72.54 | M166: 73.87 | N166: 0 | O166: 18日 | P166: 6 | Q166: 6 | R166: 2 | S166: 74.75 | U166: 74.75 | V166: 入围 | W166: 1 | X166: 250110817 | Y166: 15946326037 | Z166: 108 | AA166: 17 | AB166: 8012 | AC166: 汉族 | AD166: 1992-02-25 | AE166: 群众 | AF166: 157000 | AG166: 15561966097 | AH166: 2421092322@qq.com
A167: 19 | B167: 黑龙江省牡丹江林业中心医院 | C167: 核磁共振、CT室 | D167: 80 | E167: 依博琳 | F167: 18-6 | G167: 女 | H167: 231083198604030026 | I167: 6- | J167: -3 | K167: 6-080-03 | L167: 80.98 | M167: 76.64 | N167: 0 | O167: 18日 | P167: 6 | Q167: 6 | R167: 2 | S167: 73.75 | U167: 73.75 | V167: 入围 | W167: 2 | X167: 250110803 | Y167: 18204639950 | Z167: 108 | AA167: 3 | AB167: 8012 | AC167: 满族 | AD167: 1986-04-03 | AE167: 群众 | AF167: 157000 | AG167: 18249367982 | AH167: 356700713@qq.com
A168: 16 | B168: 黑龙江省牡丹江林业中心医院 | C168: 核磁共振、CT室 | D168: 80 | E168: 李启华 | F168: 18-6 | G168: 男 | H168: 23100519931004521X | I168: 6- | J168: -4 | K168: 6-080-04 | L168: 84.58 | M168: 77.78 | N168: 0 | O168: 18日 | P168: 6 | Q168: 6 | R168: 2 | S168: 73.25 | U168: 73.25 | V168: 入围 | W168: 3 | X168: 250110814 | Y168: 18686968844 | Z168: 108 | AA168: 14 | AB168: 8012 | AC168: 汉族 | AD168: 1993-10-04 | AE168: 群众 | AF168: 157000 | AG168: 13136860676 | AH168: 362060681@qq.com
A169: 17 | B169: 黑龙江省牡丹江林业中心医院 | C169: 核磁共振、CT室 | D169: 80 | E169: 吴晶 | F169: 18-6 | G169: 女 | H169: 230921199310090828 | I169: 6- | J169: -5 | K169: 6-080-05 | L169: 73.98 | M169: 72.04 | N169: 0 | O169: 18日 | P169: 6 | Q169: 6 | R169: 2 | S169: 70.75 | U169: 70.75 | V169: 入围 | W169: 4 | X169: 250110816 | Y169: 18945589394 | Z169: 108 | AA169: 16 | AB169: 8012 | AC169: 汉族 | AD169: 1993-10-09 | AE169: 群众 | AF169: 156400 | AG169: 18945589394 | AH169: 970983483@qq.com
A170: 15 | B170: 黑龙江省牡丹江林业中心医院 | C170: 核磁共振、CT室 | D170: 80 | E170: 李嘉航 | F170: 18-6 | G170: 男 | H170: 231005199307280016 | I170: 6- | J170: -6 | K170: 6-080-06 | L170: 70.58 | M170: 63.93 | N170: 0 | O170: 18日 | P170: 6 | Q170: 6 | R170: 2 | S170: 59.5 | U170: 59.5 | W170: 7 | X170: 250110729 | Y170: 18645767101 | Z170: 107 | AA170: 29 | AB170: 8012 | AC170: 汉族 | AD170: 1993-07-28 | AE170: 群众 | AF170: 157000 | AG170: 18804530868 | AH170: 252400324@qq.com
A171: 20 | B171: 黑龙江省牡丹江林业中心医院 | C171: 呼吸科 | D171: 81 | E171: 刘燕 | F171: 18-6 | G171: 女 | H171: 23100519901121452X | I171: 6- | J171: -1 | K171: 6-081-01 | L171: 77.38 | M171: 79.10 | N171: 0 | O171: 18日 | P171: 3 | Q171: 6 | R171: 1 | S171: 80.25 | U171: 80.25 | V171: 入围 | W171: 1 | X171: 250109012 | Y171: 13684536169 | Z171: 90 | AA171: 12 | AB171: 8010 | AC171: 汉族 | AD171: 1990-11-21 | AE171: 群众 | AF171: 157000 | AG171: 13339433255 | AH171: 1120661174@qq.com
A172: 21 | B172: 黑龙江省牡丹江林业中心医院 | C172: 呼吸科 | D172: 81 | E172: 张月婷 | F172: 18-6 | G172: 女 | H172: 230321198911051704 | I172: 6- | J172: 缺考 | K172: 0 | N172: 0 | O172: 18日 | P172: 3 | Q172: 6 | R172: 1 | S172: 68.75 | U172: 68.75 | V172: 入围 | W172: 3 | X172: 250108626 | Y172: 13089860510 | Z172: 86 | AA172: 26 | AB172: 8010 | AC172: 汉族 | AD172: 1989-11-05 | AE172: 群众 | AF172: 157000 | AG172: 18845338082 | AH172: 243437223@qq.com
A173: 22 | B173: 黑龙江省牡丹江林业中心医院 | C173: 呼吸科 | D173: 81 | E173: 周金源 | F173: 18-6 | G173: 男 | H173: 231084199804183714 | I173: 6- | J173: 缺考 | K173: 0 | N173: 0 | O173: 18日 | P173: 3 | Q173: 6 | R173: 1 | S173: 72.25 | U173: 72.25 | V173: 入围 | W173: 2 | X173: 250108908 | Y173: 15246315368 | Z173: 89 | AA173: 8 | AB173: 8010 | AC173: 汉族 | AD173: 1998-04-18 | AE173: 共青团员 | AF173: 157421 | AG173: 15246315368 | AH173: 244491756@qq.com
A174: 24 | B174: 黑龙江省牡丹江林业中心医院 | C174: 急诊科 | D174: 82 | E174: 侯平 | F174: 18-6 | G174: 女 | H174: 23102519890406462X | I174: 6- | J174: -1 | K174: 6-082-01 | L174: 84.54 | M174: 69.37 | N174: 0 | O174: 18日 | P174: 3 | Q174: 6 | R174: 1 | S174: 59.25 | U174: 59.25 | V174: 入围 | W174: 2 | X174: 250109204 | Y174: 15734630576 | Z174: 92 | AA174: 4 | AB174: 8016 | AC174: 汉族 | AD174: 1989-04-06 | AE174: 群众 | AF174: 157000 | AG174: 15904536193 | AH174: 422319664@qq.com
A175: 23 | B175: 黑龙江省牡丹江林业中心医院 | C175: 急诊科 | D175: 82 | E175: 何欣宇 | F175: 18-6 | G175: 女 | H175: 230183200006260029 | I175: 6- | J175: 缺考 | K175: 0 | N175: 0 | O175: 18日 | P175: 3 | Q175: 6 | R175: 1 | S175: 69.25 | U175: 69.25 | V175: 入围 | W175: 1 | X175: 250109019 | Y175: 15046179234 | Z175: 90 | AA175: 19 | AB175: 8016 | AC175: 汉族 | AD175: 2000-06-26 | AE175: 共青团员 | AF175: 157009 | AG175: 13945036066 | AH175: 1975046499@qq.com
A176: 25 | B176: 黑龙江省牡丹江林业中心医院 | C176: 急诊科 | D176: 82 | E176: 周硕 | F176: 18-6 | G176: 男 | H176: 460033199801100030 | I176: 6- | J176: 缺考 | K176: 0 | N176: 0 | O176: 18日 | P176: 3 | Q176: 6 | R176: 1 | S176: 56.25 | U176: 56.25 | V176: 入围 | W176: 3 | X176: 250109201 | Y176: 17689830551 | Z176: 92 | AA176: 1 | AB176: 8016 | AC176: 汉族 | AD176: 1998-01-10 | AE176: 共青团员 | AF176: 157009 | AG176: 15046179234 | AH176: 1109972276@qq.com
A177: 28 | B177: 黑龙江省牡丹江林业中心医院 | C177: 老年病科 | D177: 85 | E177: 赵巧灵 | F177: 18-6 | G177: 女 | H177: 231005198801110026 | I177: 6- | J177: -1 | K177: 6-085-01 | L177: 79.86 | M177: 78.14 | N177: 0 | O177: 18日 | P177: 3 | Q177: 6 | R177: 1 | S177: 77 | U177: 77 | V177: 入围 | W177: 1 | X177: 250108705 | Y177: 15046332146 | Z177: 87 | AA177: 5 | AB177: 8010 | AC177: 满族 | AD177: 1988-01-11 | AE177: 群众 | AF177: 157000 | AG177: 13351331273 | AH177: zhaoqiaoling92692@163.com
A178: 26 | B178: 黑龙江省牡丹江林业中心医院 | C178: 老年病科 | D178: 85 | E178: 李加姝 | F178: 18-6 | G178: 女 | H178: 230183199203161227 | I178: 6- | J178: 缺考 | K178: 0 | N178: 0 | O178: 18日 | P178: 3 | Q178: 6 | R178: 1 | S178: 63.75 | U178: 63.75 | V178: 入围 | W178: 2 | X178: 250108824 | Y178: 15845656520 | Z178: 88 | AA178: 24 | AB178: 8010 | AC178: 汉族 | AD178: 1992-03-16 | AE178: 群众 | AF178: 157000 | AG178: 15845047640 | AH178: 1078688159@qq.com
A179: 27 | B179: 黑龙江省牡丹江林业中心医院 | C179: 老年病科 | D179: 85 | E179: 姚文明 | F179: 18-6 | G179: 男 | H179: 231084199311273711 | I179: 6- | J179: 缺考 | K179: 0 | N179: 0 | O179: 18日 | P179: 3 | Q179: 6 | R179: 1 | S179: 53.25 | U179: 53.25 | V179: 入围 | W179: 3 | X179: 250108725 | Y179: 13604833501 | Z179: 87 | AA179: 25 | AB179: 8010 | AC179: 汉族 | AD179: 1993-11-27 | AE179: 共青团员 | AF179: 157000 | AG179: 19174875835 | AH179: 631516574@qq.com
A180: 33 | B180: 黑龙江省牡丹江林业中心医院 | C180: 麻醉科 | D180: 86 | E180: 肖镜怡 | F180: 18-6 | G180: 女 | H180: 230321199805250042 | I180: 6- | J180: -1 | K180: 6-086-01 | L180: 76.48 | M180: 72.89 | N180: 0 | O180: 18日 | P180: 8 | Q180: 6 | R180: 2 | S180: 70.5 | U180: 70.5 | V180: 入围 | W180: 4 | X180: 250109203 | Y180: 18704534639 | Z180: 92 | AA180: 3 | AB180: 8016 | AC180: 汉族 | AD180: 1998-05-25 | AE180: 共青团员 | AF180: 518000 | AG180: 13796931719 | AH180: 3488911882@qq.com
A181: 32 | B181: 黑龙江省牡丹江林业中心医院 | C181: 麻醉科 | D181: 86 | E181: 孙潇杨 | F181: 18-6 | G181: 女 | H181: 231084199306044420 | I181: 6- | J181: -2 | K181: 6-086-02 | L181: 78.72 | M181: 78.14 | N181: 0 | O181: 18日 | P181: 8 | Q181: 6 | R181: 2 | S181: 77.75 | U181: 77.75 | V181: 入围 | W181: 1 | X181: 250109126 | Y181: 15846766604 | Z181: 91 | AA181: 26 | AB181: 8016 | AC181: 汉族 | AD181: 1993-06-04 | AE181: 群众 | AF181: 157000 | AG181: 18767142409 | AH181: 694919012@qq.com
A182: 34 | B182: 黑龙江省牡丹江林业中心医院 | C182: 麻醉科 | D182: 86 | E182: 尹彦淋 | F182: 18-6 | G182: 女 | H182: 231083200002295449 | I182: 6- | J182: -3 | K182: 6-086-03 | L182: 75.80 | M182: 70.97 | N182: 0 | O182: 18日 | P182: 8 | Q182: 6 | R182: 2 | S182: 67.75 | U182: 67.75 | V182: 入围 | W182: 7 | X182: 250109029 | Y182: 15146302571 | Z182: 90 | AA182: 29 | AB182: 8016 | AC182: 汉族 | AD182: 2000-02-29 | AE182: 共青团员 | AF182: 157000 | AG182: 18611116327 | AH182: 2670658764@qq.com
A183: 31 | B183: 黑龙江省牡丹江林业中心医院 | C183: 麻醉科 | D183: 86 | E183: 苏亚男 | F183: 18-6 | G183: 男 | H183: 231004198806100314 | I183: 6- | J183: -4 | K183: 6-086-04 | L183: 77.38 | M183: 76.25 | N183: 0 | O183: 18日 | P183: 8 | Q183: 6 | R183: 2 | S183: 75.5 | U183: 75.5 | V183: 入围 | W183: 3 | X183: 250109117 | Y183: 13945343183 | Z183: 91 | AA183: 17 | AB183: 8016 | AC183: 满族 | AD183: 1988-06-10 | AE183: 群众 | AF183: 157000 | AG183: 15945497732 | AH183: 443027708@qq.com
A184: 35 | B184: 黑龙江省牡丹江林业中心医院 | C184: 麻醉科 | D184: 86 | E184: 张茂全 | F184: 18-6 | G184: 男 | H184: 230321199412201215 | I184: 6- | J184: -5 | K184: 6-086-05 | L184: 78.48 | M184: 73.09 | N184: 0 | O184: 18日 | P184: 8 | Q184: 6 | R184: 2 | S184: 69.5 | U184: 69.5 | V184: 入围 | W184: 5 | X184: 250109116 | Y184: 15534076399 | Z184: 91 | AA184: 16 | AB184: 8016 | AC184: 汉族 | AD184: 1994-12-20 | AE184: 共青团员 | AF184: 158200 | AG184: 13796421794 | AH184: 787901856@qq.com
A185: 29 | B185: 黑龙江省牡丹江林业中心医院 | C185: 麻醉科 | D185: 86 | E185: 范靖华 | F185: 18-6 | G185: 女 | H185: 231026199309045521 | I185: 6- | J185: -6 | K185: 6-086-06 | L185: 77.28 | M185: 76.36 | N185: 0 | O185: 18日 | P185: 8 | Q185: 6 | R185: 2 | S185: 75.75 | U185: 75.75 | V185: 入围 | W185: 2 | X185: 250109128 | Y185: 18346351312 | Z185: 91 | AA185: 28 | AB185: 8016 | AC185: 汉族 | AD185: 1993-09-04 | AE185: 群众 | AF185: 158327 | AG185: 4675073787 | AH185: 843608840@qq.com
A186: 36 | B186: 黑龙江省牡丹江林业中心医院 | C186: 麻醉科 | D186: 86 | E186: 朱一同 | F186: 18-6 | G186: 男 | H186: 230622200010110351 | I186: 6- | J186: -7 | K186: 6-086-07 | L186: 77.30 | M186: 68.27 | N186: 0 | O186: 18日 | P186: 8 | Q186: 6 | R186: 2 | S186: 62.25 | U186: 62.25 | W186: 10 | X186: 250109119 | Y186: 13604651831 | Z186: 91 | AA186: 19 | AB186: 8016 | AC186: 汉族 | AD186: 2000-10-11 | AE186: 共青团员 | AF186: 157000 | AG186: 15561944456 | AH186: 2302622408@qq.com
A187: 30 | B187: 黑龙江省牡丹江林业中心医院 | C187: 麻醉科 | D187: 86 | E187: 刘欣 | F187: 18-6 | G187: 女 | H187: 230710199207240621 | I187: 6- | J187: 缺考 | K187: 0 | N187: 0 | O187: 18日 | P187: 8 | Q187: 6 | R187: 2 | S187: 66.25 | U187: 66.25 | V187: 入围 | W187: 8 | X187: 250109205 | Y187: 18604638266 | Z187: 92 | AA187: 5 | AB187: 8016 | AC187: 汉族 | AD187: 1992-07-24 | AE187: 群众 | AF187: 157000 | AG187: 13045331076 | AH187: 437757064@qq.com
A188: 38 | B188: 黑龙江省牡丹江林业中心医院 | C188: 普外科 | D188: 88 | E188: 鲁政阳 | F188: 18-6 | G188: 男 | H188: 231002198901122711 | I188: 6- | J188: -1 | K188: 6-088-01 | L188: 84.50 | M188: 76.40 | N188: 0 | O188: 18日 | P188: 3 | Q188: 6 | R188: 1 | S188: 71 | U188: 71 | V188: 入围 | W188: 3 | X188: 250109107 | Y188: 13359693006 | Z188: 91 | AA188: 7 | AB188: 8016 | AC188: 汉族 | AD188: 1989-01-12 | AE188: 群众 | AF188: 157000 | AG188: 19806303006 | AH188: baron_w@126.com
A189: 37 | B189: 黑龙江省牡丹江林业中心医院 | C189: 普外科 | D189: 88 | E189: 矫雷 | F189: 18-6 | G189: 男 | H189: 230302198812254734 | I189: 6- | J189: -2 | K189: 6-088-02 | L189: 79.18 | M189: 75.02 | N189: 0 | O189: 18日 | P189: 3 | Q189: 6 | R189: 1 | S189: 72.25 | U189: 72.25 | V189: 入围 | W189: 2 | X189: 250109210 | Y189: 15699678879 | Z189: 92 | AA189: 10 | AB189: 8016 | AC189: 汉族 | AD189: 1988-12-25 | AE189: 群众 | AF189: 157000 | AG189: 15699678879 | AH189: 278909885@qq.com
A190: 39 | B190: 黑龙江省牡丹江林业中心医院 | C190: 普外科 | D190: 88 | E190: 孙琳琳 | F190: 18-6 | G190: 女 | H190: 230102199710015824 | I190: 6- | J190: 缺考 | K190: 0 | N190: 0 | O190: 18日 | P190: 3 | Q190: 6 | R190: 1 | S190: 74.75 | U190: 74.75 | V190: 入围 | W190: 1 | X190: 250109112 | Y190: 18745014186 | Z190: 91 | AA190: 12 | AB190: 8016 | AC190: 汉族 | AD190: 1997-10-01 | AE190: 共青团员 | AF190: 150010 | AG190: 13936663253 | AH190: 2420043507@qq.com
A191: 44 | B191: 黑龙江省牡丹江林业中心医院 | C191: 神经二科 | D191: 89 | E191: 尹亮 | F191: 18-6 | G191: 男 | H191: 232127199011171616 | I191: 6- | J191: -1 | K191: 6-089-01 | L191: 80.30 | M191: 78.17 | N191: 0 | O191: 18日 | P191: 6 | Q191: 6 | R191: 2 | S191: 76.75 | U191: 76.75 | V191: 入围 | W191: 2 | X191: 250108830 | Y191: 13263531061 | Z191: 88 | AA191: 30 | AB191: 8010 | AC191: 汉族 | AD191: 1990-11-17 | AE191: 群众 | AF191: 157000 | AG191: 13263531061 | AH191: 1446012996@qq.com
A192: 45 | B192: 黑龙江省牡丹江林业中心医院 | C192: 神经二科 | D192: 89 | E192: 张丹 | F192: 18-6 | G192: 女 | H192: 230306199204265341 | I192: 6- | J192: -2 | K192: 6-089-02 | L192: 73.60 | M192: 71.59 | N192: 0 | O192: 18日 | P192: 6 | Q192: 6 | R192: 2 | S192: 70.25 | U192: 70.25 | V192: 入围 | W192: 3 | X192: 250108708 | Y192: 18946361143 | Z192: 87 | AA192: 8 | AB192: 8010 | AC192: 汉族 | AD192: 1992-04-26 | AE192: 中共党员 | AF192: 157000 | AG192: 13351175530 | AH192: 664538341@qq.com
A193: 40 | B193: 黑龙江省牡丹江林业中心医院 | C193: 神经二科 | D193: 89 | E193: 连泽民 | F193: 18-6 | G193: 男 | H193: 231083198911305413 | I193: 6- | J193: -3 | K193: 6-089-03 | L193: 84.66 | M193: 73.61 | N193: 0 | O193: 18日 | P193: 6 | Q193: 6 | R193: 2 | S193: 66.25 | U193: 66.25 | V193: 入围 | W193: 4 | X193: 250108825 | Y193: 18946377645 | Z193: 88 | AA193: 25 | AB193: 8010 | AC193: 汉族 | AD193: 1989-11-30 | AE193: 群众 | AF193: 157000 | AG193: 13144530919 | AH193: 582130609@qq.com
A194: 41 | B194: 黑龙江省牡丹江林业中心医院 | C194: 神经二科 | D194: 89 | E194: 柳丹 | F194: 18-6 | G194: 女 | H194: 231003199205111024 | I194: 6- | J194: 缺考 | K194: 0 | N194: 0 | O194: 18日 | P194: 6 | Q194: 6 | R194: 2 | S194: 32 | U194: 32 | W194: 7 | X194: 250108712 | Y194: 13199345107 | Z194: 87 | AA194: 12 | AB194: 8010 | AC194: 汉族 | AD194: 1992-05-11 | AE194: 群众 | AF194: 157000 | AG194: 13514575774 | AH194: 724665785@qq.com
A195: 42 | B195: 黑龙江省牡丹江林业中心医院 | C195: 神经二科 | D195: 89 | E195: 马岩 | F195: 18-6 | G195: 男 | H195: 231025199303272815 | I195: 6- | J195: 缺考 | K195: 0 | M195: =U195*0.6+L195*0.4 ->  | N195: =IFERROR(RANK($M$2,$M$2:$M$509,0),"0") -> 0 | O195: 18日 | P195: 6 | Q195: 6 | R195: 2 | S195: 78.5 | U195: 78.5 | V195: 入围 | W195: 1 | X195: 250109001 | Y195: 15846746195 | Z195: 90 | AA195: 1 | AB195: 8010 | AC195: 汉族 | AD195: 1993-03-27 | AE195: 群众 | AF195: 157000 | AG195: 15846746195 | AH195: 1287393517@qq.com
A196: 43 | B196: 黑龙江省牡丹江林业中心医院 | C196: 神经二科 | D196: 89 | E196: 王国俊 | F196: 18-6 | G196: 男 | H196: 232301199401146210 | I196: 6- | J196: 缺考 | K196: 0 | N196: 0 | O196: 18日 | P196: 6 | Q196: 6 | R196: 2 | S196: 34.25 | U196: 34.25 | V196: 入围 | W196: 6 | X196: 250108925 | Y196: 15561975277 | Z196: 89 | AA196: 25 | AB196: 8010 | AC196: 汉族 | AD196: 1994-01-14 | AE196: 群众 | AF196: 157000 | AG196: 13263531061 | AH196: 1287393517@qq.com
A197: 1 | B197: 黑龙江省牡丹江林业中心医院 | C197: 肾内科 | D197: 91 | E197: 韩博宇 | F197: 18-7 | G197: 男 | H197: 231024199711102034 | I197: 7- | J197: -1 | K197: 7-091-01 | L197: 77.70 | M197: 81.63 | N197: 0 | O197: 18日 | P197: 3 | Q197: 7 | R197: 1 | S197: 84.25 | U197: 84.25 | V197: 入围 | W197: 1 | X197: 250108828 | Y197: 15245328939 | Z197: 88 | AA197: 28 | AB197: 8010 | AC197: 汉族 | AD197: 1997-11-10 | AE197: 群众 | AF197: 157000 | AG197: 15245328939 | AH197: 86749137@qq.com
A198: 2 | B198: 黑龙江省牡丹江林业中心医院 | C198: 肾内科 | D198: 91 | E198: 孟宪瑶 | F198: 18-7 | G198: 女 | H198: 230524199903171727 | I198: 7- | J198: 缺考 | K198: 0 | N198: 0 | O198: 18日 | P198: 3 | Q198: 7 | R198: 1 | S198: 72.25 | U198: 72.25 | V198: 入围 | W198: 2 | X198: 250108704 | Y198: 13634541914 | Z198: 87 | AA198: 4 | AB198: 8010 | AC198: 汉族 | AD198: 1999-03-17 | AE198: 中共党员 | AF198: 157000 | AG198: 13634541914 | AH198: 447000499@qq.com
A199: 3 | B199: 黑龙江省牡丹江林业中心医院 | C199: 肾内科 | D199: 91 | E199: 杨嘉琦 | F199: 18-7 | G199: 男 | H199: 232325199812070418 | I199: 7- | J199: 缺考 | K199: 0 | N199: 0 | O199: 18日 | P199: 3 | Q199: 7 | R199: 1 | S199: 70 | U199: 70 | V199: 入围 | W199: 3 | X199: 250108812 | Y199: 15184583818 | Z199: 88 | AA199: 12 | AB199: 8010 | AC199: 汉族 | AD199: 1998-12-07 | AE199: 共青团员 | AF199: 151500 | AG199: 18645380048 | AH199: 273295242@qq.com
A200: 7 | B200: 黑龙江省牡丹江林业中心医院 | C200: 消化科 | D200: 95 | E200: 王斯琪 | F200: 18-7 | G200: 女 | H200: 231025199201100027 | I200: 7- | J200: -1 | K200: 7-095-01 | L200: 77.12 | M200: 74.50 | N200: 0 | O200: 18日 | P200: 6 | Q200: 7 | R200: 2 | S200: 72.75 | U200: 72.75 | V200: 入围 | W200: 3 | X200: 250108820 | Y200: 18249347460 | Z200: 88 | AA200: 20 | AB200: 8010 | AC200: 汉族 | AD200: 1992-01-10 | AE200: 中共党员 | AF200: 157699 | AG200: 13274530038 | AH200: 524888744@qq.com
... 309 more rows

Sheet 总成绩
A1: 中国龙江森林工业集团有限公司2025年上半年所属事业单位公开招聘考试总成绩及拟进入体检与考察人员名单
A2: 序号 | B2: 招聘单位 | C2: 岗位名称 | D2: 岗位 编码 | E2: 姓名 | F2: 准考证号 | G2: 性别 | H2: 笔试成绩 | I2: 面试成绩 | J2: 总成绩 | K2: 招聘人数 | L2: 排名 | M2: 是否拟进入 体检考察环节 | N2: 备注
A3: 1 | B3: 黑龙江丰林国家级自然保护区管理局 | C3: 综合办公室会计A | D3: 109 | E3: 张星宇 | F3: 250106722 | G3: 男 | H3: 86.00 | I3: 87.00 | J3: =I3*0.4+H3*0.6 -> 86.40 | K3: 1 | L3: =SUMPRODUCT(($C$3:$C$510=C3)*($J$3:$J$510>J3))+1 -> 1 | M3: 是
A4: 2 | B4: 黑龙江丰林国家级自然保护区管理局 | C4: 综合办公室会计A | D4: 109 | E4: 周祺 | F4: 250107011 | G4: 女 | H4: 84.00 | I4: 83.50 | J4: =I4*0.4+H4*0.6 -> 83.80 | K4: 1 | L4: =SUMPRODUCT(($C$3:$C$510=C4)*($J$3:$J$510>J4))+1 -> 2 | M4: 否
A5: 3 | B5: 黑龙江丰林国家级自然保护区管理局 | C5: 综合办公室会计A | D5: 109 | E5: 王瑀千 | F5: 250107405 | G5: 男 | H5: 84.00 | I5: 80.92 | J5: 82.77 | K5: 1 | L5: =SUMPRODUCT(($C$3:$C$510=C5)*($J$3:$J$510>J5))+1 -> 3 | M5: 否
A6: 4 | B6: 黑龙江丰林国家级自然保护区管理局 | C6: 综合办公室会计B | D6: 110 | E6: 于海晶 | F6: 250105108 | G6: 女 | H6: 84.00 | I6: 84.16 | J6: 84.06 | K6: 1 | L6: =SUMPRODUCT(($C$3:$C$510=C6)*($J$3:$J$510>J6))+1 -> 1 | M6: 是
A7: 5 | B7: 黑龙江丰林国家级自然保护区管理局 | C7: 综合办公室会计B | D7: 110 | E7: 靳安顺 | F7: 250105110 | G7: 男 | H7: 85.00 | I7: 82.60 | J7: 84.04 | K7: 1 | L7: =SUMPRODUCT(($C$3:$C$510=C7)*($J$3:$J$510>J7))+1 -> 2 | M7: 否
A8: 6 | B8: 黑龙江丰林国家级自然保护区管理局 | C8: 综合办公室会计B | D8: 110 | E8: 骆鹤予 | F8: 250107708 | G8: 女 | H8: 84.00 | I8: 81.84 | J8: 83.14 | K8: 1 | L8: =SUMPRODUCT(($C$3:$C$510=C8)*($J$3:$J$510>J8))+1 -> 3 | M8: 否
A9: 7 | B9: 黑龙江丰林国家级自然保护区管理局 | C9: 综合办公室会计B | D9: 110 | E9: 代依诺 | F9: 250105627 | G9: 女 | H9: 85.00 | I9: 76.24 | J9: 81.50 | K9: 1 | L9: =SUMPRODUCT(($C$3:$C$510=C9)*($J$3:$J$510>J9))+1 -> 4 | M9: 否
A10: 8 | B10: 黑龙江丰林国家级自然保护区管理局 | C10: 综合办公室会计B | D10: 110 | E10: 朱大伟 | F10: 250107301 | G10: 男 | H10: 84.00 | I10: 74.42 | J10: 80.17 | K10: 1 | L10: =SUMPRODUCT(($C$3:$C$510=C10)*($J$3:$J$510>J10))+1 -> 5 | M10: 否
A11: 9 | B11: 黑龙江丰林国家级自然保护区管理局 | C11: 综合办公室会计B | D11: 110 | E11: 周杰 | F11: 250105013 | G11: 女 | H11: 84.00 | I11: 72.86 | J11: 79.54 | K11: 1 | L11: =SUMPRODUCT(($C$3:$C$510=C11)*($J$3:$J$510>J11))+1 -> 6 | M11: 否
A12: 10 | B12: 黑龙江丰林国家级自然保护区管理局 | C12: 综合办公室会计B | D12: 110 | E12: 孙锐 | F12: 250106408 | G12: 女 | H12: 84.00 | I12: 0.00 | J12: 0.00 | K12: 1 | L12: - | M12: 否 | N12: 面试缺考
A13: 11 | B13: 黑龙江丰林国家级自然保护区管理局 | C13: 综合办公室网络安全管理 | D13: 111 | E13: 陈天皓 | F13: 250107402 | G13: 男 | H13: 85.00 | I13: 82.92 | J13: 84.17 | K13: 1 | L13: =SUMPRODUCT(($C$3:$C$510=C13)*($J$3:$J$510>J13))+1 -> 1 | M13: 是
A14: 12 | B14: 黑龙江丰林国家级自然保护区管理局 | C14: 综合办公室网络安全管理 | D14: 111 | E14: 李国庆 | F14: 250105725 | G14: 男 | H14: 85.00 | I14: 80.42 | J14: 83.17 | K14: 1 | L14: =SUMPRODUCT(($C$3:$C$510=C14)*($J$3:$J$510>J14))+1 -> 2 | M14: 否
A15: 13 | B15: 黑龙江丰林国家级自然保护区管理局 | C15: 综合办公室网络安全管理 | D15: 111 | E15: 丁浩 | F15: 250105815 | G15: 男 | H15: 86.00 | I15: 0.00 | J15: 0.00 | K15: 1 | L15: - | M15: 否 | N15: 面试缺考
A16: 14 | B16: 黑龙江丰林国家级自然保护区管理局 | C16: 综合办公室机要员 | D16: 112 | E16: 刘燃 | F16: 250106113 | G16: 男 | H16: 79.00 | I16: 83.62 | J16: 80.85 | K16: 1 | L16: =SUMPRODUCT(($C$3:$C$510=C16)*($J$3:$J$510>J16))+1 -> 1 | M16: 是
A17: 15 | B17: 黑龙江丰林国家级自然保护区管理局 | C17: 综合办公室机要员 | D17: 112 | E17: 郝一聪 | F17: 250106015 | G17: 女 | H17: 74.00 | I17: 77.78 | J17: 75.51 | K17: 1 | L17: =SUMPRODUCT(($C$3:$C$510=C17)*($J$3:$J$510>J17))+1 -> 2 | M17: 否
A18: 16 | B18: 黑龙江丰林国家级自然保护区管理局 | C18: 综合办公室机要员 | D18: 112 | E18: 孙浩璐 | F18: 250107327 | G18: 男 | H18: 69.00 | I18: 0.00 | J18: 0.00 | K18: 1 | L18: - | M18: 否 | N18: 面试缺考
A19: 17 | B19: 黑龙江丰林国家级自然保护区管理局 | C19: 宣教中心A | D19: 113 | E19: 刘赫 | F19: 250105422 | G19: 男 | H19: 89.00 | I19: 86.36 | J19: 87.94 | K19: 2 | L19: =SUMPRODUCT(($C$3:$C$510=C19)*($J$3:$J$510>J19))+1 -> 1 | M19: 是
A20: 18 | B20: 黑龙江丰林国家级自然保护区管理局 | C20: 宣教中心A | D20: 113 | E20: 王云娇 | F20: 250107010 | G20: 女 | H20: 89.00 | I20: 76.54 | J20: 84.02 | K20: 2 | L20: =SUMPRODUCT(($C$3:$C$510=C20)*($J$3:$J$510>J20))+1 -> 2 | M20: 是
A21: 19 | B21: 黑龙江丰林国家级自然保护区管理局 | C21: 宣教中心A | D21: 113 | E21: 车畅通 | F21: 250106513 | G21: 男 | H21: 84.00 | I21: 78.26 | J21: 81.70 | K21: 2 | L21: =SUMPRODUCT(($C$3:$C$510=C21)*($J$3:$J$510>J21))+1 -> 3 | M21: 否
A22: 20 | B22: 黑龙江丰林国家级自然保护区管理局 | C22: 宣教中心A | D22: 113 | E22: 王广媛 | F22: 250107901 | G22: 女 | H22: 83.00 | I22: 79.10 | J22: 81.44 | K22: 2 | L22: =SUMPRODUCT(($C$3:$C$510=C22)*($J$3:$J$510>J22))+1 -> 4 | M22: 否
A23: 21 | B23: 黑龙江丰林国家级自然保护区管理局 | C23: 宣教中心A | D23: 113 | E23: 胡凤龙 | F23: 250106320 | G23: 男 | H23: 83.00 | I23: 72.82 | J23: 78.93 | K23: 2 | L23: =SUMPRODUCT(($C$3:$C$510=C23)*($J$3:$J$510>J23))+1 -> 5 | M23: 否
A24: 22 | B24: 黑龙江丰林国家级自然保护区管理局 | C24: 宣教中心A | D24: 113 | E24: 薛继航 | F24: 250106515 | G24: 男 | H24: 88.00 | I24: 0.00 | J24: 0.00 | K24: 2 | L24: - | M24: 否 | N24: 面试缺考
A25: 23 | B25: 黑龙江丰林国家级自然保护区管理局 | C25: 宣教中心B | D25: 114 | E25: 王宽 | F25: 250106629 | G25: 男 | H25: 83.00 | I25: 83.24 | J25: 83.10 | K25: 1 | L25: =SUMPRODUCT(($C$3:$C$510=C25)*($J$3:$J$510>J25))+1 -> 1 | M25: 是
A26: 24 | B26: 黑龙江丰林国家级自然保护区管理局 | C26: 宣教中心B | D26: 114 | E26: 董若涵 | F26: 250106106 | G26: 女 | H26: 81.00 | I26: 77.84 | J26: 79.74 | K26: 1 | L26: =SUMPRODUCT(($C$3:$C$510=C26)*($J$3:$J$510>J26))+1 -> 2 | M26: 否
A27: 25 | B27: 黑龙江丰林国家级自然保护区管理局 | C27: 宣教中心B | D27: 114 | E27: 李婉馨 | F27: 250107813 | G27: 女 | H27: 80.00 | I27: 73.82 | J27: 77.53 | K27: 1 | L27: =SUMPRODUCT(($C$3:$C$510=C27)*($J$3:$J$510>J27))+1 -> 3 | M27: 否
A28: 26 | B28: 黑龙江丰林国家级自然保护区管理局 | C28: 宣教中心C | D28: 115 | E28: 张天馨 | F28: 250105805 | G28: 女 | H28: 88.00 | I28: 82.32 | J28: 85.73 | K28: 1 | L28: =SUMPRODUCT(($C$3:$C$510=C28)*($J$3:$J$510>J28))+1 -> 1 | M28: 是
A29: 27 | B29: 黑龙江丰林国家级自然保护区管理局 | C29: 宣教中心C | D29: 115 | E29: 徐婧君 | F29: 250105222 | G29: 女 | H29: 86.00 | I29: 85.30 | J29: 85.72 | K29: 1 | L29: =SUMPRODUCT(($C$3:$C$510=C29)*($J$3:$J$510>J29))+1 -> 2 | M29: 否
A30: 28 | B30: 黑龙江丰林国家级自然保护区管理局 | C30: 宣教中心C | D30: 115 | E30: 王爽 | F30: 250105905 | G30: 女 | H30: 82.00 | I30: 77.78 | J30: 80.31 | K30: 1 | L30: =SUMPRODUCT(($C$3:$C$510=C30)*($J$3:$J$510>J30))+1 -> 3 | M30: 否
A31: 29 | B31: 黑龙江丰林国家级自然保护区管理局 | C31: 战略发展部A | D31: 116 | E31: 刘冠楼 | F31: 250106202 | G31: 男 | H31: 80.00 | I31: 83.00 | J31: 81.20 | K31: 2 | L31: =SUMPRODUCT(($C$3:$C$510=C31)*($J$3:$J$510>J31))+1 -> 1 | M31: 是
A32: 30 | B32: 黑龙江丰林国家级自然保护区管理局 | C32: 战略发展部A | D32: 116 | E32: 夏鹏飞 | F32: 250105613 | G32: 男 | H32: 72.00 | I32: 78.88 | J32: 74.75 | K32: 2 | L32: =SUMPRODUCT(($C$3:$C$510=C32)*($J$3:$J$510>J32))+1 -> 2 | M32: 是
A33: 31 | B33: 黑龙江丰林国家级自然保护区管理局 | C33: 战略发展部A | D33: 116 | E33: 王冠文 | F33: 250106801 | G33: 男 | H33: 71.00 | I33: 78.82 | J33: 74.13 | K33: 2 | L33: =SUMPRODUCT(($C$3:$C$510=C33)*($J$3:$J$510>J33))+1 -> 3 | M33: 否
A34: 32 | B34: 黑龙江丰林国家级自然保护区管理局 | C34: 战略发展部A | D34: 116 | E34: 张羽欣 | F34: 250106424 | G34: 女 | H34: 68.00 | I34: 72.74 | J34: 69.90 | K34: 2 | L34: =SUMPRODUCT(($C$3:$C$510=C34)*($J$3:$J$510>J34))+1 -> 4 | M34: 否
A35: 33 | B35: 黑龙江丰林国家级自然保护区管理局 | C35: 战略发展部A | D35: 116 | E35: 王浩然 | F35: 250107602 | G35: 男 | H35: 42.00 | I35: 76.24 | J35: 55.70 | K35: 2 | L35: =SUMPRODUCT(($C$3:$C$510=C35)*($J$3:$J$510>J35))+1 -> 5 | M35: 否
A36: 34 | B36: 黑龙江丰林国家级自然保护区管理局 | C36: 战略发展部A | D36: 116 | E36: 徐一沣 | F36: 250105504 | G36: 男 | H36: 64.00 | I36: 0.00 | J36: 0.00 | K36: 2 | L36: - | M36: 否 | N36: 面试缺考
A37: 35 | B37: 黑龙江丰林国家级自然保护区管理局 | C37: 战略发展部B | D37: 117 | E37: 李洋洋 | F37: 250107529 | G37: 女 | H37: 85.00 | I37: 81.84 | J37: 83.74 | K37: 1 | L37: =SUMPRODUCT(($C$3:$C$510=C37)*($J$3:$J$510>J37))+1 -> 1 | M37: 是
A38: 36 | B38: 黑龙江丰林国家级自然保护区管理局 | C38: 战略发展部B | D38: 117 | E38: 孙旭 | F38: 250105416 | G38: 男 | H38: 85.00 | I38: 79.82 | J38: 82.93 | K38: 1 | L38: =SUMPRODUCT(($C$3:$C$510=C38)*($J$3:$J$510>J38))+1 -> 2 | M38: 否
A39: 37 | B39: 黑龙江丰林国家级自然保护区管理局 | C39: 战略发展部B | D39: 117 | E39: 王惠敏 | F39: 250106914 | G39: 女 | H39: 84.00 | I39: 81.26 | J39: 82.90 | K39: 1 | L39: =SUMPRODUCT(($C$3:$C$510=C39)*($J$3:$J$510>J39))+1 -> 3 | M39: 否
A40: 38 | B40: 黑龙江丰林国家级自然保护区管理局 | C40: 战略发展部C | D40: 118 | E40: 陈雪 | F40: 250105025 | G40: 女 | H40: 86.00 | I40: 83.28 | J40: 84.91 | K40: 1 | L40: =SUMPRODUCT(($C$3:$C$510=C40)*($J$3:$J$510>J40))+1 -> 1 | M40: 是
A41: 39 | B41: 黑龙江丰林国家级自然保护区管理局 | C41: 战略发展部C | D41: 118 | E41: 张铎 | F41: 250105218 | G41: 男 | H41: 89.00 | I41: 77.44 | J41: 84.38 | K41: 1 | L41: =SUMPRODUCT(($C$3:$C$510=C41)*($J$3:$J$510>J41))+1 -> 2 | M41: 否
A42: 40 | B42: 黑龙江丰林国家级自然保护区管理局 | C42: 战略发展部C | D42: 118 | E42: 赵义 | F42: 250106526 | G42: 女 | H42: 86.00 | I42: 79.34 | J42: 83.34 | K42: 1 | L42: =SUMPRODUCT(($C$3:$C$510=C42)*($J$3:$J$510>J42))+1 -> 3 | M42: 否
A43: 41 | B43: 黑龙江丰林国家级自然保护区管理局 | C43: 保护管理中心A | D43: 119 | E43: 李春鹏 | F43: 250107307 | G43: 男 | H43: 84.00 | I43: 82.28 | J43: 83.31 | K43: 2 | L43: =SUMPRODUCT(($C$3:$C$510=C43)*($J$3:$J$510>J43))+1 -> 1 | M43: 是
A44: 42 | B44: 黑龙江丰林国家级自然保护区管理局 | C44: 保护管理中心A | D44: 119 | E44: 王鑫雨 | F44: 250107509 | G44: 男 | H44: 83.00 | I44: 80.32 | J44: 81.93 | K44: 2 | L44: =SUMPRODUCT(($C$3:$C$510=C44)*($J$3:$J$510>J44))+1 -> 2 | M44: 是
A45: 43 | B45: 黑龙江丰林国家级自然保护区管理局 | C45: 保护管理中心A | D45: 119 | E45: 刘扬 | F45: 250106810 | G45: 男 | H45: 81.00 | I45: 80.18 | J45: 80.67 | K45: 2 | L45: =SUMPRODUCT(($C$3:$C$510=C45)*($J$3:$J$510>J45))+1 -> 3 | M45: 否
A46: 44 | B46: 黑龙江丰林国家级自然保护区管理局 | C46: 保护管理中心A | D46: 119 | E46: 顾一鸣 | F46: 250107403 | G46: 女 | H46: 81.00 | I46: 79.58 | J46: 80.43 | K46: 2 | L46: =SUMPRODUCT(($C$3:$C$510=C46)*($J$3:$J$510>J46))+1 -> 4 | M46: 否
A47: 45 | B47: 黑龙江丰林国家级自然保护区管理局 | C47: 保护管理中心A | D47: 119 | E47: 陈司佳 | F47: 250107003 | G47: 女 | H47: 82.00 | I47: 77.96 | J47: 80.38 | K47: 2 | L47: =SUMPRODUCT(($C$3:$C$510=C47)*($J$3:$J$510>J47))+1 -> 5 | M47: 否
A48: 46 | B48: 黑龙江丰林国家级自然保护区管理局 | C48: 保护管理中心A | D48: 119 | E48: 王泽 | F48: 250106305 | G48: 男 | H48: 82.00 | I48: 75.32 | J48: 79.33 | K48: 2 | L48: =SUMPRODUCT(($C$3:$C$510=C48)*($J$3:$J$510>J48))+1 -> 6 | M48: 否
A49: 47 | B49: 黑龙江丰林国家级自然保护区管理局 | C49: 保护管理中心A | D49: 119 | E49: 苗钧博 | F49: 250107116 | G49: 男 | H49: 81.00 | I49: 75.70 | J49: 78.88 | K49: 2 | L49: =SUMPRODUCT(($C$3:$C$510=C49)*($J$3:$J$510>J49))+1 -> 7 | M49: 否
A50: 48 | B50: 黑龙江丰林国家级自然保护区管理局 | C50: 保护管理中心A | D50: 119 | E50: 朱晓光 | F50: 250107413 | G50: 男 | H50: 81.00 | I50: 0.00 | J50: 0.00 | K50: 2 | L50: - | M50: 否 | N50: 面试缺考
A51: 49 | B51: 黑龙江林业职业技术学院 | C51: 家具设计与制造教师 | D51: 014 | E51: 张一鸣 | F51: 250103627 | G51: 男 | H51: 72.50 | I51: 86.98 | J51: 78.29 | K51: 2 | L51: =SUMPRODUCT(($C$3:$C$510=C51)*($J$3:$J$510>J51))+1 -> 1 | M51: 是
A52: 50 | B52: 黑龙江林业职业技术学院 | C52: 家具设计与制造教师 | D52: 014 | E52: 于婉宁 | F52: 250102605 | G52: 女 | H52: 72.00 | I52: 86.72 | J52: 77.89 | K52: 2 | L52: =SUMPRODUCT(($C$3:$C$510=C52)*($J$3:$J$510>J52))+1 -> 2 | M52: 是
A53: 51 | B53: 黑龙江林业职业技术学院 | C53: 家具设计与制造教师 | D53: 014 | E53: 迟丽莎 | F53: 250104114 | G53: 女 | H53: 68.25 | I53: 80.08 | J53: 72.98 | K53: 2 | L53: =SUMPRODUCT(($C$3:$C$510=C53)*($J$3:$J$510>J53))+1 -> 3 | M53: 否
A54: 52 | B54: 黑龙江林业职业技术学院 | C54: 家具设计与制造教师 | D54: 014 | E54: 韩鑫科 | F54: 250102520 | G54: 男 | H54: 69.00 | I54: 78.32 | J54: 72.73 | K54: 2 | L54: =SUMPRODUCT(($C$3:$C$510=C54)*($J$3:$J$510>J54))+1 -> 4 | M54: 否
A55: 53 | B55: 黑龙江林业职业技术学院 | C55: 家具设计与制造教师 | D55: 014 | E55: 张朕 | F55: 250104123 | G55: 男 | H55: 60.25 | I55: 84.98 | J55: 70.14 | K55: 2 | L55: =SUMPRODUCT(($C$3:$C$510=C55)*($J$3:$J$510>J55))+1 -> 5 | M55: 否
A56: 54 | B56: 黑龙江林业职业技术学院 | C56: 家具设计与制造教师 | D56: 014 | E56: 张轩玮 | F56: 250101612 | G56: 男 | H56: 61.50 | I56: 77.46 | J56: 67.88 | K56: 2 | L56: =SUMPRODUCT(($C$3:$C$510=C56)*($J$3:$J$510>J56))+1 -> 6 | M56: 否
A57: 55 | B57: 黑龙江林业职业技术学院 | C57: 机电类教师 | D57: 015 | E57: 苑翔宇 | F57: 250102303 | G57: 男 | H57: 64.50 | I57: 81.40 | J57: 71.26 | K57: 5 | L57: =SUMPRODUCT(($C$3:$C$510=C57)*($J$3:$J$510>J57))+1 -> 1 | M57: 是
A58: 56 | B58: 黑龙江林业职业技术学院 | C58: 机电类教师 | D58: 015 | E58: 郑伟 | F58: 250101719 | G58: 男 | H58: 64.25 | I58: 80.16 | J58: 70.61 | K58: 5 | L58: =SUMPRODUCT(($C$3:$C$510=C58)*($J$3:$J$510>J58))+1 -> 2 | M58: 是
A59: 57 | B59: 黑龙江林业职业技术学院 | C59: 机电类教师 | D59: 015 | E59: 马宪 | F59: 250104608 | G59: 男 | H59: 61.00 | I59: 84.38 | J59: 70.35 | K59: 5 | L59: =SUMPRODUCT(($C$3:$C$510=C59)*($J$3:$J$510>J59))+1 -> 3 | M59: 是
A60: 58 | B60: 黑龙江林业职业技术学院 | C60: 机电类教师 | D60: 015 | E60: 李洪敏 | F60: 250104229 | G60: 女 | H60: 62.00 | I60: 82.48 | J60: 70.19 | K60: 5 | L60: =SUMPRODUCT(($C$3:$C$510=C60)*($J$3:$J$510>J60))+1 -> 4 | M60: 是
A61: 59 | B61: 黑龙江林业职业技术学院 | C61: 机电类教师 | D61: 015 | E61: 李宇鹏 | F61: 250103925 | G61: 男 | H61: 62.25 | I61: 81.10 | J61: 69.79 | K61: 5 | L61: =SUMPRODUCT(($C$3:$C$510=C61)*($J$3:$J$510>J61))+1 -> 5 | M61: 是
A62: 60 | B62: 黑龙江林业职业技术学院 | C62: 机电类教师 | D62: 015 | E62: 孙玮含 | F62: 250103420 | G62: 女 | H62: 56.75 | I62: 84.16 | J62: 67.71 | K62: 5 | L62: =SUMPRODUCT(($C$3:$C$510=C62)*($J$3:$J$510>J62))+1 -> 6 | M62: 否
A63: 61 | B63: 黑龙江林业职业技术学院 | C63: 机电类教师 | D63: 015 | E63: 李雪堂 | F63: 250103315 | G63: 男 | H63: 56.00 | I63: 84.52 | J63: 67.41 | K63: 5 | L63: =SUMPRODUCT(($C$3:$C$510=C63)*($J$3:$J$510>J63))+1 -> 7 | M63: 否
A64: 62 | B64: 黑龙江林业职业技术学院 | C64: 机电类教师 | D64: 015 | E64: 王晟 | F64: 250103410 | G64: 男 | H64: 61.25 | I64: 72.08 | J64: 65.58 | K64: 5 | L64: =SUMPRODUCT(($C$3:$C$510=C64)*($J$3:$J$510>J64))+1 -> 8 | M64: 否
A65: 63 | B65: 黑龙江林业职业技术学院 | C65: 机电类教师 | D65: 015 | E65: 陈弘达 | F65: 250103522 | G65: 男 | H65: 49.50 | I65: 80.18 | J65: 61.77 | K65: 5 | L65: =SUMPRODUCT(($C$3:$C$510=C65)*($J$3:$J$510>J65))+1 -> 9 | M65: 否
A66: 64 | B66: 黑龙江林业职业技术学院 | C66: 机电类教师 | D66: 015 | E66: 周天宇 | F66: 250103626 | G66: 男 | H66: 50.50 | I66: 75.96 | J66: 60.68 | K66: 5 | L66: =SUMPRODUCT(($C$3:$C$510=C66)*($J$3:$J$510>J66))+1 -> 10 | M66: 否
A67: 65 | B67: 黑龙江林业职业技术学院 | C67: 机电类教师 | D67: 015 | E67: 徐梦泽 | F67: 250103029 | G67: 男 | H67: 43.75 | I67: 80.66 | J67: =I67*0.4+H67*0.6 -> 58.51 | K67: 5 | L67: =SUMPRODUCT(($C$3:$C$510=C67)*($J$3:$J$510>J67))+1 -> 11 | M67: 否
A68: 66 | B68: 黑龙江林业职业技术学院 | C68: 机电类教师 | D68: 015 | E68: 仝柯 | F68: 250103711 | G68: 男 | H68: 46.25 | I68: 73.46 | J68: 57.13 | K68: 5 | L68: =SUMPRODUCT(($C$3:$C$510=C68)*($J$3:$J$510>J68))+1 -> 12 | M68: 否
A69: 67 | B69: 黑龙江林业职业技术学院 | C69: 机电类教师 | D69: 015 | E69: 黄泽鑫 | F69: 250103905 | G69: 男 | H69: 62.75 | I69: 0.00 | J69: 0.00 | K69: 5 | L69: - | M69: 否 | N69: 面试缺考
A70: 68 | B70: 黑龙江林业职业技术学院 | C70: 机电类教师 | D70: 015 | E70: 李海彬 | F70: 250102309 | G70: 男 | H70: 60.25 | I70: 0.00 | J70: 0.00 | K70: 5 | L70: - | M70: 否 | N70: 面试缺考
A71: 69 | B71: 黑龙江林业职业技术学院 | C71: 机电类教师 | D71: 015 | E71: 刘源松 | F71: 250104101 | G71: 男 | H71: 52.75 | I71: 0.00 | J71: 0.00 | K71: 5 | L71: - | M71: 否 | N71: 面试缺考
A72: 70 | B72: 黑龙江林业职业技术学院 | C72: 大数据与会计教师 | D72: 016 | E72: 佐斯佳 | F72: 250104804 | G72: 男 | H72: 63.25 | I72: 88.02 | J72: 73.16 | K72: 1 | L72: =SUMPRODUCT(($C$3:$C$510=C72)*($J$3:$J$510>J72))+1 -> 1 | M72: 是
A73: 71 | B73: 黑龙江林业职业技术学院 | C73: 大数据与会计教师 | D73: 016 | E73: 昝金宏 | F73: 250102827 | G73: 女 | H73: 71.50 | I73: 73.82 | J73: 72.43 | K73: 1 | L73: =SUMPRODUCT(($C$3:$C$510=C73)*($J$3:$J$510>J73))+1 -> 2 | M73: 否
A74: 72 | B74: 黑龙江林业职业技术学院 | C74: 大数据与会计教师 | D74: 016 | E74: 刘赫男 | F74: 250102024 | G74: 女 | H74: 67.00 | I74: 76.98 | J74: 70.99 | K74: 1 | L74: =SUMPRODUCT(($C$3:$C$510=C74)*($J$3:$J$510>J74))+1 -> 3 | M74: 否
A75: 73 | B75: 黑龙江林业职业技术学院 | C75: 测量、遥感类教师 | D75: 017 | E75: 杨颖 | F75: 250102723 | G75: 女 | H75: 71.00 | I75: 78.20 | J75: 73.88 | K75: 3 | L75: =SUMPRODUCT(($C$3:$C$510=C75)*($J$3:$J$510>J75))+1 -> 1 | M75: 是
A76: 74 | B76: 黑龙江林业职业技术学院 | C76: 测量、遥感类教师 | D76: 017 | E76: 王岩 | F76: 250102117 | G76: 男 | H76: 67.50 | I76: 83.04 | J76: 73.72 | K76: 3 | L76: =SUMPRODUCT(($C$3:$C$510=C76)*($J$3:$J$510>J76))+1 -> 2 | M76: 是
A77: 75 | B77: 黑龙江林业职业技术学院 | C77: 测量、遥感类教师 | D77: 017 | E77: 崔雪松 | F77: 250104121 | G77: 男 | H77: 66.25 | I77: 82.26 | J77: 72.65 | K77: 3 | L77: =SUMPRODUCT(($C$3:$C$510=C77)*($J$3:$J$510>J77))+1 -> 3 | M77: 是
A78: 76 | B78: 黑龙江林业职业技术学院 | C78: 测量、遥感类教师 | D78: 017 | E78: 寇子壹 | F78: 250103021 | G78: 女 | H78: 68.00 | I78: 78.36 | J78: 72.14 | K78: 3 | L78: =SUMPRODUCT(($C$3:$C$510=C78)*($J$3:$J$510>J78))+1 -> 4 | M78: 否
A79: 77 | B79: 黑龙江林业职业技术学院 | C79: 测量、遥感类教师 | D79: 017 | E79: 孙震 | F79: 250104323 | G79: 女 | H79: 64.75 | I79: 82.50 | J79: 71.85 | K79: 3 | L79: =SUMPRODUCT(($C$3:$C$510=C79)*($J$3:$J$510>J79))+1 -> 5 | M79: 否
A80: 78 | B80: 黑龙江林业职业技术学院 | C80: 测量、遥感类教师 | D80: 017 | E80: 隋属棋 | F80: 250104310 | G80: 女 | H80: 64.75 | I80: 80.84 | J80: 71.19 | K80: 3 | L80: =SUMPRODUCT(($C$3:$C$510=C80)*($J$3:$J$510>J80))+1 -> 6 | M80: 否
A81: 79 | B81: 黑龙江林业职业技术学院 | C81: 测量、遥感类教师 | D81: 017 | E81: 徐娜 | F81: 250102413 | G81: 女 | H81: 62.00 | I81: 83.58 | J81: 70.63 | K81: 3 | L81: =SUMPRODUCT(($C$3:$C$510=C81)*($J$3:$J$510>J81))+1 -> 7 | M81: 否
A82: 80 | B82: 黑龙江林业职业技术学院 | C82: 测量、遥感类教师 | D82: 017 | E82: 刘巍 | F82: 250102405 | G82: 女 | H82: 63.00 | I82: 80.54 | J82: 70.02 | K82: 3 | L82: =SUMPRODUCT(($C$3:$C$510=C82)*($J$3:$J$510>J82))+1 -> 8 | M82: 否
A83: 81 | B83: 黑龙江林业职业技术学院 | C83: 测量、遥感类教师 | D83: 017 | E83: 刘畅 | F83: 250103102 | G83: 女 | H83: 59.75 | I83: 80.14 | J83: 67.91 | K83: 3 | L83: =SUMPRODUCT(($C$3:$C$510=C83)*($J$3:$J$510>J83))+1 -> 9 | M83: 否
A84: 82 | B84: 黑龙江林业职业技术学院 | C84: 测量、遥感类教师 | D84: 017 | E84: 弥思瑶 | F84: 250101829 | G84: 女 | H84: 56.25 | I84: 80.28 | J84: 65.86 | K84: 3 | L84: =SUMPRODUCT(($C$3:$C$510=C84)*($J$3:$J$510>J84))+1 -> 10 | M84: 否
A85: 83 | B85: 黑龙江林业职业技术学院 | C85: 测量、遥感类教师 | D85: 017 | E85: 冯健萱 | F85: 250102902 | G85: 男 | H85: 57.75 | I85: 0.00 | J85: 0.00 | K85: 3 | L85: - | M85: 否 | N85: 面试缺考
A86: 84 | B86: 黑龙江林业职业技术学院 | C86: 思政教师 | D86: 019 | E86: 刘瑞刚 | F86: 250103428 | G86: 男 | H86: 69.00 | I86: 86.72 | J86: 76.09 | K86: 4 | L86: =SUMPRODUCT(($C$3:$C$510=C86)*($J$3:$J$510>J86))+1 -> 1 | M86: 是
A87: 85 | B87: 黑龙江林业职业技术学院 | C87: 思政教师 | D87: 019 | E87: 高婷婷 | F87: 250104826 | G87: 女 | H87: 69.50 | I87: 84.92 | J87: 75.67 | K87: 4 | L87: =SUMPRODUCT(($C$3:$C$510=C87)*($J$3:$J$510>J87))+1 -> 2 | M87: 是
A88: 86 | B88: 黑龙江林业职业技术学院 | C88: 思政教师 | D88: 019 | E88: 李明英 | F88: 250102230 | G88: 女 | H88: 66.50 | I88: 80.58 | J88: 72.13 | K88: 4 | L88: =SUMPRODUCT(($C$3:$C$510=C88)*($J$3:$J$510>J88))+1 -> 3 | M88: 是
A89: 87 | B89: 黑龙江林业职业技术学院 | C89: 思政教师 | D89: 019 | E89: 祁然 | F89: 250102705 | G89: 女 | H89: 66.50 | I89: 80.14 | J89: 71.96 | K89: 4 | L89: =SUMPRODUCT(($C$3:$C$510=C89)*($J$3:$J$510>J89))+1 -> 4 | M89: 是
A90: 88 | B90: 黑龙江林业职业技术学院 | C90: 思政教师 | D90: 019 | E90: 武艺 | F90: 250101623 | G90: 女 | H90: 63.00 | I90: 79.52 | J90: 69.61 | K90: 4 | L90: =SUMPRODUCT(($C$3:$C$510=C90)*($J$3:$J$510>J90))+1 -> 5 | M90: 否
A91: 89 | B91: 黑龙江林业职业技术学院 | C91: 思政教师 | D91: 019 | E91: 李琳 | F91: 250102730 | G91: 女 | H91: 64.00 | I91: 76.38 | J91: 68.95 | K91: 4 | L91: =SUMPRODUCT(($C$3:$C$510=C91)*($J$3:$J$510>J91))+1 -> 6 | M91: 否
A92: 90 | B92: 黑龙江林业职业技术学院 | C92: 思政教师 | D92: 019 | E92: 周明 | F92: 250104504 | G92: 男 | H92: 60.00 | I92: 78.96 | J92: 67.58 | K92: 4 | L92: =SUMPRODUCT(($C$3:$C$510=C92)*($J$3:$J$510>J92))+1 -> 7 | M92: 否
A93: 91 | B93: 黑龙江林业职业技术学院 | C93: 思政教师 | D93: 019 | E93: 许昕 | F93: 250104930 | G93: 女 | H93: 54.50 | I93: 78.94 | J93: 64.28 | K93: 4 | L93: =SUMPRODUCT(($C$3:$C$510=C93)*($J$3:$J$510>J93))+1 -> 8 | M93: 否
A94: 92 | B94: 黑龙江林业职业技术学院 | C94: 思政教师 | D94: 019 | E94: 孟雨佳 | F94: 250102609 | G94: 女 | H94: 53.50 | I94: 78.60 | J94: 63.54 | K94: 4 | L94: =SUMPRODUCT(($C$3:$C$510=C94)*($J$3:$J$510>J94))+1 -> 9 | M94: 否
A95: 93 | B95: 黑龙江林业职业技术学院 | C95: 思政教师 | D95: 019 | E95: 慕星 | F95: 250104112 | G95: 女 | H95: 50.00 | I95: 78.94 | J95: 61.58 | K95: 4 | L95: =SUMPRODUCT(($C$3:$C$510=C95)*($J$3:$J$510>J95))+1 -> 10 | M95: 否
A96: 94 | B96: 黑龙江林业职业技术学院 | C96: 思政教师 | D96: 019 | E96: 臧佳玉 | F96: 250102310 | G96: 女 | H96: 62.75 | I96: 0.00 | J96: 0.00 | K96: 4 | L96: - | M96: 否 | N96: 面试缺考
A97: 95 | B97: 黑龙江林业职业技术学院 | C97: 思政教师 | D97: 019 | E97: 姜佳彤 | F97: 250104406 | G97: 女 | H97: 56.75 | I97: 0.00 | J97: 0.00 | K97: 4 | L97: - | M97: 否 | N97: 面试缺考
A98: 96 | B98: 黑龙江林业职业技术学院 | C98: 计算机类教师 | D98: 020 | E98: 李岩 | F98: 250103705 | G98: 女 | H98: 65.50 | I98: 77.76 | J98: 70.40 | K98: 2 | L98: =SUMPRODUCT(($C$3:$C$510=C98)*($J$3:$J$510>J98))+1 -> 1 | M98: 是
A99: 97 | B99: 黑龙江林业职业技术学院 | C99: 计算机类教师 | D99: 020 | E99: 张博 | F99: 250103704 | G99: 男 | H99: 60.75 | I99: 83.22 | J99: 69.74 | K99: 2 | L99: =SUMPRODUCT(($C$3:$C$510=C99)*($J$3:$J$510>J99))+1 -> 2 | M99: 是
A100: 98 | B100: 黑龙江林业职业技术学院 | C100: 计算机类教师 | D100: 020 | E100: 庞宝玉 | F100: 250103914 | G100: 男 | H100: 63.00 | I100: 73.14 | J100: 67.06 | K100: 2 | L100: =SUMPRODUCT(($C$3:$C$510=C100)*($J$3:$J$510>J100))+1 -> 3 | M100: 否
A101: 99 | B101: 黑龙江林业职业技术学院 | C101: 计算机类教师 | D101: 020 | E101: 樊睿文 | F101: 250102830 | G101: 男 | H101: 51.75 | I101: 79.54 | J101: 62.87 | K101: 2 | L101: =SUMPRODUCT(($C$3:$C$510=C101)*($J$3:$J$510>J101))+1 -> 4 | M101: 否
A102: 100 | B102: 黑龙江林业职业技术学院 | C102: 计算机类教师 | D102: 020 | E102: 张忠义 | F102: 250103423 | G102: 男 | H102: 66.50 | I102: 0.00 | J102: 0.00 | K102: 2 | L102: - | M102: 否 | N102: 面试缺考
A103: 101 | B103: 黑龙江林业职业技术学院 | C103: 计算机类教师 | D103: 020 | E103: 葛禹 | F103: 250101606 | G103: 男 | H103: 63.50 | I103: 0.00 | J103: 0.00 | K103: 2 | L103: - | M103: 否 | N103: 面试缺考
A104: 102 | B104: 黑龙江林业职业技术学院 | C104: 生态教师 | D104: 021 | E104: 刘欣 | F104: 250102623 | G104: 女 | H104: 71.75 | I104: 74.66 | J104: 72.91 | K104: 1 | L104: =SUMPRODUCT(($C$3:$C$510=C104)*($J$3:$J$510>J104))+1 -> 1 | M104: 是
A105: 103 | B105: 黑龙江林业职业技术学院 | C105: 生态教师 | D105: 021 | E105: 沈梦乐 | F105: 250104714 | G105: 女 | H105: 70.25 | I105: 76.62 | J105: 72.80 | K105: 1 | L105: =SUMPRODUCT(($C$3:$C$510=C105)*($J$3:$J$510>J105))+1 -> 2 | M105: 否
A106: 104 | B106: 黑龙江林业职业技术学院 | C106: 生态教师 | D106: 021 | E106: 崔宇晗 | F106: 250102512 | G106: 女 | H106: 65.25 | I106: 80.66 | J106: 71.41 | K106: 1 | L106: =SUMPRODUCT(($C$3:$C$510=C106)*($J$3:$J$510>J106))+1 -> 3 | M106: 否
A107: 105 | B107: 黑龙江林业职业技术学院 | C107: 林学教师 | D107: 022 | E107: 牛鉴祺 | F107: 250103330 | G107: 男 | H107: 67.75 | I107: 81.28 | J107: 73.16 | K107: 2 | L107: =SUMPRODUCT(($C$3:$C$510=C107)*($J$3:$J$510>J107))+1 -> 1 | M107: 是
A108: 106 | B108: 黑龙江林业职业技术学院 | C108: 林学教师 | D108: 022 | E108: 刘思佳 | F108: 250104206 | G108: 女 | H108: 67.25 | I108: 80.06 | J108: 72.37 | K108: 2 | L108: =SUMPRODUCT(($C$3:$C$510=C108)*($J$3:$J$510>J108))+1 -> 2 | M108: 是
A109: 107 | B109: 黑龙江林业职业技术学院 | C109: 林学教师 | D109: 022 | E109: 国浩平 | F109: 250104503 | G109: 女 | H109: 67.25 | I109: 79.24 | J109: 72.05 | K109: 2 | L109: =SUMPRODUCT(($C$3:$C$510=C109)*($J$3:$J$510>J109))+1 -> 3 | M109: 否
A110: 108 | B110: 黑龙江林业职业技术学院 | C110: 林学教师 | D110: 022 | E110: 戚相玉 | F110: 250102823 | G110: 男 | H110: 61.25 | I110: 80.00 | J110: 68.75 | K110: 2 | L110: =SUMPRODUCT(($C$3:$C$510=C110)*($J$3:$J$510>J110))+1 -> 4 | M110: 否
A111: 109 | B111: 黑龙江林业职业技术学院 | C111: 林学教师 | D111: 022 | E111: 王金珊 | F111: 250104411 | G111: 女 | H111: 59.25 | I111: 82.74 | J111: 68.65 | K111: 2 | L111: =SUMPRODUCT(($C$3:$C$510=C111)*($J$3:$J$510>J111))+1 -> 5 | M111: 否
A112: 110 | B112: 黑龙江林业职业技术学院 | C112: 林学教师 | D112: 022 | E112: 檀明明 | F112: 250103104 | G112: 女 | H112: 60.50 | I112: 77.68 | J112: 67.37 | K112: 2 | L112: =SUMPRODUCT(($C$3:$C$510=C112)*($J$3:$J$510>J112))+1 -> 6 | M112: 否
A113: 111 | B113: 黑龙江林业职业技术学院 | C113: 体育教师 | D113: 023 | E113: 房小森 | F113: 250102916 | G113: 男 | H113: 58.25 | I113: 84.08 | J113: 68.58 | K113: 2 | L113: =SUMPRODUCT(($C$3:$C$510=C113)*($J$3:$J$510>J113))+1 -> 1 | M113: 是
A114: 112 | B114: 黑龙江林业职业技术学院 | C114: 体育教师 | D114: 023 | E114: 赵俊琦 | F114: 250103106 | G114: 女 | H114: 59.00 | I114: 80.36 | J114: 67.54 | K114: 2 | L114: =SUMPRODUCT(($C$3:$C$510=C114)*($J$3:$J$510>J114))+1 -> 2 | M114: 是
A115: 113 | B115: 黑龙江林业职业技术学院 | C115: 体育教师 | D115: 023 | E115: 李昕诺 | F115: 250104013 | G115: 女 | H115: 58.25 | I115: 81.00 | J115: 67.35 | K115: 2 | L115: =SUMPRODUCT(($C$3:$C$510=C115)*($J$3:$J$510>J115))+1 -> 3 | M115: 否
A116: 114 | B116: 黑龙江林业职业技术学院 | C116: 体育教师 | D116: 023 | E116: 宋暖 | F116: 250104920 | G116: 女 | H116: 56.00 | I116: 78.46 | J116: 64.98 | K116: 2 | L116: =SUMPRODUCT(($C$3:$C$510=C116)*($J$3:$J$510>J116))+1 -> 4 | M116: 否
A117: 115 | B117: 黑龙江林业职业技术学院 | C117: 体育教师 | D117: 023 | E117: 吴群 | F117: 250102427 | G117: 男 | H117: 56.50 | I117: 77.26 | J117: 64.80 | K117: 2 | L117: =SUMPRODUCT(($C$3:$C$510=C117)*($J$3:$J$510>J117))+1 -> 5 | M117: 否
A118: 116 | B118: 黑龙江林业职业技术学院 | C118: 体育教师 | D118: 023 | E118: 栾奕恋 | F118: 250103413 | G118: 女 | H118: 53.75 | I118: 72.32 | J118: 61.18 | K118: 2 | L118: =SUMPRODUCT(($C$3:$C$510=C118)*($J$3:$J$510>J118))+1 -> 6 | M118: 否
A119: 117 | B119: 黑龙江林业职业技术学院 | C119: 心理咨询教师 | D119: 024 | E119: 欧盟 | F119: 250101801 | G119: 男 | H119: 77.25 | I119: 83.52 | J119: 79.76 | K119: 1 | L119: =SUMPRODUCT(($C$3:$C$510=C119)*($J$3:$J$510>J119))+1 -> 1 | M119: 是
A120: 118 | B120: 黑龙江林业职业技术学院 | C120: 心理咨询教师 | D120: 024 | E120: 郭世英 | F120: 250103602 | G120: 女 | H120: 68.25 | I120: 83.04 | J120: 74.17 | K120: 1 | L120: =SUMPRODUCT(($C$3:$C$510=C120)*($J$3:$J$510>J120))+1 -> 2 | M120: 否
A121: 119 | B121: 黑龙江林业职业技术学院 | C121: 心理咨询教师 | D121: 024 | E121: 赵星 | F121: 250101906 | G121: 女 | H121: 61.75 | I121: 78.54 | J121: 68.47 | K121: 1 | L121: =SUMPRODUCT(($C$3:$C$510=C121)*($J$3:$J$510>J121))+1 -> 3 | M121: 否
A122: 120 | B122: 黑龙江林业职业技术学院 | C122: 专职就业指导教师 | D122: 025 | E122: 王佳旬 | F122: 250102313 | G122: 女 | H122: 70.50 | I122: 84.32 | J122: 76.03 | K122: 1 | L122: =SUMPRODUCT(($C$3:$C$510=C122)*($J$3:$J$510>J122))+1 -> 1 | M122: 是
A123: 121 | B123: 黑龙江林业职业技术学院 | C123: 专职就业指导教师 | D123: 025 | E123: 孙研 | F123: 250103719 | G123: 女 | H123: 66.00 | I123: 85.34 | J123: 73.74 | K123: 1 | L123: =SUMPRODUCT(($C$3:$C$510=C123)*($J$3:$J$510>J123))+1 -> 2 | M123: 否
A124: 122 | B124: 黑龙江林业职业技术学院 | C124: 专职就业指导教师 | D124: 025 | E124: 韩世通 | F124: 250103408 | G124: 男 | H124: 29.50 | I124: 0.00 | J124: 0.00 | K124: 1 | L124: - | M124: 否 | N124: 面试缺考
A125: 123 | B125: 黑龙江林业职业技术学院 | C125: 辅导员 | D125: 026 | E125: 李志凡 | F125: 250110429 | G125: 女 | H125: 76.75 | I125: 86.06 | J125: 80.47 | K125: 12 | L125: =SUMPRODUCT(($C$3:$C$510=C125)*($J$3:$J$510>J125))+1 -> 1 | M125: 是
A126: 124 | B126: 黑龙江林业职业技术学院 | C126: 辅导员 | D126: 026 | E126: 侯鑫瑞 | F126: 250110417 | G126: 女 | H126: 78.00 | I126: 83.42 | J126: 80.17 | K126: 12 | L126: =SUMPRODUCT(($C$3:$C$510=C126)*($J$3:$J$510>J126))+1 -> 2 | M126: 是
A127: 125 | B127: 黑龙江林业职业技术学院 | C127: 辅导员 | D127: 026 | E127: 王雨晗 | F127: 250110310 | G127: 女 | H127: 76.00 | I127: 80.50 | J127: 77.80 | K127: 12 | L127: =SUMPRODUCT(($C$3:$C$510=C127)*($J$3:$J$510>J127))+1 -> 3 | M127: 是
A128: 126 | B128: 黑龙江林业职业技术学院 | C128: 辅导员 | D128: 026 | E128: 申楷滢 | F128: 250110411 | G128: 女 | H128: 74.25 | I128: 82.60 | J128: 77.59 | K128: 12 | L128: =SUMPRODUCT(($C$3:$C$510=C128)*($J$3:$J$510>J128))+1 -> 4 | M128: 是
A129: 127 | B129: 黑龙江林业职业技术学院 | C129: 辅导员 | D129: 026 | E129: 王丹宁 | F129: 250109914 | G129: 女 | H129: 79.25 | I129: 74.08 | J129: 77.18 | K129: 12 | L129: =SUMPRODUCT(($C$3:$C$510=C129)*($J$3:$J$510>J129))+1 -> 5 | M129: 是
A130: 128 | B130: 黑龙江林业职业技术学院 | C130: 辅导员 | D130: 026 | E130: 张光蕊 | F130: 250110105 | G130: 女 | H130: 74.50 | I130: 80.70 | J130: 76.98 | K130: 12 | L130: =SUMPRODUCT(($C$3:$C$510=C130)*($J$3:$J$510>J130))+1 -> 6 | M130: 是
A131: 129 | B131: 黑龙江林业职业技术学院 | C131: 辅导员 | D131: 026 | E131: 苏蕊 | F131: 250110612 | G131: 女 | H131: 73.00 | I131: 81.24 | J131: =I131*0.4+H131*0.6 -> 76.30 | K131: 12 | L131: =SUMPRODUCT(($C$3:$C$510=C131)*($J$3:$J$510>J131))+1 -> 7 | M131: 是
A132: 130 | B132: 黑龙江林业职业技术学院 | C132: 辅导员 | D132: 026 | E132: 朱敏奎 | F132: 250110030 | G132: 女 | H132: 73.50 | I132: 79.78 | J132: 76.01 | K132: 12 | L132: =SUMPRODUCT(($C$3:$C$510=C132)*($J$3:$J$510>J132))+1 -> 8 | M132: 是
A133: 131 | B133: 黑龙江林业职业技术学院 | C133: 辅导员 | D133: 026 | E133: 赵翔 | F133: 250110621 | G133: 男 | H133: 71.50 | I133: 81.88 | J133: 75.65 | K133: 12 | L133: =SUMPRODUCT(($C$3:$C$510=C133)*($J$3:$J$510>J133))+1 -> 9 | M133: 是
A134: 132 | B134: 黑龙江林业职业技术学院 | C134: 辅导员 | D134: 026 | E134: 于洋 | F134: 250110118 | G134: 女 | H134: 76.50 | I134: 74.30 | J134: 75.62 | K134: 12 | L134: =SUMPRODUCT(($C$3:$C$510=C134)*($J$3:$J$510>J134))+1 -> 10 | M134: 是
A135: 133 | B135: 黑龙江林业职业技术学院 | C135: 辅导员 | D135: 026 | E135: 毕文静 | F135: 250110024 | G135: 女 | H135: 73.75 | I135: 77.78 | J135: 75.36 | K135: 12 | L135: =SUMPRODUCT(($C$3:$C$510=C135)*($J$3:$J$510>J135))+1 -> 11 | M135: 是
A136: 134 | B136: 黑龙江林业职业技术学院 | C136: 辅导员 | D136: 026 | E136: 刘悦 | F136: 250110508 | G136: 女 | H136: 73.00 | I136: 78.20 | J136: 75.08 | K136: 12 | L136: =SUMPRODUCT(($C$3:$C$510=C136)*($J$3:$J$510>J136))+1 -> 12 | M136: 是
A137: 135 | B137: 黑龙江林业职业技术学院 | C137: 辅导员 | D137: 026 | E137: 李然 | F137: 250110320 | G137: 女 | H137: 73.00 | I137: 76.28 | J137: 74.31 | K137: 12 | L137: =SUMPRODUCT(($C$3:$C$510=C137)*($J$3:$J$510>J137))+1 -> 13 | M137: 否
A138: 136 | B138: 黑龙江林业职业技术学院 | C138: 辅导员 | D138: 026 | E138: 刘力赫 | F138: 250110509 | G138: 女 | H138: 71.00 | I138: 79.20 | J138: 74.28 | K138: 12 | L138: =SUMPRODUCT(($C$3:$C$510=C138)*($J$3:$J$510>J138))+1 -> 14 | M138: 否
A139: 137 | B139: 黑龙江林业职业技术学院 | C139: 辅导员 | D139: 026 | E139: 吕春洋 | F139: 250110402 | G139: 女 | H139: 72.00 | I139: 77.58 | J139: 74.23 | K139: 12 | L139: =SUMPRODUCT(($C$3:$C$510=C139)*($J$3:$J$510>J139))+1 -> 15 | M139: 否
A140: 138 | B140: 黑龙江林业职业技术学院 | C140: 辅导员 | D140: 026 | E140: 范增华 | F140: 250110116 | G140: 女 | H140: 69.00 | I140: 81.64 | J140: 74.06 | K140: 12 | L140: =SUMPRODUCT(($C$3:$C$510=C140)*($J$3:$J$510>J140))+1 -> 16 | M140: 否
A141: 139 | B141: 黑龙江林业职业技术学院 | C141: 辅导员 | D141: 026 | E141: 秦慕洋 | F141: 250110010 | G141: 女 | H141: 72.00 | I141: 76.90 | J141: 73.96 | K141: 12 | L141: =SUMPRODUCT(($C$3:$C$510=C141)*($J$3:$J$510>J141))+1 -> 17 | M141: 否
A142: 140 | B142: 黑龙江林业职业技术学院 | C142: 辅导员 | D142: 026 | E142: 安楠 | F142: 250110126 | G142: 女 | H142: 71.50 | I142: 76.74 | J142: 73.60 | K142: 12 | L142: =SUMPRODUCT(($C$3:$C$510=C142)*($J$3:$J$510>J142))+1 -> 18 | M142: 否
A143: 141 | B143: 黑龙江林业职业技术学院 | C143: 辅导员 | D143: 026 | E143: 陈新月 | F143: 250110614 | G143: 女 | H143: 69.00 | I143: 80.20 | J143: 73.48 | K143: 12 | L143: =SUMPRODUCT(($C$3:$C$510=C143)*($J$3:$J$510>J143))+1 -> 19 | M143: 否
A144: 142 | B144: 黑龙江林业职业技术学院 | C144: 辅导员 | D144: 026 | E144: 任子美 | F144: 250109902 | G144: 女 | H144: 71.25 | I144: 76.08 | J144: 73.18 | K144: 12 | L144: =SUMPRODUCT(($C$3:$C$510=C144)*($J$3:$J$510>J144))+1 -> 20 | M144: 否
A145: 143 | B145: 黑龙江林业职业技术学院 | C145: 辅导员 | D145: 026 | E145: 徐爽 | F145: 250110708 | G145: 女 | H145: 67.50 | I145: 80.88 | J145: 72.85 | K145: 12 | L145: =SUMPRODUCT(($C$3:$C$510=C145)*($J$3:$J$510>J145))+1 -> 21 | M145: 否
A146: 144 | B146: 黑龙江林业职业技术学院 | C146: 辅导员 | D146: 026 | E146: 谷雨婷 | F146: 250110521 | G146: 女 | H146: 71.00 | I146: 75.54 | J146: 72.82 | K146: 12 | L146: =SUMPRODUCT(($C$3:$C$510=C146)*($J$3:$J$510>J146))+1 -> 22 | M146: 否
A147: 145 | B147: 黑龙江林业职业技术学院 | C147: 辅导员 | D147: 026 | E147: 于丹 | F147: 250110002 | G147: 女 | H147: 67.00 | I147: 81.52 | J147: 72.81 | K147: 12 | L147: =SUMPRODUCT(($C$3:$C$510=C147)*($J$3:$J$510>J147))+1 -> 23 | M147: 否
A148: 146 | B148: 黑龙江林业职业技术学院 | C148: 辅导员 | D148: 026 | E148: 王云龙 | F148: 250110530 | G148: 男 | H148: 67.25 | I148: 80.88 | J148: 72.70 | K148: 12 | L148: =SUMPRODUCT(($C$3:$C$510=C148)*($J$3:$J$510>J148))+1 -> 24 | M148: 否
A149: 147 | B149: 黑龙江林业职业技术学院 | C149: 辅导员 | D149: 026 | E149: 奚晶 | F149: 250110623 | G149: 女 | H149: 69.25 | I149: 77.12 | J149: 72.40 | K149: 12 | L149: =SUMPRODUCT(($C$3:$C$510=C149)*($J$3:$J$510>J149))+1 -> 25 | M149: 否
A150: 148 | B150: 黑龙江林业职业技术学院 | C150: 辅导员 | D150: 026 | E150: 孟祥北 | F150: 250110409 | G150: 女 | H150: 69.50 | I150: 76.16 | J150: 72.16 | K150: 12 | L150: =SUMPRODUCT(($C$3:$C$510=C150)*($J$3:$J$510>J150))+1 -> 26 | M150: 否
A151: 149 | B151: 黑龙江林业职业技术学院 | C151: 辅导员 | D151: 026 | E151: 孙瑞 | F151: 250110526 | G151: 女 | H151: 68.00 | I151: 77.42 | J151: 71.77 | K151: 12 | L151: =SUMPRODUCT(($C$3:$C$510=C151)*($J$3:$J$510>J151))+1 -> 27 | M151: 否
A152: 150 | B152: 黑龙江林业职业技术学院 | C152: 辅导员 | D152: 026 | E152: 张雪松 | F152: 250110416 | G152: 女 | H152: 70.50 | I152: 73.42 | J152: 71.67 | K152: 12 | L152: =SUMPRODUCT(($C$3:$C$510=C152)*($J$3:$J$510>J152))+1 -> 28 | M152: 否
A153: 151 | B153: 黑龙江林业职业技术学院 | C153: 辅导员 | D153: 026 | E153: 单丽颖 | F153: 250110617 | G153: 女 | H153: 69.00 | I153: 74.90 | J153: 71.36 | K153: 12 | L153: =SUMPRODUCT(($C$3:$C$510=C153)*($J$3:$J$510>J153))+1 -> 29 | M153: 否
A154: 152 | B154: 黑龙江林业职业技术学院 | C154: 辅导员 | D154: 026 | E154: 石贺 | F154: 250110514 | G154: 女 | H154: 67.00 | I154: 77.48 | J154: 71.19 | K154: 12 | L154: =SUMPRODUCT(($C$3:$C$510=C154)*($J$3:$J$510>J154))+1 -> 30 | M154: 否
A155: 153 | B155: 黑龙江林业职业技术学院 | C155: 辅导员 | D155: 026 | E155: 李双 | F155: 250110602 | G155: 女 | H155: 69.50 | I155: 73.30 | J155: 71.02 | K155: 12 | L155: =SUMPRODUCT(($C$3:$C$510=C155)*($J$3:$J$510>J155))+1 -> 31 | M155: 否
A156: 154 | B156: 黑龙江林业职业技术学院 | C156: 辅导员 | D156: 026 | E156: 魏乐 | F156: 250110714 | G156: 女 | H156: 68.75 | I156: 74.36 | J156: 70.99 | K156: 12 | L156: =SUMPRODUCT(($C$3:$C$510=C156)*($J$3:$J$510>J156))+1 -> 32 | M156: 否
A157: 155 | B157: 黑龙江林业职业技术学院 | C157: 辅导员 | D157: 026 | E157: 董鑫月 | F157: 250110414 | G157: 女 | H157: 67.00 | I157: 76.86 | J157: 70.94 | K157: 12 | L157: =SUMPRODUCT(($C$3:$C$510=C157)*($J$3:$J$510>J157))+1 -> 33 | M157: 否
A158: 156 | B158: 黑龙江林业职业技术学院 | C158: 辅导员 | D158: 026 | E158: 杨贺尧 | F158: 250110221 | G158: 女 | H158: 67.50 | I158: 75.50 | J158: 70.70 | K158: 12 | L158: =SUMPRODUCT(($C$3:$C$510=C158)*($J$3:$J$510>J158))+1 -> 34 | M158: 否
A159: 157 | B159: 黑龙江林业职业技术学院 | C159: 辅导员 | D159: 026 | E159: 程蕊 | F159: 250110109 | G159: 女 | H159: 74.00 | I159: 0.00 | J159: 0.00 | K159: 12 | L159: - | M159: 否 | N159: 面试缺考
A160: 158 | B160: 黑龙江林业职业技术学院 | C160: 辅导员 | D160: 026 | E160: 张雪婷 | F160: 250110015 | G160: 女 | H160: 71.50 | I160: 0.00 | J160: 0.00 | K160: 12 | L160: - | M160: 否 | N160: 面试缺考
A161: 159 | B161: 黑龙江林业职业技术学院 | C161: 辅导员 | D161: 026 | E161: 朱旭妍 | F161: 250110125 | G161: 女 | H161: 69.25 | I161: 0.00 | J161: 0.00 | K161: 12 | L161: - | M161: 否 | N161: 面试缺考
A162: 160 | B162: 黑龙江林业职业技术学院 | C162: 辅导员 | D162: 026 | E162: 马诗雨 | F162: 250110202 | G162: 女 | H162: 67.00 | I162: 0.00 | J162: 0.00 | K162: 12 | L162: - | M162: 否 | N162: 面试缺考
A163: 161 | B163: 黑龙江林业职业技术学院 | C163: 管理A岗 | D163: 027 | E163: 郭玙晗 | F163: 250104403 | G163: 女 | H163: 70.50 | I163: 81.16 | J163: 74.76 | K163: 2 | L163: =SUMPRODUCT(($C$3:$C$510=C163)*($J$3:$J$510>J163))+1 -> 1 | M163: 是
A164: 162 | B164: 黑龙江林业职业技术学院 | C164: 管理A岗 | D164: 027 | E164: 李聿宁 | F164: 250104928 | G164: 女 | H164: 68.50 | I164: 82.56 | J164: 74.12 | K164: 2 | L164: =SUMPRODUCT(($C$3:$C$510=C164)*($J$3:$J$510>J164))+1 -> 2 | M164: 是
A165: 163 | B165: 黑龙江林业职业技术学院 | C165: 管理A岗 | D165: 027 | E165: 黄佳旭 | F165: 250104510 | G165: 女 | H165: 66.50 | I165: 81.06 | J165: 72.32 | K165: 2 | L165: =SUMPRODUCT(($C$3:$C$510=C165)*($J$3:$J$510>J165))+1 -> 3 | M165: 否
A166: 164 | B166: 黑龙江林业职业技术学院 | C166: 管理A岗 | D166: 027 | E166: 董文博 | F166: 250101703 | G166: 女 | H166: 61.50 | I166: 80.38 | J166: 69.05 | K166: 2 | L166: =SUMPRODUCT(($C$3:$C$510=C166)*($J$3:$J$510>J166))+1 -> 4 | M166: 否
A167: 165 | B167: 黑龙江林业职业技术学院 | C167: 管理A岗 | D167: 027 | E167: 徐冰 | F167: 250102502 | G167: 男 | H167: 43.50 | I167: 81.42 | J167: 58.67 | K167: 2 | L167: =SUMPRODUCT(($C$3:$C$510=C167)*($J$3:$J$510>J167))+1 -> 5 | M167: 否
A168: 166 | B168: 黑龙江林业职业技术学院 | C168: 管理A岗 | D168: 027 | E168: 金禹彤 | F168: 250103206 | G168: 女 | H168: 68.50 | I168: 0.00 | J168: 0.00 | K168: 2 | L168: - | M168: 否 | N168: 面试缺考
A169: 167 | B169: 黑龙江林业职业技术学院 | C169: 管理B岗 | D169: 028 | E169: 张欢 | F169: 250101713 | G169: 女 | H169: 74.25 | I169: 78.92 | J169: 76.12 | K169: 6 | L169: =SUMPRODUCT(($C$3:$C$510=C169)*($J$3:$J$510>J169))+1 -> 1 | M169: 是
A170: 168 | B170: 黑龙江林业职业技术学院 | C170: 管理B岗 | D170: 028 | E170: 郭巍 | F170: 250104106 | G170: 女 | H170: 74.25 | I170: 77.46 | J170: 75.53 | K170: 6 | L170: =SUMPRODUCT(($C$3:$C$510=C170)*($J$3:$J$510>J170))+1 -> 2 | M170: 是
A171: 169 | B171: 黑龙江林业职业技术学院 | C171: 管理B岗 | D171: 028 | E171: 高鹏 | F171: 250103306 | G171: 男 | H171: 69.50 | I171: 82.28 | J171: 74.61 | K171: 6 | L171: =SUMPRODUCT(($C$3:$C$510=C171)*($J$3:$J$510>J171))+1 -> 3 | M171: 是
A172: 170 | B172: 黑龙江林业职业技术学院 | C172: 管理B岗 | D172: 028 | E172: 王洁 | F172: 250103606 | G172: 女 | H172: 68.25 | I172: 83.50 | J172: 74.35 | K172: 6 | L172: =SUMPRODUCT(($C$3:$C$510=C172)*($J$3:$J$510>J172))+1 -> 4 | M172: 是
A173: 171 | B173: 黑龙江林业职业技术学院 | C173: 管理B岗 | D173: 028 | E173: 孙悦 | F173: 250102019 | G173: 女 | H173: 66.50 | I173: 84.58 | J173: 73.73 | K173: 6 | L173: =SUMPRODUCT(($C$3:$C$510=C173)*($J$3:$J$510>J173))+1 -> 5 | M173: 是
A174: 172 | B174: 黑龙江林业职业技术学院 | C174: 管理B岗 | D174: 028 | E174: 黄佳煜 | F174: 250102414 | G174: 女 | H174: 65.50 | I174: 84.82 | J174: 73.23 | K174: 6 | L174: =SUMPRODUCT(($C$3:$C$510=C174)*($J$3:$J$510>J174))+1 -> 6 | M174: 是
A175: 173 | B175: 黑龙江林业职业技术学院 | C175: 管理B岗 | D175: 028 | E175: 张程程 | F175: 250103226 | G175: 女 | H175: 68.25 | I175: 77.94 | J175: 72.13 | K175: 6 | L175: =SUMPRODUCT(($C$3:$C$510=C175)*($J$3:$J$510>J175))+1 -> 7 | M175: 否
A176: 174 | B176: 黑龙江林业职业技术学院 | C176: 管理B岗 | D176: 028 | E176: 徐浩然 | F176: 250103415 | G176: 女 | H176: 63.50 | I176: 84.88 | J176: 72.05 | K176: 6 | L176: =SUMPRODUCT(($C$3:$C$510=C176)*($J$3:$J$510>J176))+1 -> 8 | M176: 否
A177: 175 | B177: 黑龙江林业职业技术学院 | C177: 管理B岗 | D177: 028 | E177: 李聪 | F177: 250101815 | G177: 女 | H177: 66.25 | I177: 80.70 | J177: 72.03 | K177: 6 | L177: =SUMPRODUCT(($C$3:$C$510=C177)*($J$3:$J$510>J177))+1 -> 9 | M177: 否
A178: 176 | B178: 黑龙江林业职业技术学院 | C178: 管理B岗 | D178: 028 | E178: 黄骜 | F178: 250103930 | G178: 男 | H178: 68.00 | I178: 76.46 | J178: 71.38 | K178: 6 | L178: =SUMPRODUCT(($C$3:$C$510=C178)*($J$3:$J$510>J178))+1 -> 10 | M178: 否
A179: 177 | B179: 黑龙江林业职业技术学院 | C179: 管理B岗 | D179: 028 | E179: 张馨月 | F179: 250103521 | G179: 女 | H179: 65.00 | I179: 79.36 | J179: 70.74 | K179: 6 | L179: =SUMPRODUCT(($C$3:$C$510=C179)*($J$3:$J$510>J179))+1 -> 11 | M179: 否
A180: 178 | B180: 黑龙江林业职业技术学院 | C180: 管理B岗 | D180: 028 | E180: 郭子瑜 | F180: 250101727 | G180: 女 | H180: 61.75 | I180: 79.10 | J180: 68.69 | K180: 6 | L180: =SUMPRODUCT(($C$3:$C$510=C180)*($J$3:$J$510>J180))+1 -> 12 | M180: 否
A181: 179 | B181: 黑龙江林业职业技术学院 | C181: 管理B岗 | D181: 028 | E181: 高洁 | F181: 250103209 | G181: 女 | H181: 61.00 | I181: 79.60 | J181: 68.44 | K181: 6 | L181: =SUMPRODUCT(($C$3:$C$510=C181)*($J$3:$J$510>J181))+1 -> 13 | M181: 否
A182: 180 | B182: 黑龙江林业职业技术学院 | C182: 管理B岗 | D182: 028 | E182: 孙建国 | F182: 250103219 | G182: 男 | H182: 61.75 | I182: 78.36 | J182: 68.39 | K182: 6 | L182: =SUMPRODUCT(($C$3:$C$510=C182)*($J$3:$J$510>J182))+1 -> 14 | M182: 否
A183: 181 | B183: 黑龙江林业职业技术学院 | C183: 管理B岗 | D183: 028 | E183: 苏晓芙 | F183: 250104506 | G183: 女 | H183: 57.75 | I183: 83.06 | J183: 67.87 | K183: 6 | L183: =SUMPRODUCT(($C$3:$C$510=C183)*($J$3:$J$510>J183))+1 -> 15 | M183: 否
A184: 182 | B184: 黑龙江林业职业技术学院 | C184: 管理B岗 | D184: 028 | E184: 李红伟 | F184: 250104924 | G184: 女 | H184: 60.50 | I184: 78.78 | J184: 67.81 | K184: 6 | L184: =SUMPRODUCT(($C$3:$C$510=C184)*($J$3:$J$510>J184))+1 -> 16 | M184: 否
A185: 183 | B185: 黑龙江林业职业技术学院 | C185: 管理B岗 | D185: 028 | E185: 张秋生 | F185: 250104119 | G185: 男 | H185: 50.25 | I185: 75.66 | J185: 60.41 | K185: 6 | L185: =SUMPRODUCT(($C$3:$C$510=C185)*($J$3:$J$510>J185))+1 -> 17 | M185: 否
A186: 184 | B186: 黑龙江林业职业技术学院 | C186: 管理B岗 | D186: 028 | E186: 张一凡 | F186: 250102102 | G186: 男 | H186: 64.50 | I186: 0.00 | J186: 0.00 | K186: 6 | L186: - | M186: 否 | N186: 面试缺考
A187: 185 | B187: 黑龙江林业职业技术学院 | C187: 管理B岗 | D187: 028 | E187: 杨莹 | F187: 250102026 | G187: 女 | H187: 63.50 | I187: 0.00 | J187: 0.00 | K187: 6 | L187: - | M187: 否 | N187: 面试缺考
A188: 186 | B188: 黑龙江林业职业技术学院 | C188: 管理B岗 | D188: 028 | E188: 衣乾宁 | F188: 250104407 | G188: 女 | H188: 48.50 | I188: 0.00 | J188: 0.00 | K188: 6 | L188: - | M188: 否 | N188: 面试缺考
A189: 187 | B189: 黑龙江林业职业技术学院 | C189: 管理C岗 | D189: 029 | E189: 陈楠 | F189: 250102517 | G189: 女 | H189: 71.50 | I189: 84.02 | J189: 76.51 | K189: 2 | L189: =SUMPRODUCT(($C$3:$C$510=C189)*($J$3:$J$510>J189))+1 -> 1 | M189: 是
A190: 188 | B190: 黑龙江林业职业技术学院 | C190: 管理C岗 | D190: 029 | E190: 裴钰 | F190: 250103230 | G190: 女 | H190: 69.25 | I190: 82.52 | J190: 74.56 | K190: 2 | L190: =SUMPRODUCT(($C$3:$C$510=C190)*($J$3:$J$510>J190))+1 -> 2 | M190: 是
A191: 189 | B191: 黑龙江林业职业技术学院 | C191: 管理C岗 | D191: 029 | E191: 杨庆鑫 | F191: 250101824 | G191: 男 | H191: 67.75 | I191: 78.88 | J191: 72.20 | K191: 2 | L191: =SUMPRODUCT(($C$3:$C$510=C191)*($J$3:$J$510>J191))+1 -> 3 | M191: 否
A192: 190 | B192: 黑龙江林业职业技术学院 | C192: 管理C岗 | D192: 029 | E192: 姜雨晴 | F192: 250101607 | G192: 女 | H192: 61.75 | I192: 81.78 | J192: 69.76 | K192: 2 | L192: =SUMPRODUCT(($C$3:$C$510=C192)*($J$3:$J$510>J192))+1 -> 4 | M192: 否
A193: 191 | B193: 黑龙江林业职业技术学院 | C193: 管理C岗 | D193: 029 | E193: 李卓 | F193: 250102408 | G193: 女 | H193: 60.25 | I193: 79.62 | J193: 68.00 | K193: 2 | L193: =SUMPRODUCT(($C$3:$C$510=C193)*($J$3:$J$510>J193))+1 -> 5 | M193: 否
A194: 192 | B194: 黑龙江林业职业技术学院 | C194: 管理C岗 | D194: 029 | E194: 石阳 | F194: 250103006 | G194: 男 | H194: 62.00 | I194: 76.96 | J194: 67.98 | K194: 2 | L194: =SUMPRODUCT(($C$3:$C$510=C194)*($J$3:$J$510>J194))+1 -> 6 | M194: 否
A195: 193 | B195: 黑龙江林业职业技术学院 | C195: 管理E岗 | D195: 031 | E195: 刘奇 | F195: 250103213 | G195: 男 | H195: 67.75 | I195: 86.22 | J195: =I195*0.4+H195*0.6 -> 75.14 | K195: 6 | L195: =SUMPRODUCT(($C$3:$C$510=C195)*($J$3:$J$510>J195))+1 -> 1 | M195: 是
A196: 194 | B196: 黑龙江林业职业技术学院 | C196: 管理E岗 | D196: 031 | E196: 张海光 | F196: 250102711 | G196: 男 | H196: 72.25 | I196: 79.44 | J196: 75.13 | K196: 6 | L196: =SUMPRODUCT(($C$3:$C$510=C196)*($J$3:$J$510>J196))+1 -> 2 | M196: 是
A197: 195 | B197: 黑龙江林业职业技术学院 | C197: 管理E岗 | D197: 031 | E197: 王华智 | F197: 250102612 | G197: 男 | H197: 68.00 | I197: 82.68 | J197: 73.87 | K197: 6 | L197: =SUMPRODUCT(($C$3:$C$510=C197)*($J$3:$J$510>J197))+1 -> 3 | M197: 是
A198: 196 | B198: 黑龙江林业职业技术学院 | C198: 管理E岗 | D198: 031 | E198: 闫佳亮 | F198: 250102128 | G198: 男 | H198: 73.50 | I198: 74.12 | J198: 73.75 | K198: 6 | L198: =SUMPRODUCT(($C$3:$C$510=C198)*($J$3:$J$510>J198))+1 -> 4 | M198: 是
A199: 197 | B199: 黑龙江林业职业技术学院 | C199: 管理E岗 | D199: 031 | E199: 张书宁 | F199: 250102207 | G199: 男 | H199: 64.75 | I199: 84.50 | J199: 72.65 | K199: 6 | L199: =SUMPRODUCT(($C$3:$C$510=C199)*($J$3:$J$510>J199))+1 -> 5 | M199: 是
A200: 198 | B200: 黑龙江林业职业技术学院 | C200: 管理E岗 | D200: 031 | E200: 林楠 | F200: 250102321 | G200: 男 | H200: 67.00 | I200: 79.88 | J200: 72.15 | K200: 6 | L200: =SUMPRODUCT(($C$3:$C$510=C200)*($J$3:$J$510>J200))+1 -> 6 | M200: 是
... 310 more rows
